Organisation Name,Organisation Code,Unique Ref No,Effective Date,Directorate  where expenditure incurred,Supplier Name,Payment Date,Net Amount,Purpose of Spend,Procurement Classification (Higher Level),Procurement Classification (Lower Level),Capital/Revenue
Walsall Council,http://opendatacommunities.org/id/metropolitan-district-council/walsall,WC87-1,31/12/2017,Childrens,247 CARS (WILLENHALL) LIMITED,07/12/2017,476.00,60500-GENERAL MATERIALS,60500-GENERAL MATERIALS,Supplies & Services,Revenue
Walsall Council,http://opendatacommunities.org/id/metropolitan-district-council/walsall,WC87-2,31/12/2017,Childrens,247 CARS (WILLENHALL) LIMITED,07/12/2017,795.00,60500-GENERAL MATERIALS,60500-GENERAL MATERIALS,Supplies & Services,Revenue
Walsall Council,http://opendatacommunities.org/id/metropolitan-district-council/walsall,WC87-3,31/12/2017,Childrens,247 CARS (WILLENHALL) LIMITED,08/12/2017,"3,572.00",52000-WITH DRIVER-HIRE OF VEHICLES,52000-WITH DRIVER-HIRE OF VEHICLES,Transport,Revenue
Walsall Council,http://opendatacommunities.org/id/metropolitan-district-council/walsall,WC87-4,31/12/2017,Childrens,5 CARE SERVICES LTD,13/12/2017,"1,232.00",63000-PROFESSIONAL FEES AND SERVICES,63000-PROFESSIONAL FEES AND SERVICES,Supplies & Services,Revenue
Walsall Council,http://opendatacommunities.org/id/metropolitan-district-council/walsall,WC87-5,31/12/2017,Childrens,5 CARE SERVICES LTD,13/12/2017,"1,274.00",63000-PROFESSIONAL FEES AND SERVICES,63000-PROFESSIONAL FEES AND SERVICES,Supplies & Services,Revenue
Walsall Council,http://opendatacommunities.org/id/metropolitan-district-council/walsall,WC87-6,31/12/2017,Childrens,5 CARE SERVICES LTD,08/12/2017,"1,512.00",63000-PROFESSIONAL FEES AND SERVICES,63000-PROFESSIONAL FEES AND SERVICES,Supplies & Services,Revenue
Walsall Council,http://opendatacommunities.org/id/metropolitan-district-council/walsall,WC87-7,31/12/2017,Childrens,5 CARE SERVICES LTD,13/12/2017,"1,792.00",63000-PROFESSIONAL FEES AND SERVICES,63000-PROFESSIONAL FEES AND SERVICES,Supplies & Services,Revenue
Walsall Council,http://opendatacommunities.org/id/metropolitan-district-council/walsall,WC87-8,31/12/2017,Adult Social Care,5 CARE SERVICES LTD,06/12/2017,"46,779.20",73372-DOMICILIARY CARE,73372-DOMICILIARY CARE,Third Party Payments,Revenue
Walsall Council,http://opendatacommunities.org/id/metropolitan-district-council/walsall,WC87-9,31/12/2017,Economy & Environment,A ASHTON,20/12/2017,270.00,60006-NEW-FURNITURE & EQUIPMENT,60006-NEW-FURNITURE & EQUIPMENT,Supplies & Services,Revenue
Walsall Council,http://opendatacommunities.org/id/metropolitan-district-council/walsall,WC87-10,31/12/2017,Resources and Transformation,A D T FIRE AND SECURITY PLC,18/12/2017,376.99,73002-SECURITY-PRIV CONTRACTOR FEES,73002-SECURITY-PRIV CONTRACTOR FEES,Third Party Payments,Revenue
Walsall Council,http://opendatacommunities.org/id/metropolitan-district-council/walsall,WC87-11,31/12/2017,Economy & Environment,A F BLAKEMORE & SON LTD,06/12/2017,247.77,61002-DRY FOODS-PROVISIONS,61002-DRY FOODS-PROVISIONS,Supplies & Services,Revenue
Walsall Council,http://opendatacommunities.org/id/metropolitan-district-council/walsall,WC87-12,31/12/2017,Economy & Environment,A F BLAKEMORE & SON LTD,01/12/2017,271.02,61018-DRINKS-PROVISIONS,61018-DRINKS-PROVISIONS,Supplies & Services,Revenue
Walsall Council,http://opendatacommunities.org/id/metropolitan-district-council/walsall,WC87-13,31/12/2017,Economy & Environment,A F BLAKEMORE & SON LTD,20/12/2017,285.37,61018-DRINKS-PROVISIONS,61018-DRINKS-PROVISIONS,Supplies & Services,Revenue
Walsall Council,http://opendatacommunities.org/id/metropolitan-district-council/walsall,WC87-14,31/12/2017,Economy & Environment,A F BLAKEMORE & SON LTD,05/12/2017,294.20,61018-DRINKS-PROVISIONS,61018-DRINKS-PROVISIONS,Supplies & Services,Revenue
Walsall Council,http://opendatacommunities.org/id/metropolitan-district-council/walsall,WC87-15,31/12/2017,Adult Social Care,A F BLAKEMORE & SON LTD,20/12/2017,369.76,61016-FOOD AND BEVERAGES-PROVISIONS,61016-FOOD AND BEVERAGES-PROVISIONS,Supplies & Services,Revenue
Walsall Council,http://opendatacommunities.org/id/metropolitan-district-council/walsall,WC87-16,31/12/2017,Economy & Environment,A F BLAKEMORE & SON LTD,20/12/2017,432.22,61008-CONFECTIONERY/SNACKS-PROVISIONS,61008-CONFECTIONERY/SNACKS-PROVISIONS,Supplies & Services,Revenue
Walsall Council,http://opendatacommunities.org/id/metropolitan-district-council/walsall,WC87-17,31/12/2017,Adult Social Care,A F BLAKEMORE & SON LTD,01/12/2017,442.06,61016-FOOD AND BEVERAGES-PROVISIONS,61016-FOOD AND BEVERAGES-PROVISIONS,Supplies & Services,Revenue
Walsall Council,http://opendatacommunities.org/id/metropolitan-district-council/walsall,WC87-18,31/12/2017,Adult Social Care,A F BLAKEMORE & SON LTD,15/12/2017,669.68,61016-FOOD AND BEVERAGES-PROVISIONS,61016-FOOD AND BEVERAGES-PROVISIONS,Supplies & Services,Revenue
Walsall Council,http://opendatacommunities.org/id/metropolitan-district-council/walsall,WC87-19,31/12/2017,Economy & Environment,A F BLAKEMORE & SON LTD,01/12/2017,783.84,61008-CONFECTIONERY/SNACKS-PROVISIONS,61008-CONFECTIONERY/SNACKS-PROVISIONS,Supplies & Services,Revenue
Walsall Council,http://opendatacommunities.org/id/metropolitan-district-council/walsall,WC87-20,31/12/2017,Economy & Environment,A F BLAKEMORE & SON LTD,11/12/2017,919.62,61002-DRY FOODS-PROVISIONS,61002-DRY FOODS-PROVISIONS,Supplies & Services,Revenue
Walsall Council,http://opendatacommunities.org/id/metropolitan-district-council/walsall,WC87-21,31/12/2017,Adult Social Care,A STAR SUPPORT SERVICES LIMITED,20/12/2017,"1,682.00",73374-SUPPORTED & OTHER ACCOMMODATION,73374-SUPPORTED & OTHER ACCOMMODATION,Third Party Payments,Revenue
Walsall Council,http://opendatacommunities.org/id/metropolitan-district-council/walsall,WC87-22,31/12/2017,Childrens,REDACTED,11/12/2017,472.50,76422-DIRECT PAYMENTS TO SOCIAL SERVICES CLIENTS,76422-DIRECT PAYMENTS TO SOCIAL SERVICES CLIENTS,Transfer Payments,Revenue
Walsall Council,http://opendatacommunities.org/id/metropolitan-district-council/walsall,WC87-23,31/12/2017,Adult Social Care,ABBEY COURT NURSING & RESIDEN,18/12/2017,722.86,73373-RESIDENTIAL & NURSING CARE PLACEMENTS,73373-RESIDENTIAL & NURSING CARE PLACEMENTS,Third Party Payments,Revenue
Walsall Council,http://opendatacommunities.org/id/metropolitan-district-council/walsall,WC87-24,31/12/2017,Adult Social Care,ABBEY COURT NURSING & RESIDEN,18/12/2017,"1,066.82",73373-RESIDENTIAL & NURSING CARE PLACEMENTS,73373-RESIDENTIAL & NURSING CARE PLACEMENTS,Third Party Payments,Revenue
Walsall Council,http://opendatacommunities.org/id/metropolitan-district-council/walsall,WC87-25,31/12/2017,Adult Social Care,ABBEY COURT NURSING & RESIDEN,12/12/2017,"1,878.91",73373-RESIDENTIAL & NURSING CARE PLACEMENTS,73373-RESIDENTIAL & NURSING CARE PLACEMENTS,Third Party Payments,Revenue
Walsall Council,http://opendatacommunities.org/id/metropolitan-district-council/walsall,WC87-26,31/12/2017,Adult Social Care,ABBEY COURT NURSING & RESIDEN,12/12/2017,"2,037.15",73373-RESIDENTIAL & NURSING CARE PLACEMENTS,73373-RESIDENTIAL & NURSING CARE PLACEMENTS,Third Party Payments,Revenue
Walsall Council,http://opendatacommunities.org/id/metropolitan-district-council/walsall,WC87-27,31/12/2017,Adult Social Care,ABBEY COURT NURSING & RESIDEN,12/12/2017,"2,144.62",73373-RESIDENTIAL & NURSING CARE PLACEMENTS,73373-RESIDENTIAL & NURSING CARE PLACEMENTS,Third Party Payments,Revenue
Walsall Council,http://opendatacommunities.org/id/metropolitan-district-council/walsall,WC87-28,31/12/2017,Adult Social Care,ABBEY COURT NURSING & RESIDEN,18/12/2017,"2,214.28",73373-RESIDENTIAL & NURSING CARE PLACEMENTS,73373-RESIDENTIAL & NURSING CARE PLACEMENTS,Third Party Payments,Revenue
Walsall Council,http://opendatacommunities.org/id/metropolitan-district-council/walsall,WC87-29,31/12/2017,Childrens,ABC DAY NURSERY (WILLENHALL) LIMITED,01/12/2017,"4,536.00",66505-OTHER-GRANTS TO OTHER ORGS,66505-OTHER-GRANTS TO OTHER ORGS,Third Party Payments,Revenue
Walsall Council,http://opendatacommunities.org/id/metropolitan-district-council/walsall,WC87-30,31/12/2017,Childrens,ABC FOSTERING,28/12/2017,-514.29,74037-INDEPENDENT FOSTER CARE-OTH AGENCY PROVISION,74037-INDEPENDENT FOSTER CARE-OTH AGENCY PROVISION,Third Party Payments,Revenue
Walsall Council,http://opendatacommunities.org/id/metropolitan-district-council/walsall,WC87-31,31/12/2017,Childrens,ABC FOSTERING,04/12/2017,"2,635.20",74037-INDEPENDENT FOSTER CARE-OTH AGENCY PROVISION,74037-INDEPENDENT FOSTER CARE-OTH AGENCY PROVISION,Third Party Payments,Revenue
Walsall Council,http://opendatacommunities.org/id/metropolitan-district-council/walsall,WC87-32,31/12/2017,Childrens,ABC FOSTERING,28/12/2017,"2,635.20",74037-INDEPENDENT FOSTER CARE-OTH AGENCY PROVISION,74037-INDEPENDENT FOSTER CARE-OTH AGENCY PROVISION,Third Party Payments,Revenue
Walsall Council,http://opendatacommunities.org/id/metropolitan-district-council/walsall,WC87-33,31/12/2017,Childrens,ABC FOSTERING,04/12/2017,"2,859.48",74037-INDEPENDENT FOSTER CARE-OTH AGENCY PROVISION,74037-INDEPENDENT FOSTER CARE-OTH AGENCY PROVISION,Third Party Payments,Revenue
Walsall Council,http://opendatacommunities.org/id/metropolitan-district-council/walsall,WC87-34,31/12/2017,Childrens,ABC FOSTERING,28/12/2017,"2,859.48",74037-INDEPENDENT FOSTER CARE-OTH AGENCY PROVISION,74037-INDEPENDENT FOSTER CARE-OTH AGENCY PROVISION,Third Party Payments,Revenue
Walsall Council,http://opendatacommunities.org/id/metropolitan-district-council/walsall,WC87-35,31/12/2017,Childrens,ABC FOSTERING,04/12/2017,"2,880.00",74037-INDEPENDENT FOSTER CARE-OTH AGENCY PROVISION,74037-INDEPENDENT FOSTER CARE-OTH AGENCY PROVISION,Third Party Payments,Revenue
Walsall Council,http://opendatacommunities.org/id/metropolitan-district-council/walsall,WC87-36,31/12/2017,Childrens,ABC FOSTERING,04/12/2017,"3,042.00",74037-INDEPENDENT FOSTER CARE-OTH AGENCY PROVISION,74037-INDEPENDENT FOSTER CARE-OTH AGENCY PROVISION,Third Party Payments,Revenue
Walsall Council,http://opendatacommunities.org/id/metropolitan-district-council/walsall,WC87-37,31/12/2017,Childrens,ABC FOSTERING,28/12/2017,"3,042.00",74037-INDEPENDENT FOSTER CARE-OTH AGENCY PROVISION,74037-INDEPENDENT FOSTER CARE-OTH AGENCY PROVISION,Third Party Payments,Revenue
Walsall Council,http://opendatacommunities.org/id/metropolitan-district-council/walsall,WC87-38,31/12/2017,Childrens,ABC FOSTERING,04/12/2017,"3,182.40",74037-INDEPENDENT FOSTER CARE-OTH AGENCY PROVISION,74037-INDEPENDENT FOSTER CARE-OTH AGENCY PROVISION,Third Party Payments,Revenue
Walsall Council,http://opendatacommunities.org/id/metropolitan-district-council/walsall,WC87-39,31/12/2017,Childrens,ABC FOSTERING,28/12/2017,"3,182.40",74037-INDEPENDENT FOSTER CARE-OTH AGENCY PROVISION,74037-INDEPENDENT FOSTER CARE-OTH AGENCY PROVISION,Third Party Payments,Revenue
Walsall Council,http://opendatacommunities.org/id/metropolitan-district-council/walsall,WC87-40,31/12/2017,Adult Social Care,REDACTED,11/12/2017,"1,947.10",76422-DIRECT PAYMENTS TO SOCIAL SERVICES CLIENTS,76422-DIRECT PAYMENTS TO SOCIAL SERVICES CLIENTS,Transfer Payments,Revenue
Walsall Council,http://opendatacommunities.org/id/metropolitan-district-council/walsall,WC87-41,31/12/2017,Resources and Transformation,ABEL ALARM CO LTD,18/12/2017,788.50,73002-SECURITY-PRIV CONTRACTOR FEES,73002-SECURITY-PRIV CONTRACTOR FEES,Third Party Payments,Revenue
Walsall Council,http://opendatacommunities.org/id/metropolitan-district-council/walsall,WC87-42,31/12/2017,Adult Social Care,REDACTED,11/12/2017,"2,947.49",76422-DIRECT PAYMENTS TO SOCIAL SERVICES CLIENTS,76422-DIRECT PAYMENTS TO SOCIAL SERVICES CLIENTS,Transfer Payments,Revenue
Walsall Council,http://opendatacommunities.org/id/metropolitan-district-council/walsall,WC87-43,31/12/2017,Childrens,ABLEWELL CARS,08/12/2017,848.00,52000-WITH DRIVER-HIRE OF VEHICLES,52000-WITH DRIVER-HIRE OF VEHICLES,Transport,Revenue
Walsall Council,http://opendatacommunities.org/id/metropolitan-district-council/walsall,WC87-44,31/12/2017,Childrens,ABLEWELL CARS,08/12/2017,"1,166.00",52000-WITH DRIVER-HIRE OF VEHICLES,52000-WITH DRIVER-HIRE OF VEHICLES,Transport,Revenue
Walsall Council,http://opendatacommunities.org/id/metropolitan-district-council/walsall,WC87-45,31/12/2017,Childrens,ABU BAKR NURSERY,01/12/2017,"15,845.76",66505-OTHER-GRANTS TO OTHER ORGS,66505-OTHER-GRANTS TO OTHER ORGS,Third Party Payments,Revenue
Walsall Council,http://opendatacommunities.org/id/metropolitan-district-council/walsall,WC87-46,31/12/2017,Childrens,ABU BAKR NURSERY,01/12/2017,"32,088.00",66505-OTHER-GRANTS TO OTHER ORGS,66505-OTHER-GRANTS TO OTHER ORGS,Third Party Payments,Revenue
Walsall Council,http://opendatacommunities.org/id/metropolitan-district-council/walsall,WC87-47,31/12/2017,Economy & Environment,AC COACHING & SPORTS DEVELOPMENT LIMITED,20/12/2017,265.00,63000-PROFESSIONAL FEES AND SERVICES,63000-PROFESSIONAL FEES AND SERVICES,Supplies & Services,Revenue
Walsall Council,http://opendatacommunities.org/id/metropolitan-district-council/walsall,WC87-48,31/12/2017,Economy & Environment,AC COACHING & SPORTS DEVELOPMENT LIMITED,01/12/2017,319.00,63000-PROFESSIONAL FEES AND SERVICES,63000-PROFESSIONAL FEES AND SERVICES,Supplies & Services,Revenue
Walsall Council,http://opendatacommunities.org/id/metropolitan-district-council/walsall,WC87-49,31/12/2017,Adult Social Care,ACCORD HOUSING ASSOCIATION LTD#135,14/12/2017,259.70,73374-SUPPORTED & OTHER ACCOMMODATION,73374-SUPPORTED & OTHER ACCOMMODATION,Third Party Payments,Revenue
Walsall Council,http://opendatacommunities.org/id/metropolitan-district-council/walsall,WC87-50,31/12/2017,Adult Social Care,ACCORD HOUSING ASSOCIATION LTD#135,14/12/2017,296.80,73374-SUPPORTED & OTHER ACCOMMODATION,73374-SUPPORTED & OTHER ACCOMMODATION,Third Party Payments,Revenue
Walsall Council,http://opendatacommunities.org/id/metropolitan-district-council/walsall,WC87-51,31/12/2017,Adult Social Care,ACCORD HOUSING ASSOCIATION LTD#135,18/12/2017,476.94,73373-RESIDENTIAL & NURSING CARE PLACEMENTS,73373-RESIDENTIAL & NURSING CARE PLACEMENTS,Third Party Payments,Revenue
Walsall Council,http://opendatacommunities.org/id/metropolitan-district-council/walsall,WC87-52,31/12/2017,Adult Social Care,ACCORD HOUSING ASSOCIATION LTD#135,11/12/2017,747.75,73374-SUPPORTED & OTHER ACCOMMODATION,73374-SUPPORTED & OTHER ACCOMMODATION,Third Party Payments,Revenue
Walsall Council,http://opendatacommunities.org/id/metropolitan-district-council/walsall,WC87-53,31/12/2017,Adult Social Care,ACCORD HOUSING ASSOCIATION LTD#135,11/12/2017,755.60,73374-SUPPORTED & OTHER ACCOMMODATION,73374-SUPPORTED & OTHER ACCOMMODATION,Third Party Payments,Revenue
Walsall Council,http://opendatacommunities.org/id/metropolitan-district-council/walsall,WC87-54,31/12/2017,Adult Social Care,ACCORD HOUSING ASSOCIATION LTD#135,14/12/2017,756.84,73374-SUPPORTED & OTHER ACCOMMODATION,73374-SUPPORTED & OTHER ACCOMMODATION,Third Party Payments,Revenue
Walsall Council,http://opendatacommunities.org/id/metropolitan-district-council/walsall,WC87-55,31/12/2017,Adult Social Care,ACCORD HOUSING ASSOCIATION LTD#135,11/12/2017,826.40,73374-SUPPORTED & OTHER ACCOMMODATION,73374-SUPPORTED & OTHER ACCOMMODATION,Third Party Payments,Revenue
Walsall Council,http://opendatacommunities.org/id/metropolitan-district-council/walsall,WC87-56,31/12/2017,Adult Social Care,ACCORD HOUSING ASSOCIATION LTD#135,22/12/2017,943.12,73374-SUPPORTED & OTHER ACCOMMODATION,73374-SUPPORTED & OTHER ACCOMMODATION,Third Party Payments,Revenue
Walsall Council,http://opendatacommunities.org/id/metropolitan-district-council/walsall,WC87-57,31/12/2017,Adult Social Care,ACCORD HOUSING ASSOCIATION LTD#135,11/12/2017,991.70,73374-SUPPORTED & OTHER ACCOMMODATION,73374-SUPPORTED & OTHER ACCOMMODATION,Third Party Payments,Revenue
Walsall Council,http://opendatacommunities.org/id/metropolitan-district-council/walsall,WC87-58,31/12/2017,Adult Social Care,ACCORD HOUSING ASSOCIATION LTD#135,11/12/2017,991.70,73374-SUPPORTED & OTHER ACCOMMODATION,73374-SUPPORTED & OTHER ACCOMMODATION,Third Party Payments,Revenue
Walsall Council,http://opendatacommunities.org/id/metropolitan-district-council/walsall,WC87-59,31/12/2017,Adult Social Care,ACCORD HOUSING ASSOCIATION LTD#135,11/12/2017,"1,086.20",73374-SUPPORTED & OTHER ACCOMMODATION,73374-SUPPORTED & OTHER ACCOMMODATION,Third Party Payments,Revenue
Walsall Council,http://opendatacommunities.org/id/metropolitan-district-council/walsall,WC87-60,31/12/2017,Adult Social Care,ACCORD HOUSING ASSOCIATION LTD#135,21/12/2017,"1,259.28",73374-SUPPORTED & OTHER ACCOMMODATION,73374-SUPPORTED & OTHER ACCOMMODATION,Third Party Payments,Revenue
Walsall Council,http://opendatacommunities.org/id/metropolitan-district-council/walsall,WC87-61,31/12/2017,Adult Social Care,ACCORD HOUSING ASSOCIATION LTD#135,11/12/2017,"1,416.75",73374-SUPPORTED & OTHER ACCOMMODATION,73374-SUPPORTED & OTHER ACCOMMODATION,Third Party Payments,Revenue
Walsall Council,http://opendatacommunities.org/id/metropolitan-district-council/walsall,WC87-62,31/12/2017,Adult Social Care,ACCORD HOUSING ASSOCIATION LTD#135,21/12/2017,"1,529.15",73374-SUPPORTED & OTHER ACCOMMODATION,73374-SUPPORTED & OTHER ACCOMMODATION,Third Party Payments,Revenue
Walsall Council,http://opendatacommunities.org/id/metropolitan-district-council/walsall,WC87-63,31/12/2017,Adult Social Care,ACCORD HOUSING ASSOCIATION LTD#135,11/12/2017,"1,534.80",73374-SUPPORTED & OTHER ACCOMMODATION,73374-SUPPORTED & OTHER ACCOMMODATION,Third Party Payments,Revenue
Walsall Council,http://opendatacommunities.org/id/metropolitan-district-council/walsall,WC87-64,31/12/2017,Adult Social Care,ACCORD HOUSING ASSOCIATION LTD#135,11/12/2017,"1,652.85",73374-SUPPORTED & OTHER ACCOMMODATION,73374-SUPPORTED & OTHER ACCOMMODATION,Third Party Payments,Revenue
Walsall Council,http://opendatacommunities.org/id/metropolitan-district-council/walsall,WC87-65,31/12/2017,Adult Social Care,ACCORD HOUSING ASSOCIATION LTD#135,11/12/2017,"1,676.45",73374-SUPPORTED & OTHER ACCOMMODATION,73374-SUPPORTED & OTHER ACCOMMODATION,Third Party Payments,Revenue
Walsall Council,http://opendatacommunities.org/id/metropolitan-district-council/walsall,WC87-66,31/12/2017,Adult Social Care,ACCORD HOUSING ASSOCIATION LTD#135,11/12/2017,"1,959.80",73374-SUPPORTED & OTHER ACCOMMODATION,73374-SUPPORTED & OTHER ACCOMMODATION,Third Party Payments,Revenue
Walsall Council,http://opendatacommunities.org/id/metropolitan-district-council/walsall,WC87-67,31/12/2017,Childrens,ACCORD HOUSING ASSOCIATION LTD#135,13/12/2017,"4,730.80",76010-ACCOMMODATION AND RELATED COSTS-ASSISTANCE TO S/S CLIENTS,76010-ACCOMMODATION AND RELATED COSTS-ASSISTANCE TO S/S CLIENTS,Transfer Payments,Revenue
Walsall Council,http://opendatacommunities.org/id/metropolitan-district-council/walsall,WC87-68,31/12/2017,Adult Social Care,ACCORD HOUSING ASSOCIATION LTD#135,06/12/2017,"4,766.40",73373-RESIDENTIAL & NURSING CARE PLACEMENTS,73373-RESIDENTIAL & NURSING CARE PLACEMENTS,Third Party Payments,Revenue
Walsall Council,http://opendatacommunities.org/id/metropolitan-district-council/walsall,WC87-69,31/12/2017,Childrens,ACCORD HOUSING ASSOCIATION LTD#135,13/12/2017,"5,158.71",74036-EXTERNAL RESIDENTIAL CARE-OTH AGENCY PROVISION,74036-EXTERNAL RESIDENTIAL CARE-OTH AGENCY PROVISION,Third Party Payments,Revenue
Walsall Council,http://opendatacommunities.org/id/metropolitan-district-council/walsall,WC87-70,31/12/2017,Childrens,ACCORD HOUSING ASSOCIATION LTD#135,11/12/2017,"6,655.50",63102-CONSULTANTS FEES - CORPORATE,63102-CONSULTANTS FEES - CORPORATE,Supplies & Services,Revenue
Walsall Council,http://opendatacommunities.org/id/metropolitan-district-council/walsall,WC87-71,31/12/2017,Adult Social Care,ACCORD HOUSING ASSOCIATION LTD#135,08/12/2017,"29,330.75",73365-BLOCK GROSS-SUPPORTING PEOPLE,73365-BLOCK GROSS-SUPPORTING PEOPLE,Third Party Payments,Revenue
Walsall Council,http://opendatacommunities.org/id/metropolitan-district-council/walsall,WC87-72,31/12/2017,Adult Social Care,ACCORD HOUSING ASSOCIATION LTD#135,06/12/2017,"35,213.66",73372-DOMICILIARY CARE,73372-DOMICILIARY CARE,Third Party Payments,Revenue
Walsall Council,http://opendatacommunities.org/id/metropolitan-district-council/walsall,WC87-73,31/12/2017,Economy & Environment,ACCORD HOUSING ASSOCIATION LTD#135,06/12/2017,"165,869.38",66500-GRANTS TO OTHER ORGS,66500-GRANTS TO OTHER ORGS,Third Party Payments,Revenue
Walsall Council,http://opendatacommunities.org/id/metropolitan-district-council/walsall,WC87-74,31/12/2017,Adult Social Care,ACE CARE AGENCY,14/12/2017,756.56,73372-DOMICILIARY CARE,73372-DOMICILIARY CARE,Third Party Payments,Revenue
Walsall Council,http://opendatacommunities.org/id/metropolitan-district-council/walsall,WC87-75,31/12/2017,Adult Social Care,ACE CARE AGENCY,11/12/2017,990.00,73372-DOMICILIARY CARE,73372-DOMICILIARY CARE,Third Party Payments,Revenue
Walsall Council,http://opendatacommunities.org/id/metropolitan-district-council/walsall,WC87-76,31/12/2017,Childrens,ACE RADIO CARS,08/12/2017,"2,807.66",52000-WITH DRIVER-HIRE OF VEHICLES,52000-WITH DRIVER-HIRE OF VEHICLES,Transport,Revenue
Walsall Council,http://opendatacommunities.org/id/metropolitan-district-council/walsall,WC87-77,31/12/2017,Adult Social Care,ACEPAY LTD (COTTAGE NUR HOME),12/12/2017,"1,833.42",73373-RESIDENTIAL & NURSING CARE PLACEMENTS,73373-RESIDENTIAL & NURSING CARE PLACEMENTS,Third Party Payments,Revenue
Walsall Council,http://opendatacommunities.org/id/metropolitan-district-council/walsall,WC87-78,31/12/2017,Adult Social Care,ACEPAY LTD (COTTAGE NUR HOME),12/12/2017,"2,214.28",73373-RESIDENTIAL & NURSING CARE PLACEMENTS,73373-RESIDENTIAL & NURSING CARE PLACEMENTS,Third Party Payments,Revenue
Walsall Council,http://opendatacommunities.org/id/metropolitan-district-council/walsall,WC87-79,31/12/2017,Adult Social Care,ACEPAY LTD (COTTAGE NUR HOME),12/12/2017,"2,214.28",73373-RESIDENTIAL & NURSING CARE PLACEMENTS,73373-RESIDENTIAL & NURSING CARE PLACEMENTS,Third Party Payments,Revenue
Walsall Council,http://opendatacommunities.org/id/metropolitan-district-council/walsall,WC87-80,31/12/2017,Adult Social Care,ACEPAY LTD (COTTAGE NUR HOME),12/12/2017,"2,214.28",73373-RESIDENTIAL & NURSING CARE PLACEMENTS,73373-RESIDENTIAL & NURSING CARE PLACEMENTS,Third Party Payments,Revenue
Walsall Council,http://opendatacommunities.org/id/metropolitan-district-council/walsall,WC87-81,31/12/2017,Adult Social Care,ACEPAY LTD (COTTAGE NUR HOME),12/12/2017,"2,214.29",73373-RESIDENTIAL & NURSING CARE PLACEMENTS,73373-RESIDENTIAL & NURSING CARE PLACEMENTS,Third Party Payments,Revenue
Walsall Council,http://opendatacommunities.org/id/metropolitan-district-council/walsall,WC87-82,31/12/2017,Childrens,ACORN ABA LIMITED,08/12/2017,"1,180.80",66502-TOP UP FUNDING -GRANTS TO SCHOOLS,66502-TOP UP FUNDING -GRANTS TO SCHOOLS,Third Party Payments,Revenue
Walsall Council,http://opendatacommunities.org/id/metropolitan-district-council/walsall,WC87-83,31/12/2017,Childrens,ACORN CARE & EDUCATION LTD (SALES),01/12/2017,"12,650.00",66502-TOP UP FUNDING -GRANTS TO SCHOOLS,66502-TOP UP FUNDING -GRANTS TO SCHOOLS,Third Party Payments,Revenue
Walsall Council,http://opendatacommunities.org/id/metropolitan-district-council/walsall,WC87-84,31/12/2017,Childrens,ACORN CARE & EDUCATION LTD (SALES),13/12/2017,"13,410.49",66502-TOP UP FUNDING -GRANTS TO SCHOOLS,66502-TOP UP FUNDING -GRANTS TO SCHOOLS,Third Party Payments,Revenue
Walsall Council,http://opendatacommunities.org/id/metropolitan-district-council/walsall,WC87-85,31/12/2017,Childrens,ACORN CHILDREN'S HOME,04/12/2017,"4,885.71",74036-EXTERNAL RESIDENTIAL CARE-OTH AGENCY PROVISION,74036-EXTERNAL RESIDENTIAL CARE-OTH AGENCY PROVISION,Third Party Payments,Revenue
Walsall Council,http://opendatacommunities.org/id/metropolitan-district-council/walsall,WC87-86,31/12/2017,Adult Social Care,ACORN REST HOME,18/12/2017,"1,656.00",73373-RESIDENTIAL & NURSING CARE PLACEMENTS,73373-RESIDENTIAL & NURSING CARE PLACEMENTS,Third Party Payments,Revenue
Walsall Council,http://opendatacommunities.org/id/metropolitan-district-council/walsall,WC87-87,31/12/2017,Adult Social Care,ACORN REST HOME,06/12/2017,"2,140.00",73373-RESIDENTIAL & NURSING CARE PLACEMENTS,73373-RESIDENTIAL & NURSING CARE PLACEMENTS,Third Party Payments,Revenue
Walsall Council,http://opendatacommunities.org/id/metropolitan-district-council/walsall,WC87-88,31/12/2017,Adult Social Care,ACORN REST HOME,12/12/2017,"2,140.00",73373-RESIDENTIAL & NURSING CARE PLACEMENTS,73373-RESIDENTIAL & NURSING CARE PLACEMENTS,Third Party Payments,Revenue
Walsall Council,http://opendatacommunities.org/id/metropolitan-district-council/walsall,WC87-89,31/12/2017,Childrens,ACPAS LIMITED,18/12/2017,278.44,73014-LEGAL FEES-PRIV CONTRACTOR FEES,73014-LEGAL FEES-PRIV CONTRACTOR FEES,Third Party Payments,Revenue
Walsall Council,http://opendatacommunities.org/id/metropolitan-district-council/walsall,WC87-90,31/12/2017,Childrens,ACTION FOR CHILDREN,08/12/2017,825.00,63000-PROFESSIONAL FEES AND SERVICES,63000-PROFESSIONAL FEES AND SERVICES,Supplies & Services,Revenue
Walsall Council,http://opendatacommunities.org/id/metropolitan-district-council/walsall,WC87-91,31/12/2017,Economy & Environment,ACTION MIDLANDS LTD,13/12/2017,150.00,63000-PROFESSIONAL FEES AND SERVICES,63000-PROFESSIONAL FEES AND SERVICES,Supplies & Services,Revenue
Walsall Council,http://opendatacommunities.org/id/metropolitan-district-council/walsall,WC87-92,31/12/2017,Economy & Environment,ACTION MIDLANDS LTD,13/12/2017,150.00,63000-PROFESSIONAL FEES AND SERVICES,63000-PROFESSIONAL FEES AND SERVICES,Supplies & Services,Revenue
Walsall Council,http://opendatacommunities.org/id/metropolitan-district-council/walsall,WC87-93,31/12/2017,Economy & Environment,ACTION MIDLANDS LTD,13/12/2017,150.00,63000-PROFESSIONAL FEES AND SERVICES,63000-PROFESSIONAL FEES AND SERVICES,Supplies & Services,Revenue
Walsall Council,http://opendatacommunities.org/id/metropolitan-district-council/walsall,WC87-94,31/12/2017,Economy & Environment,ACTION MIDLANDS LTD,13/12/2017,150.00,63000-PROFESSIONAL FEES AND SERVICES,63000-PROFESSIONAL FEES AND SERVICES,Supplies & Services,Revenue
Walsall Council,http://opendatacommunities.org/id/metropolitan-district-council/walsall,WC87-95,31/12/2017,Economy & Environment,ACTION MIDLANDS LTD,21/12/2017,450.00,63000-PROFESSIONAL FEES AND SERVICES,63000-PROFESSIONAL FEES AND SERVICES,Supplies & Services,Revenue
Walsall Council,http://opendatacommunities.org/id/metropolitan-district-council/walsall,WC87-96,31/12/2017,Economy & Environment,ACTION MIDLANDS LTD,21/12/2017,450.00,63000-PROFESSIONAL FEES AND SERVICES,63000-PROFESSIONAL FEES AND SERVICES,Supplies & Services,Revenue
Walsall Council,http://opendatacommunities.org/id/metropolitan-district-council/walsall,WC87-97,31/12/2017,Adult Social Care,ACTION ON HEARING LOSS,05/12/2017,"2,118.39",60000-FURNITURE & EQUIPMENT,60000-FURNITURE & EQUIPMENT,Supplies & Services,Revenue
Walsall Council,http://opendatacommunities.org/id/metropolitan-district-council/walsall,WC87-98,31/12/2017,Adult Social Care,ACTION ON HEARING LOSS,22/12/2017,"2,863.30",60000-FURNITURE & EQUIPMENT,60000-FURNITURE & EQUIPMENT,Supplies & Services,Revenue
Walsall Council,http://opendatacommunities.org/id/metropolitan-district-council/walsall,WC87-99,31/12/2017,Childrens,ACTIVATING CREATIVE TALENT CIC,05/12/2017,"2,496.43",66500-GRANTS TO OTHER ORGS,66500-GRANTS TO OTHER ORGS,Third Party Payments,Revenue
Walsall Council,http://opendatacommunities.org/id/metropolitan-district-council/walsall,WC87-100,31/12/2017,Childrens,ACTIVATING CREATIVE TALENT CIC,05/12/2017,"2,496.43",66500-GRANTS TO OTHER ORGS,66500-GRANTS TO OTHER ORGS,Third Party Payments,Revenue
Walsall Council,http://opendatacommunities.org/id/metropolitan-district-council/walsall,WC87-101,31/12/2017,Childrens,ACTIVATING CREATIVE TALENT CIC,05/12/2017,"2,496.43",66500-GRANTS TO OTHER ORGS,66500-GRANTS TO OTHER ORGS,Third Party Payments,Revenue
Walsall Council,http://opendatacommunities.org/id/metropolitan-district-council/walsall,WC87-102,31/12/2017,Adult Social Care,ACTON BANKS LTD,11/12/2017,813.66,34305-AGENCY STAFF-EMPLOYEES,34305-AGENCY STAFF-EMPLOYEES,Employees,Revenue
Walsall Council,http://opendatacommunities.org/id/metropolitan-district-council/walsall,WC87-103,31/12/2017,Adult Social Care,ACTON BANKS LTD,14/12/2017,933.99,34305-AGENCY STAFF-EMPLOYEES,34305-AGENCY STAFF-EMPLOYEES,Employees,Revenue
Walsall Council,http://opendatacommunities.org/id/metropolitan-district-council/walsall,WC87-104,31/12/2017,Adult Social Care,ACTON BANKS LTD,15/12/2017,"2,885.94",73025-PROFESSIONAL SERVICES-PRIV CONTRACTOR & OTHER AGENCIES,73025-PROFESSIONAL SERVICES-PRIV CONTRACTOR & OTHER AGENCIES,Third Party Payments,Revenue
Walsall Council,http://opendatacommunities.org/id/metropolitan-district-council/walsall,WC87-105,31/12/2017,Adult Social Care,ACTON BANKS LTD,15/12/2017,"3,105.09",73019-PSE'S-PRIV CONTRACTOR FEES,73019-PSE'S-PRIV CONTRACTOR FEES,Third Party Payments,Revenue
Walsall Council,http://opendatacommunities.org/id/metropolitan-district-council/walsall,WC87-106,31/12/2017,Adult Social Care,ACTON BANKS LTD,18/12/2017,"3,202.35",73025-PROFESSIONAL SERVICES-PRIV CONTRACTOR & OTHER AGENCIES,73025-PROFESSIONAL SERVICES-PRIV CONTRACTOR & OTHER AGENCIES,Third Party Payments,Revenue
Walsall Council,http://opendatacommunities.org/id/metropolitan-district-council/walsall,WC87-107,31/12/2017,Adult Social Care,ACTON BANKS LTD,15/12/2017,"4,018.05",73019-PSE'S-PRIV CONTRACTOR FEES,73019-PSE'S-PRIV CONTRACTOR FEES,Third Party Payments,Revenue
Walsall Council,http://opendatacommunities.org/id/metropolitan-district-council/walsall,WC87-108,31/12/2017,Adult Social Care,REDACTED,11/12/2017,542.30,76422-DIRECT PAYMENTS TO SOCIAL SERVICES CLIENTS,76422-DIRECT PAYMENTS TO SOCIAL SERVICES CLIENTS,Transfer Payments,Revenue
Walsall Council,http://opendatacommunities.org/id/metropolitan-district-council/walsall,WC87-109,31/12/2017,Economy & Environment,REDACTED,15/12/2017,250.00,60500-GENERAL MATERIALS,60500-GENERAL MATERIALS,Supplies & Services,Revenue
Walsall Council,http://opendatacommunities.org/id/metropolitan-district-council/walsall,WC87-110,31/12/2017,Adult Social Care,REDACTED,11/12/2017,560.75,76422-DIRECT PAYMENTS TO SOCIAL SERVICES CLIENTS,76422-DIRECT PAYMENTS TO SOCIAL SERVICES CLIENTS,Transfer Payments,Revenue
Walsall Council,http://opendatacommunities.org/id/metropolitan-district-council/walsall,WC87-111,31/12/2017,Resources and Transformation,ADELIE FOODS LTD,20/12/2017,778.66,61305-CATERING,61305-CATERING,Supplies & Services,Revenue
Walsall Council,http://opendatacommunities.org/id/metropolitan-district-council/walsall,WC87-112,31/12/2017,Resources and Transformation,ADELIE FOODS LTD,20/12/2017,822.31,61305-CATERING,61305-CATERING,Supplies & Services,Revenue
Walsall Council,http://opendatacommunities.org/id/metropolitan-district-council/walsall,WC87-113,31/12/2017,Resources and Transformation,ADELIE FOODS LTD,14/12/2017,931.49,61305-CATERING,61305-CATERING,Supplies & Services,Revenue
Walsall Council,http://opendatacommunities.org/id/metropolitan-district-council/walsall,WC87-114,31/12/2017,Resources and Transformation,ADELIE FOODS LTD,14/12/2017,"1,023.65",61305-CATERING,61305-CATERING,Supplies & Services,Revenue
Walsall Council,http://opendatacommunities.org/id/metropolitan-district-council/walsall,WC87-115,31/12/2017,Adult Social Care,REDACTED,11/12/2017,"1,205.00",76422-DIRECT PAYMENTS TO SOCIAL SERVICES CLIENTS,76422-DIRECT PAYMENTS TO SOCIAL SERVICES CLIENTS,Transfer Payments,Revenue
Walsall Council,http://opendatacommunities.org/id/metropolitan-district-council/walsall,WC87-116,31/12/2017,Childrens,ADMIRAL SELF STORAGE LTD,07/12/2017,228.78,63000-PROFESSIONAL FEES AND SERVICES,63000-PROFESSIONAL FEES AND SERVICES,Supplies & Services,Revenue
Walsall Council,http://opendatacommunities.org/id/metropolitan-district-council/walsall,WC87-117,31/12/2017,Childrens,REDACTED,18/12/2017,333.12,74510-RESIDENTS ORDERS,74510-RESIDENTS ORDERS,Third Party Payments,Revenue
Walsall Council,http://opendatacommunities.org/id/metropolitan-district-council/walsall,WC87-118,31/12/2017,Childrens,REDACTED,18/12/2017,361.12,74510-RESIDENTS ORDERS,74510-RESIDENTS ORDERS,Third Party Payments,Revenue
Walsall Council,http://opendatacommunities.org/id/metropolitan-district-council/walsall,WC87-119,31/12/2017,Economy & Environment,ADS ELECTRICAL & HIGHWAY SERVICES LTD,01/12/2017,"4,366.00",60534-VEHICLE TESTING STATION-MATERIALS,60534-VEHICLE TESTING STATION-MATERIALS,Supplies & Services,Revenue
Walsall Council,http://opendatacommunities.org/id/metropolitan-district-council/walsall,WC87-120,31/12/2017,Adult Social Care,ADVANCE HEALTH CARE (UK) LTD,20/12/2017,273.00,73019-PSE'S-PRIV CONTRACTOR FEES,73019-PSE'S-PRIV CONTRACTOR FEES,Third Party Payments,Revenue
Walsall Council,http://opendatacommunities.org/id/metropolitan-district-council/walsall,WC87-121,31/12/2017,Adult Social Care,ADVANCE HEALTH CARE (UK) LTD,08/12/2017,288.75,73025-PROFESSIONAL SERVICES-PRIV CONTRACTOR & OTHER AGENCIES,73025-PROFESSIONAL SERVICES-PRIV CONTRACTOR & OTHER AGENCIES,Third Party Payments,Revenue
Walsall Council,http://opendatacommunities.org/id/metropolitan-district-council/walsall,WC87-122,31/12/2017,Adult Social Care,ADVANCE HEALTH CARE (UK) LTD,13/12/2017,384.93,73025-PROFESSIONAL SERVICES-PRIV CONTRACTOR & OTHER AGENCIES,73025-PROFESSIONAL SERVICES-PRIV CONTRACTOR & OTHER AGENCIES,Third Party Payments,Revenue
Walsall Council,http://opendatacommunities.org/id/metropolitan-district-council/walsall,WC87-123,31/12/2017,Adult Social Care,ADVANCE HEALTH CARE (UK) LTD,06/12/2017,"78,374.47",73372-DOMICILIARY CARE,73372-DOMICILIARY CARE,Third Party Payments,Revenue
Walsall Council,http://opendatacommunities.org/id/metropolitan-district-council/walsall,WC87-124,31/12/2017,Resources and Transformation,ADVANCED DIGITAL IMAGING,13/12/2017,536.00,62008-OUTWORK-PRINT ROOM,62008-OUTWORK-PRINT ROOM,Supplies & Services,Revenue
Walsall Council,http://opendatacommunities.org/id/metropolitan-district-council/walsall,WC87-125,31/12/2017,Childrens,ADVENTURELAND DAY NURSERY,01/12/2017,"4,368.00",66505-OTHER-GRANTS TO OTHER ORGS,66505-OTHER-GRANTS TO OTHER ORGS,Third Party Payments,Revenue
Walsall Council,http://opendatacommunities.org/id/metropolitan-district-council/walsall,WC87-126,31/12/2017,Childrens,ADVENTURELAND DAY NURSERY,01/12/2017,"7,042.40",66505-OTHER-GRANTS TO OTHER ORGS,66505-OTHER-GRANTS TO OTHER ORGS,Third Party Payments,Revenue
Walsall Council,http://opendatacommunities.org/id/metropolitan-district-council/walsall,WC87-127,31/12/2017,Adult Social Care,ADVOCACY MATTERS LIMITED,05/12/2017,"13,819.67",70000-SOCIAL SERVICES-FEES TO VOLUNTARY BODIES,70000-SOCIAL SERVICES-FEES TO VOLUNTARY BODIES,Third Party Payments,Revenue
Walsall Council,http://opendatacommunities.org/id/metropolitan-district-council/walsall,WC87-128,31/12/2017,Childrens,AFTER ADOPTION,18/12/2017,"5,000.00",63000-PROFESSIONAL FEES AND SERVICES,63000-PROFESSIONAL FEES AND SERVICES,Supplies & Services,Revenue
Walsall Council,http://opendatacommunities.org/id/metropolitan-district-council/walsall,WC87-129,31/12/2017,Adult Social Care,AGINCARE UK LTD,20/12/2017,"1,559.04",73372-DOMICILIARY CARE,73372-DOMICILIARY CARE,Third Party Payments,Revenue
Walsall Council,http://opendatacommunities.org/id/metropolitan-district-council/walsall,WC87-130,31/12/2017,Economy & Environment,AGS AUTOMATIC DOORS LTD,04/12/2017,425.00,"40000-REPAIRS,ALTERATIONS & MAINTENANCE-PREM","40000-REPAIRS,ALTERATIONS & MAINTENANCE-PREM",Premises,Revenue
Walsall Council,http://opendatacommunities.org/id/metropolitan-district-council/walsall,WC87-131,31/12/2017,Adult Social Care,REDACTED,11/12/2017,"2,352.50",76422-DIRECT PAYMENTS TO SOCIAL SERVICES CLIENTS,76422-DIRECT PAYMENTS TO SOCIAL SERVICES CLIENTS,Transfer Payments,Revenue
Walsall Council,http://opendatacommunities.org/id/metropolitan-district-council/walsall,WC87-132,31/12/2017,Economy & Environment,AIRQUEE,13/12/2017,"2,703.00",60000-FURNITURE & EQUIPMENT,60000-FURNITURE & EQUIPMENT,Supplies & Services,Revenue
Walsall Council,http://opendatacommunities.org/id/metropolitan-district-council/walsall,WC87-133,31/12/2017,Adult Social Care,REDACTED,11/12/2017,"1,596.25",76422-DIRECT PAYMENTS TO SOCIAL SERVICES CLIENTS,76422-DIRECT PAYMENTS TO SOCIAL SERVICES CLIENTS,Transfer Payments,Revenue
Walsall Council,http://opendatacommunities.org/id/metropolitan-district-council/walsall,WC87-134,31/12/2017,Childrens,AJK TRAVEL,14/12/2017,"28,409.92",52000-WITH DRIVER-HIRE OF VEHICLES,52000-WITH DRIVER-HIRE OF VEHICLES,Transport,Revenue
Walsall Council,http://opendatacommunities.org/id/metropolitan-district-council/walsall,WC87-135,31/12/2017,Economy & Environment,ALADDINS EDUCATION LTD,18/12/2017,"4,960.00",66500-GRANTS TO OTHER ORGS,66500-GRANTS TO OTHER ORGS,Third Party Payments,Revenue
Walsall Council,http://opendatacommunities.org/id/metropolitan-district-council/walsall,WC87-136,31/12/2017,Childrens,ALAN CRITCHLEY ASSOCIATES,22/12/2017,"2,730.00",63000-PROFESSIONAL FEES AND SERVICES,63000-PROFESSIONAL FEES AND SERVICES,Supplies & Services,Revenue
Walsall Council,http://opendatacommunities.org/id/metropolitan-district-council/walsall,WC87-137,31/12/2017,Childrens,ALAN CRITCHLEY ASSOCIATES,06/12/2017,"4,526.00",63102-CONSULTANTS FEES - CORPORATE,63102-CONSULTANTS FEES - CORPORATE,Supplies & Services,Revenue
Walsall Council,http://opendatacommunities.org/id/metropolitan-district-council/walsall,WC87-138,31/12/2017,Adult Social Care,REDACTED,11/12/2017,910.00,76422-DIRECT PAYMENTS TO SOCIAL SERVICES CLIENTS,76422-DIRECT PAYMENTS TO SOCIAL SERVICES CLIENTS,Transfer Payments,Revenue
Walsall Council,http://opendatacommunities.org/id/metropolitan-district-council/walsall,WC87-139,31/12/2017,Childrens,ALBERT PRITCHARD INFANT AND WOOD GREEN JUNIOR FEDERATED SCHOOLS,05/12/2017,600.00,77300-ISB-FORMULA ALLOCATION,77300-ISB-FORMULA ALLOCATION,Transfer Payments,Revenue
Walsall Council,http://opendatacommunities.org/id/metropolitan-district-council/walsall,WC87-140,31/12/2017,Childrens,ALBRIGHTON CARE LTD,04/12/2017,"9,980.00",74036-EXTERNAL RESIDENTIAL CARE-OTH AGENCY PROVISION,74036-EXTERNAL RESIDENTIAL CARE-OTH AGENCY PROVISION,Third Party Payments,Revenue
Walsall Council,http://opendatacommunities.org/id/metropolitan-district-council/walsall,WC87-141,31/12/2017,Childrens,ALBRIGHTON CARE LTD,28/12/2017,"9,980.00",74036-EXTERNAL RESIDENTIAL CARE-OTH AGENCY PROVISION,74036-EXTERNAL RESIDENTIAL CARE-OTH AGENCY PROVISION,Third Party Payments,Revenue
Walsall Council,http://opendatacommunities.org/id/metropolitan-district-council/walsall,WC87-142,31/12/2017,Childrens,ALBRIGHTON CARE LTD,04/12/2017,"15,000.00",74036-EXTERNAL RESIDENTIAL CARE-OTH AGENCY PROVISION,74036-EXTERNAL RESIDENTIAL CARE-OTH AGENCY PROVISION,Third Party Payments,Revenue
Walsall Council,http://opendatacommunities.org/id/metropolitan-district-council/walsall,WC87-143,31/12/2017,Childrens,ALBRIGHTON CARE LTD,28/12/2017,"15,000.00",74036-EXTERNAL RESIDENTIAL CARE-OTH AGENCY PROVISION,74036-EXTERNAL RESIDENTIAL CARE-OTH AGENCY PROVISION,Third Party Payments,Revenue
Walsall Council,http://opendatacommunities.org/id/metropolitan-district-council/walsall,WC87-144,31/12/2017,Economy & Environment,ALCIUM SOFTWARE,01/12/2017,"9,405.00",63124-FEES & LICENCES-SERVICES,63124-FEES & LICENCES-SERVICES,Supplies & Services,Revenue
Walsall Council,http://opendatacommunities.org/id/metropolitan-district-council/walsall,WC87-145,31/12/2017,Adult Social Care,ALDERGROVE MANOR LTD,22/12/2017,"1,839.68",73373-RESIDENTIAL & NURSING CARE PLACEMENTS,73373-RESIDENTIAL & NURSING CARE PLACEMENTS,Third Party Payments,Revenue
Walsall Council,http://opendatacommunities.org/id/metropolitan-district-council/walsall,WC87-146,31/12/2017,Childrens,ALDRIDGE SCHOOL A SCIENCE COLLEGE.,05/12/2017,600.00,77300-ISB-FORMULA ALLOCATION,77300-ISB-FORMULA ALLOCATION,Transfer Payments,Revenue
Walsall Council,http://opendatacommunities.org/id/metropolitan-district-council/walsall,WC87-147,31/12/2017,Childrens,ALDRIDGE SCHOOL A SCIENCE COLLEGE.,14/12/2017,964.88,66502-TOP UP FUNDING -GRANTS TO SCHOOLS,66502-TOP UP FUNDING -GRANTS TO SCHOOLS,Third Party Payments,Revenue
Walsall Council,http://opendatacommunities.org/id/metropolitan-district-council/walsall,WC87-148,31/12/2017,Childrens,ALDRIDGE SCHOOL A SCIENCE COLLEGE.,05/12/2017,"2,700.00",77300-ISB-FORMULA ALLOCATION,77300-ISB-FORMULA ALLOCATION,Transfer Payments,Revenue
Walsall Council,http://opendatacommunities.org/id/metropolitan-district-council/walsall,WC87-149,31/12/2017,Childrens,ALDRIDGE SCHOOL A SCIENCE COLLEGE.,14/12/2017,"31,835.12",66502-TOP UP FUNDING -GRANTS TO SCHOOLS,66502-TOP UP FUNDING -GRANTS TO SCHOOLS,Third Party Payments,Revenue
Walsall Council,http://opendatacommunities.org/id/metropolitan-district-council/walsall,WC87-150,31/12/2017,Adult Social Care,REDACTED,11/12/2017,"1,505.00",76422-DIRECT PAYMENTS TO SOCIAL SERVICES CLIENTS,76422-DIRECT PAYMENTS TO SOCIAL SERVICES CLIENTS,Transfer Payments,Revenue
Walsall Council,http://opendatacommunities.org/id/metropolitan-district-council/walsall,WC87-151,31/12/2017,Adult Social Care,ALEXANDRA HOUSE CARE SERVICES LTD T/A STONEBRIDGE NURSING HOME,12/12/2017,"7,117.44",73373-RESIDENTIAL & NURSING CARE PLACEMENTS,73373-RESIDENTIAL & NURSING CARE PLACEMENTS,Third Party Payments,Revenue
Walsall Council,http://opendatacommunities.org/id/metropolitan-district-council/walsall,WC87-152,31/12/2017,Childrens,REDACTED,11/12/2017,728.33,76422-DIRECT PAYMENTS TO SOCIAL SERVICES CLIENTS,76422-DIRECT PAYMENTS TO SOCIAL SERVICES CLIENTS,Transfer Payments,Revenue
Walsall Council,http://opendatacommunities.org/id/metropolitan-district-council/walsall,WC87-153,31/12/2017,Adult Social Care,REDACTED,11/12/2017,"2,166.50",76422-DIRECT PAYMENTS TO SOCIAL SERVICES CLIENTS,76422-DIRECT PAYMENTS TO SOCIAL SERVICES CLIENTS,Transfer Payments,Revenue
Walsall Council,http://opendatacommunities.org/id/metropolitan-district-council/walsall,WC87-154,31/12/2017,Childrens,REDACTED,11/12/2017,360.00,76422-DIRECT PAYMENTS TO SOCIAL SERVICES CLIENTS,76422-DIRECT PAYMENTS TO SOCIAL SERVICES CLIENTS,Transfer Payments,Revenue
Walsall Council,http://opendatacommunities.org/id/metropolitan-district-council/walsall,WC87-155,31/12/2017,Adult Social Care,REDACTED,11/12/2017,"1,122.50",76422-DIRECT PAYMENTS TO SOCIAL SERVICES CLIENTS,76422-DIRECT PAYMENTS TO SOCIAL SERVICES CLIENTS,Transfer Payments,Revenue
Walsall Council,http://opendatacommunities.org/id/metropolitan-district-council/walsall,WC87-156,31/12/2017,Adult Social Care,REDACTED,11/12/2017,765.00,76422-DIRECT PAYMENTS TO SOCIAL SERVICES CLIENTS,76422-DIRECT PAYMENTS TO SOCIAL SERVICES CLIENTS,Transfer Payments,Revenue
Walsall Council,http://opendatacommunities.org/id/metropolitan-district-council/walsall,WC87-157,31/12/2017,Economy & Environment,REDACTED,01/12/2017,300.00,63253-PAYMENT TO CONTRACTOR,63253-PAYMENT TO CONTRACTOR,Third Party Payments,Revenue
Walsall Council,http://opendatacommunities.org/id/metropolitan-district-council/walsall,WC87-158,31/12/2017,Economy & Environment,REDACTED,18/12/2017,500.00,63253-PAYMENT TO CONTRACTOR,63253-PAYMENT TO CONTRACTOR,Third Party Payments,Revenue
Walsall Council,http://opendatacommunities.org/id/metropolitan-district-council/walsall,WC87-159,31/12/2017,Economy & Environment,REDACTED,01/12/2017,900.00,63253-PAYMENT TO CONTRACTOR,63253-PAYMENT TO CONTRACTOR,Third Party Payments,Revenue
Walsall Council,http://opendatacommunities.org/id/metropolitan-district-council/walsall,WC87-160,31/12/2017,Childrens,ALLEYNE'S ACADEMY,05/12/2017,300.00,77300-ISB-FORMULA ALLOCATION,77300-ISB-FORMULA ALLOCATION,Transfer Payments,Revenue
Walsall Council,http://opendatacommunities.org/id/metropolitan-district-council/walsall,WC87-161,31/12/2017,Capital Financing,ALLPAY LTD,06/12/2017,217.80,82500-BANK CHARGES-CENTRAL EXPENSES,82500-BANK CHARGES-CENTRAL EXPENSES,Supplies & Services,Revenue
Walsall Council,http://opendatacommunities.org/id/metropolitan-district-council/walsall,WC87-162,31/12/2017,Capital Financing,ALLPAY LTD,06/12/2017,"7,361.74",82500-BANK CHARGES-CENTRAL EXPENSES,82500-BANK CHARGES-CENTRAL EXPENSES,Supplies & Services,Revenue
Walsall Council,http://opendatacommunities.org/id/metropolitan-district-council/walsall,WC87-163,31/12/2017,Resources and Transformation,ALLSORTS OFFICE SUPPLIES LTD,04/12/2017,852.80,60006-NEW-FURNITURE & EQUIPMENT,60006-NEW-FURNITURE & EQUIPMENT,Supplies & Services,Revenue
Walsall Council,http://opendatacommunities.org/id/metropolitan-district-council/walsall,WC87-164,31/12/2017,Adult Social Care,ALMA COURT,19/12/2017,567.00,73374-SUPPORTED & OTHER ACCOMMODATION,73374-SUPPORTED & OTHER ACCOMMODATION,Third Party Payments,Revenue
Walsall Council,http://opendatacommunities.org/id/metropolitan-district-council/walsall,WC87-165,31/12/2017,Adult Social Care,ALMA COURT,19/12/2017,"1,134.00",73374-SUPPORTED & OTHER ACCOMMODATION,73374-SUPPORTED & OTHER ACCOMMODATION,Third Party Payments,Revenue
Walsall Council,http://opendatacommunities.org/id/metropolitan-district-council/walsall,WC87-166,31/12/2017,Adult Social Care,ALMA COURT,12/12/2017,"6,316.87",73373-RESIDENTIAL & NURSING CARE PLACEMENTS,73373-RESIDENTIAL & NURSING CARE PLACEMENTS,Third Party Payments,Revenue
Walsall Council,http://opendatacommunities.org/id/metropolitan-district-council/walsall,WC87-167,31/12/2017,Childrens,ALMOZENE NURSERY & CHILDRENS CENTRE,01/12/2017,"3,192.00",66505-OTHER-GRANTS TO OTHER ORGS,66505-OTHER-GRANTS TO OTHER ORGS,Third Party Payments,Revenue
Walsall Council,http://opendatacommunities.org/id/metropolitan-district-council/walsall,WC87-168,31/12/2017,Childrens,ALMOZENE NURSERY & CHILDRENS CENTRE,01/12/2017,"7,168.64",66505-OTHER-GRANTS TO OTHER ORGS,66505-OTHER-GRANTS TO OTHER ORGS,Third Party Payments,Revenue
Walsall Council,http://opendatacommunities.org/id/metropolitan-district-council/walsall,WC87-169,31/12/2017,Childrens,ALPHA HAIR DESIGN ACADEMY,14/12/2017,"7,353.33",66502-TOP UP FUNDING -GRANTS TO SCHOOLS,66502-TOP UP FUNDING -GRANTS TO SCHOOLS,Third Party Payments,Revenue
Walsall Council,http://opendatacommunities.org/id/metropolitan-district-council/walsall,WC87-170,31/12/2017,Adult Social Care,ALPHA HEALTH CARE LTD,18/12/2017,"1,656.00",73373-RESIDENTIAL & NURSING CARE PLACEMENTS,73373-RESIDENTIAL & NURSING CARE PLACEMENTS,Third Party Payments,Revenue
Walsall Council,http://opendatacommunities.org/id/metropolitan-district-council/walsall,WC87-171,31/12/2017,Adult Social Care,ALPHA HEALTH CARE LTD,18/12/2017,"1,656.00",73373-RESIDENTIAL & NURSING CARE PLACEMENTS,73373-RESIDENTIAL & NURSING CARE PLACEMENTS,Third Party Payments,Revenue
Walsall Council,http://opendatacommunities.org/id/metropolitan-district-council/walsall,WC87-172,31/12/2017,Adult Social Care,ALPHA HEALTH CARE LTD,18/12/2017,"1,656.00",73373-RESIDENTIAL & NURSING CARE PLACEMENTS,73373-RESIDENTIAL & NURSING CARE PLACEMENTS,Third Party Payments,Revenue
Walsall Council,http://opendatacommunities.org/id/metropolitan-district-council/walsall,WC87-173,31/12/2017,Adult Social Care,ALPHA HEALTH CARE LTD,18/12/2017,"1,840.00",73373-RESIDENTIAL & NURSING CARE PLACEMENTS,73373-RESIDENTIAL & NURSING CARE PLACEMENTS,Third Party Payments,Revenue
Walsall Council,http://opendatacommunities.org/id/metropolitan-district-council/walsall,WC87-174,31/12/2017,Adult Social Care,ALPHA HEALTH CARE LTD,18/12/2017,"2,000.00",73373-RESIDENTIAL & NURSING CARE PLACEMENTS,73373-RESIDENTIAL & NURSING CARE PLACEMENTS,Third Party Payments,Revenue
Walsall Council,http://opendatacommunities.org/id/metropolitan-district-council/walsall,WC87-175,31/12/2017,Adult Social Care,ALPHA HEALTH CARE LTD,18/12/2017,"2,160.00",73373-RESIDENTIAL & NURSING CARE PLACEMENTS,73373-RESIDENTIAL & NURSING CARE PLACEMENTS,Third Party Payments,Revenue
Walsall Council,http://opendatacommunities.org/id/metropolitan-district-council/walsall,WC87-176,31/12/2017,Adult Social Care,ALPHA HEALTH CARE LTD,18/12/2017,"2,200.00",73373-RESIDENTIAL & NURSING CARE PLACEMENTS,73373-RESIDENTIAL & NURSING CARE PLACEMENTS,Third Party Payments,Revenue
Walsall Council,http://opendatacommunities.org/id/metropolitan-district-council/walsall,WC87-177,31/12/2017,Adult Social Care,ALPHA HEALTH CARE LTD,18/12/2017,"2,200.00",73373-RESIDENTIAL & NURSING CARE PLACEMENTS,73373-RESIDENTIAL & NURSING CARE PLACEMENTS,Third Party Payments,Revenue
Walsall Council,http://opendatacommunities.org/id/metropolitan-district-council/walsall,WC87-178,31/12/2017,Adult Social Care,ALPHA HEALTH CARE LTD,18/12/2017,"2,200.00",73373-RESIDENTIAL & NURSING CARE PLACEMENTS,73373-RESIDENTIAL & NURSING CARE PLACEMENTS,Third Party Payments,Revenue
Walsall Council,http://opendatacommunities.org/id/metropolitan-district-council/walsall,WC87-179,31/12/2017,Adult Social Care,ALPHA HEALTH CARE LTD,18/12/2017,"2,200.00",73373-RESIDENTIAL & NURSING CARE PLACEMENTS,73373-RESIDENTIAL & NURSING CARE PLACEMENTS,Third Party Payments,Revenue
Walsall Council,http://opendatacommunities.org/id/metropolitan-district-council/walsall,WC87-180,31/12/2017,Adult Social Care,ALPHA HEALTH CARE LTD,21/12/2017,"2,268.00",73374-SUPPORTED & OTHER ACCOMMODATION,73374-SUPPORTED & OTHER ACCOMMODATION,Third Party Payments,Revenue
Walsall Council,http://opendatacommunities.org/id/metropolitan-district-council/walsall,WC87-181,31/12/2017,Adult Social Care,ALPHA HEALTH CARE LTD,18/12/2017,"2,326.00",73373-RESIDENTIAL & NURSING CARE PLACEMENTS,73373-RESIDENTIAL & NURSING CARE PLACEMENTS,Third Party Payments,Revenue
Walsall Council,http://opendatacommunities.org/id/metropolitan-district-council/walsall,WC87-182,31/12/2017,Adult Social Care,ALPHA HEALTH CARE LTD,18/12/2017,"2,445.20",73373-RESIDENTIAL & NURSING CARE PLACEMENTS,73373-RESIDENTIAL & NURSING CARE PLACEMENTS,Third Party Payments,Revenue
Walsall Council,http://opendatacommunities.org/id/metropolitan-district-council/walsall,WC87-183,31/12/2017,Adult Social Care,ALPHA HEALTH CARE LTD,18/12/2017,"2,645.20",73373-RESIDENTIAL & NURSING CARE PLACEMENTS,73373-RESIDENTIAL & NURSING CARE PLACEMENTS,Third Party Payments,Revenue
Walsall Council,http://opendatacommunities.org/id/metropolitan-district-council/walsall,WC87-184,31/12/2017,Adult Social Care,ALPHA HEALTH CARE LTD,18/12/2017,"2,725.20",73373-RESIDENTIAL & NURSING CARE PLACEMENTS,73373-RESIDENTIAL & NURSING CARE PLACEMENTS,Third Party Payments,Revenue
Walsall Council,http://opendatacommunities.org/id/metropolitan-district-council/walsall,WC87-185,31/12/2017,Adult Social Care,ALPHA HEALTH CARE LTD,18/12/2017,"3,299.29",73373-RESIDENTIAL & NURSING CARE PLACEMENTS,73373-RESIDENTIAL & NURSING CARE PLACEMENTS,Third Party Payments,Revenue
Walsall Council,http://opendatacommunities.org/id/metropolitan-district-council/walsall,WC87-186,31/12/2017,Adult Social Care,ALPHA HEALTH CARE LTD,06/12/2017,"5,338.84",73373-RESIDENTIAL & NURSING CARE PLACEMENTS,73373-RESIDENTIAL & NURSING CARE PLACEMENTS,Third Party Payments,Revenue
Walsall Council,http://opendatacommunities.org/id/metropolitan-district-council/walsall,WC87-187,31/12/2017,Adult Social Care,ALPHA HEALTH CARE LTD,18/12/2017,"5,338.84",73373-RESIDENTIAL & NURSING CARE PLACEMENTS,73373-RESIDENTIAL & NURSING CARE PLACEMENTS,Third Party Payments,Revenue
Walsall Council,http://opendatacommunities.org/id/metropolitan-district-council/walsall,WC87-188,31/12/2017,Economy & Environment,ALS LIFE SCIENCES LIMITED,01/12/2017,308.00,63000-PROFESSIONAL FEES AND SERVICES,63000-PROFESSIONAL FEES AND SERVICES,Supplies & Services,Revenue
Walsall Council,http://opendatacommunities.org/id/metropolitan-district-council/walsall,WC87-189,31/12/2017,Childrens,AMAH NURSERIES LIMITED T/A BANANA MOON WALSALL,07/12/2017,"4,401.60",66505-OTHER-GRANTS TO OTHER ORGS,66505-OTHER-GRANTS TO OTHER ORGS,Third Party Payments,Revenue
Walsall Council,http://opendatacommunities.org/id/metropolitan-district-council/walsall,WC87-190,31/12/2017,Childrens,REDACTED,18/12/2017,808.04,74009-ADOPTION ALLOWANCE,74009-ADOPTION ALLOWANCE,Transfer Payments,Revenue
Walsall Council,http://opendatacommunities.org/id/metropolitan-district-council/walsall,WC87-191,31/12/2017,Childrens,REDACTED,04/12/2017,9.24,60006-NEW-FURNITURE & EQUIPMENT,60006-NEW-FURNITURE & EQUIPMENT,Supplies & Services,Revenue
Walsall Council,http://opendatacommunities.org/id/metropolitan-district-council/walsall,WC87-192,31/12/2017,Childrens,REDACTED,28/12/2017,9.24,60006-NEW-FURNITURE & EQUIPMENT,60006-NEW-FURNITURE & EQUIPMENT,Supplies & Services,Revenue
Walsall Council,http://opendatacommunities.org/id/metropolitan-district-council/walsall,WC87-193,31/12/2017,Childrens,REDACTED,28/12/2017,109.59,74506-TRAVEL-FOSTER CARERS,74506-TRAVEL-FOSTER CARERS,Transfer Payments,Revenue
Walsall Council,http://opendatacommunities.org/id/metropolitan-district-council/walsall,WC87-194,31/12/2017,Childrens,REDACTED,04/12/2017,162.73,74504-HOLIDAY/CHRISTMAS ALLOWANCE-FOSTER CARERS,74504-HOLIDAY/CHRISTMAS ALLOWANCE-FOSTER CARERS,Transfer Payments,Revenue
Walsall Council,http://opendatacommunities.org/id/metropolitan-district-council/walsall,WC87-195,31/12/2017,Childrens,REDACTED,04/12/2017,530.96,74508-INTERNAL FOSTER CARERS-CARER FEES,74508-INTERNAL FOSTER CARERS-CARER FEES,Transfer Payments,Revenue
Walsall Council,http://opendatacommunities.org/id/metropolitan-district-council/walsall,WC87-196,31/12/2017,Childrens,REDACTED,28/12/2017,530.96,74508-INTERNAL FOSTER CARERS-CARER FEES,74508-INTERNAL FOSTER CARERS-CARER FEES,Transfer Payments,Revenue
Walsall Council,http://opendatacommunities.org/id/metropolitan-district-council/walsall,WC87-197,31/12/2017,Childrens,REDACTED,04/12/2017,650.92,74501-MAINTENANCE ALLOWANCE-FOSTER CARERS,74501-MAINTENANCE ALLOWANCE-FOSTER CARERS,Transfer Payments,Revenue
Walsall Council,http://opendatacommunities.org/id/metropolitan-district-council/walsall,WC87-198,31/12/2017,Childrens,REDACTED,28/12/2017,650.92,74501-MAINTENANCE ALLOWANCE-FOSTER CARERS,74501-MAINTENANCE ALLOWANCE-FOSTER CARERS,Transfer Payments,Revenue
Walsall Council,http://opendatacommunities.org/id/metropolitan-district-council/walsall,WC87-199,31/12/2017,Childrens,REDACTED,11/12/2017,421.15,76422-DIRECT PAYMENTS TO SOCIAL SERVICES CLIENTS,76422-DIRECT PAYMENTS TO SOCIAL SERVICES CLIENTS,Transfer Payments,Revenue
Walsall Council,http://opendatacommunities.org/id/metropolitan-district-council/walsall,WC87-200,31/12/2017,Economy & Environment,AMEY LG LIMITED,18/12/2017,227.30,01006-SITE WORKS MAIN CONTRACTORS,01006-SITE WORKS MAIN CONTRACTORS,Capital,Capital
Walsall Council,http://opendatacommunities.org/id/metropolitan-district-council/walsall,WC87-201,31/12/2017,Economy & Environment,AMEY LG LIMITED,18/12/2017,281.22,01006-SITE WORKS MAIN CONTRACTORS,01006-SITE WORKS MAIN CONTRACTORS,Capital,Capital
Walsall Council,http://opendatacommunities.org/id/metropolitan-district-council/walsall,WC87-202,31/12/2017,Economy & Environment,AMEY LG LIMITED,13/12/2017,586.96,42003-ELECTRICITY-ENERGY COSTS,42003-ELECTRICITY-ENERGY COSTS,Premises,Revenue
Walsall Council,http://opendatacommunities.org/id/metropolitan-district-council/walsall,WC87-203,31/12/2017,Economy & Environment,AMEY LG LIMITED,18/12/2017,603.53,01002-PROJECT FEES,01002-PROJECT FEES,Capital,Capital
Walsall Council,http://opendatacommunities.org/id/metropolitan-district-council/walsall,WC87-204,31/12/2017,Economy & Environment,AMEY LG LIMITED,13/12/2017,813.74,73002-SECURITY-PRIV CONTRACTOR FEES,73002-SECURITY-PRIV CONTRACTOR FEES,Third Party Payments,Revenue
Walsall Council,http://opendatacommunities.org/id/metropolitan-district-council/walsall,WC87-205,31/12/2017,Economy & Environment,AMEY LG LIMITED,08/12/2017,"1,265.69",01002-PROJECT FEES,01002-PROJECT FEES,Capital,Capital
Walsall Council,http://opendatacommunities.org/id/metropolitan-district-council/walsall,WC87-206,31/12/2017,Economy & Environment,AMEY LG LIMITED,08/12/2017,"5,962.57",73025-PROFESSIONAL SERVICES-PRIV CONTRACTOR & OTHER AGENCIES,73025-PROFESSIONAL SERVICES-PRIV CONTRACTOR & OTHER AGENCIES,Third Party Payments,Revenue
Walsall Council,http://opendatacommunities.org/id/metropolitan-district-council/walsall,WC87-207,31/12/2017,Economy & Environment,AMEY LG LIMITED,13/12/2017,"13,646.07",73025-PROFESSIONAL SERVICES-PRIV CONTRACTOR & OTHER AGENCIES,73025-PROFESSIONAL SERVICES-PRIV CONTRACTOR & OTHER AGENCIES,Third Party Payments,Revenue
Walsall Council,http://opendatacommunities.org/id/metropolitan-district-council/walsall,WC87-208,31/12/2017,Economy & Environment,AMEY LG LIMITED,18/12/2017,"17,633.19",01006-SITE WORKS MAIN CONTRACTORS,01006-SITE WORKS MAIN CONTRACTORS,Capital,Capital
Walsall Council,http://opendatacommunities.org/id/metropolitan-district-council/walsall,WC87-209,31/12/2017,Childrens,AMG NURSING CARE SERVICES,13/12/2017,"1,480.96",63000-PROFESSIONAL FEES AND SERVICES,63000-PROFESSIONAL FEES AND SERVICES,Supplies & Services,Revenue
Walsall Council,http://opendatacommunities.org/id/metropolitan-district-council/walsall,WC87-210,31/12/2017,Adult Social Care,AMG NURSING CARE SERVICES,01/12/2017,"10,711.68",73374-SUPPORTED & OTHER ACCOMMODATION,73374-SUPPORTED & OTHER ACCOMMODATION,Third Party Payments,Revenue
Walsall Council,http://opendatacommunities.org/id/metropolitan-district-council/walsall,WC87-211,31/12/2017,Childrens,REDACTED,18/12/2017,9.24,60006-NEW-FURNITURE & EQUIPMENT,60006-NEW-FURNITURE & EQUIPMENT,Supplies & Services,Revenue
Walsall Council,http://opendatacommunities.org/id/metropolitan-district-council/walsall,WC87-212,31/12/2017,Childrens,REDACTED,18/12/2017,345.24,74508-INTERNAL FOSTER CARERS-CARER FEES,74508-INTERNAL FOSTER CARERS-CARER FEES,Transfer Payments,Revenue
Walsall Council,http://opendatacommunities.org/id/metropolitan-district-council/walsall,WC87-213,31/12/2017,Childrens,REDACTED,18/12/2017,628.21,74501-MAINTENANCE ALLOWANCE-FOSTER CARERS,74501-MAINTENANCE ALLOWANCE-FOSTER CARERS,Transfer Payments,Revenue
Walsall Council,http://opendatacommunities.org/id/metropolitan-district-council/walsall,WC87-214,31/12/2017,Childrens,REDACTED,18/12/2017,425.08,74510-RESIDENTS ORDERS,74510-RESIDENTS ORDERS,Third Party Payments,Revenue
Walsall Council,http://opendatacommunities.org/id/metropolitan-district-council/walsall,WC87-215,31/12/2017,Adult Social Care,REDACTED,11/12/2017,"2,785.00",76422-DIRECT PAYMENTS TO SOCIAL SERVICES CLIENTS,76422-DIRECT PAYMENTS TO SOCIAL SERVICES CLIENTS,Transfer Payments,Revenue
Walsall Council,http://opendatacommunities.org/id/metropolitan-district-council/walsall,WC87-216,31/12/2017,Adult Social Care,ANCHOR,18/12/2017,-0.01,73373-RESIDENTIAL & NURSING CARE PLACEMENTS,73373-RESIDENTIAL & NURSING CARE PLACEMENTS,Third Party Payments,Revenue
Walsall Council,http://opendatacommunities.org/id/metropolitan-district-council/walsall,WC87-217,31/12/2017,Adult Social Care,ANCHOR,18/12/2017,322.85,73373-RESIDENTIAL & NURSING CARE PLACEMENTS,73373-RESIDENTIAL & NURSING CARE PLACEMENTS,Third Party Payments,Revenue
Walsall Council,http://opendatacommunities.org/id/metropolitan-district-council/walsall,WC87-218,31/12/2017,Adult Social Care,ANCHOR,18/12/2017,322.85,73373-RESIDENTIAL & NURSING CARE PLACEMENTS,73373-RESIDENTIAL & NURSING CARE PLACEMENTS,Third Party Payments,Revenue
Walsall Council,http://opendatacommunities.org/id/metropolitan-district-council/walsall,WC87-219,31/12/2017,Adult Social Care,ANCHOR,06/12/2017,322.86,73373-RESIDENTIAL & NURSING CARE PLACEMENTS,73373-RESIDENTIAL & NURSING CARE PLACEMENTS,Third Party Payments,Revenue
Walsall Council,http://opendatacommunities.org/id/metropolitan-district-council/walsall,WC87-220,31/12/2017,Adult Social Care,ANCHOR,18/12/2017,322.86,73373-RESIDENTIAL & NURSING CARE PLACEMENTS,73373-RESIDENTIAL & NURSING CARE PLACEMENTS,Third Party Payments,Revenue
Walsall Council,http://opendatacommunities.org/id/metropolitan-district-council/walsall,WC87-221,31/12/2017,Adult Social Care,ANCHOR,18/12/2017,322.86,73373-RESIDENTIAL & NURSING CARE PLACEMENTS,73373-RESIDENTIAL & NURSING CARE PLACEMENTS,Third Party Payments,Revenue
Walsall Council,http://opendatacommunities.org/id/metropolitan-district-council/walsall,WC87-222,31/12/2017,Adult Social Care,ANCHOR,06/12/2017,342.86,73373-RESIDENTIAL & NURSING CARE PLACEMENTS,73373-RESIDENTIAL & NURSING CARE PLACEMENTS,Third Party Payments,Revenue
Walsall Council,http://opendatacommunities.org/id/metropolitan-district-council/walsall,WC87-223,31/12/2017,Adult Social Care,ANCHOR,06/12/2017,546.43,73373-RESIDENTIAL & NURSING CARE PLACEMENTS,73373-RESIDENTIAL & NURSING CARE PLACEMENTS,Third Party Payments,Revenue
Walsall Council,http://opendatacommunities.org/id/metropolitan-district-council/walsall,WC87-224,31/12/2017,Adult Social Care,ANCHOR,06/12/2017,771.43,73373-RESIDENTIAL & NURSING CARE PLACEMENTS,73373-RESIDENTIAL & NURSING CARE PLACEMENTS,Third Party Payments,Revenue
Walsall Council,http://opendatacommunities.org/id/metropolitan-district-council/walsall,WC87-225,31/12/2017,Adult Social Care,ANCHOR,06/12/2017,788.57,73373-RESIDENTIAL & NURSING CARE PLACEMENTS,73373-RESIDENTIAL & NURSING CARE PLACEMENTS,Third Party Payments,Revenue
Walsall Council,http://opendatacommunities.org/id/metropolitan-district-council/walsall,WC87-226,31/12/2017,Adult Social Care,ANCHOR,12/12/2017,788.57,73373-RESIDENTIAL & NURSING CARE PLACEMENTS,73373-RESIDENTIAL & NURSING CARE PLACEMENTS,Third Party Payments,Revenue
Walsall Council,http://opendatacommunities.org/id/metropolitan-district-council/walsall,WC87-227,31/12/2017,Adult Social Care,ANCHOR,06/12/2017,"1,028.57",73373-RESIDENTIAL & NURSING CARE PLACEMENTS,73373-RESIDENTIAL & NURSING CARE PLACEMENTS,Third Party Payments,Revenue
Walsall Council,http://opendatacommunities.org/id/metropolitan-district-council/walsall,WC87-228,31/12/2017,Adult Social Care,ANCHOR,06/12/2017,"1,117.14",73373-RESIDENTIAL & NURSING CARE PLACEMENTS,73373-RESIDENTIAL & NURSING CARE PLACEMENTS,Third Party Payments,Revenue
Walsall Council,http://opendatacommunities.org/id/metropolitan-district-council/walsall,WC87-229,31/12/2017,Adult Social Care,ANCHOR,12/12/2017,"1,479.29",73373-RESIDENTIAL & NURSING CARE PLACEMENTS,73373-RESIDENTIAL & NURSING CARE PLACEMENTS,Third Party Payments,Revenue
Walsall Council,http://opendatacommunities.org/id/metropolitan-district-council/walsall,WC87-230,31/12/2017,Adult Social Care,ANCHOR,06/12/2017,"1,620.00",73373-RESIDENTIAL & NURSING CARE PLACEMENTS,73373-RESIDENTIAL & NURSING CARE PLACEMENTS,Third Party Payments,Revenue
Walsall Council,http://opendatacommunities.org/id/metropolitan-district-council/walsall,WC87-231,31/12/2017,Adult Social Care,ANCHOR,06/12/2017,"1,620.00",73373-RESIDENTIAL & NURSING CARE PLACEMENTS,73373-RESIDENTIAL & NURSING CARE PLACEMENTS,Third Party Payments,Revenue
Walsall Council,http://opendatacommunities.org/id/metropolitan-district-council/walsall,WC87-232,31/12/2017,Adult Social Care,ANCHOR,06/12/2017,"1,620.00",73373-RESIDENTIAL & NURSING CARE PLACEMENTS,73373-RESIDENTIAL & NURSING CARE PLACEMENTS,Third Party Payments,Revenue
Walsall Council,http://opendatacommunities.org/id/metropolitan-district-council/walsall,WC87-233,31/12/2017,Adult Social Care,ANCHOR,06/12/2017,"1,620.00",73373-RESIDENTIAL & NURSING CARE PLACEMENTS,73373-RESIDENTIAL & NURSING CARE PLACEMENTS,Third Party Payments,Revenue
Walsall Council,http://opendatacommunities.org/id/metropolitan-district-council/walsall,WC87-234,31/12/2017,Adult Social Care,ANCHOR,06/12/2017,"1,620.00",73373-RESIDENTIAL & NURSING CARE PLACEMENTS,73373-RESIDENTIAL & NURSING CARE PLACEMENTS,Third Party Payments,Revenue
Walsall Council,http://opendatacommunities.org/id/metropolitan-district-council/walsall,WC87-235,31/12/2017,Adult Social Care,ANCHOR,06/12/2017,"1,620.00",73373-RESIDENTIAL & NURSING CARE PLACEMENTS,73373-RESIDENTIAL & NURSING CARE PLACEMENTS,Third Party Payments,Revenue
Walsall Council,http://opendatacommunities.org/id/metropolitan-district-council/walsall,WC87-236,31/12/2017,Adult Social Care,ANCHOR,06/12/2017,"1,620.00",73373-RESIDENTIAL & NURSING CARE PLACEMENTS,73373-RESIDENTIAL & NURSING CARE PLACEMENTS,Third Party Payments,Revenue
Walsall Council,http://opendatacommunities.org/id/metropolitan-district-council/walsall,WC87-237,31/12/2017,Adult Social Care,ANCHOR,06/12/2017,"1,620.00",73373-RESIDENTIAL & NURSING CARE PLACEMENTS,73373-RESIDENTIAL & NURSING CARE PLACEMENTS,Third Party Payments,Revenue
Walsall Council,http://opendatacommunities.org/id/metropolitan-district-council/walsall,WC87-238,31/12/2017,Adult Social Care,ANCHOR,06/12/2017,"1,620.00",73373-RESIDENTIAL & NURSING CARE PLACEMENTS,73373-RESIDENTIAL & NURSING CARE PLACEMENTS,Third Party Payments,Revenue
Walsall Council,http://opendatacommunities.org/id/metropolitan-district-council/walsall,WC87-239,31/12/2017,Adult Social Care,ANCHOR,06/12/2017,"1,620.00",73373-RESIDENTIAL & NURSING CARE PLACEMENTS,73373-RESIDENTIAL & NURSING CARE PLACEMENTS,Third Party Payments,Revenue
Walsall Council,http://opendatacommunities.org/id/metropolitan-district-council/walsall,WC87-240,31/12/2017,Adult Social Care,ANCHOR,18/12/2017,"1,655.84",73373-RESIDENTIAL & NURSING CARE PLACEMENTS,73373-RESIDENTIAL & NURSING CARE PLACEMENTS,Third Party Payments,Revenue
Walsall Council,http://opendatacommunities.org/id/metropolitan-district-council/walsall,WC87-241,31/12/2017,Adult Social Care,ANCHOR,06/12/2017,"1,671.43",73373-RESIDENTIAL & NURSING CARE PLACEMENTS,73373-RESIDENTIAL & NURSING CARE PLACEMENTS,Third Party Payments,Revenue
Walsall Council,http://opendatacommunities.org/id/metropolitan-district-council/walsall,WC87-242,31/12/2017,Adult Social Care,ANCHOR,06/12/2017,"1,800.00",73373-RESIDENTIAL & NURSING CARE PLACEMENTS,73373-RESIDENTIAL & NURSING CARE PLACEMENTS,Third Party Payments,Revenue
Walsall Council,http://opendatacommunities.org/id/metropolitan-district-council/walsall,WC87-243,31/12/2017,Adult Social Care,ANCHOR,06/12/2017,"1,800.00",73373-RESIDENTIAL & NURSING CARE PLACEMENTS,73373-RESIDENTIAL & NURSING CARE PLACEMENTS,Third Party Payments,Revenue
Walsall Council,http://opendatacommunities.org/id/metropolitan-district-council/walsall,WC87-244,31/12/2017,Adult Social Care,ANCHOR,06/12/2017,"1,800.00",73373-RESIDENTIAL & NURSING CARE PLACEMENTS,73373-RESIDENTIAL & NURSING CARE PLACEMENTS,Third Party Payments,Revenue
Walsall Council,http://opendatacommunities.org/id/metropolitan-district-council/walsall,WC87-245,31/12/2017,Adult Social Care,ANCHOR,06/12/2017,"1,800.00",73373-RESIDENTIAL & NURSING CARE PLACEMENTS,73373-RESIDENTIAL & NURSING CARE PLACEMENTS,Third Party Payments,Revenue
Walsall Council,http://opendatacommunities.org/id/metropolitan-district-council/walsall,WC87-246,31/12/2017,Adult Social Care,ANCHOR,06/12/2017,"1,800.00",73373-RESIDENTIAL & NURSING CARE PLACEMENTS,73373-RESIDENTIAL & NURSING CARE PLACEMENTS,Third Party Payments,Revenue
Walsall Council,http://opendatacommunities.org/id/metropolitan-district-council/walsall,WC87-247,31/12/2017,Adult Social Care,ANCHOR,06/12/2017,"1,800.00",73373-RESIDENTIAL & NURSING CARE PLACEMENTS,73373-RESIDENTIAL & NURSING CARE PLACEMENTS,Third Party Payments,Revenue
Walsall Council,http://opendatacommunities.org/id/metropolitan-district-council/walsall,WC87-248,31/12/2017,Adult Social Care,ANCHOR,06/12/2017,"1,800.00",73373-RESIDENTIAL & NURSING CARE PLACEMENTS,73373-RESIDENTIAL & NURSING CARE PLACEMENTS,Third Party Payments,Revenue
Walsall Council,http://opendatacommunities.org/id/metropolitan-district-council/walsall,WC87-249,31/12/2017,Adult Social Care,ANCHOR,06/12/2017,"1,800.00",73373-RESIDENTIAL & NURSING CARE PLACEMENTS,73373-RESIDENTIAL & NURSING CARE PLACEMENTS,Third Party Payments,Revenue
Walsall Council,http://opendatacommunities.org/id/metropolitan-district-council/walsall,WC87-250,31/12/2017,Adult Social Care,ANCHOR,06/12/2017,"1,800.00",73373-RESIDENTIAL & NURSING CARE PLACEMENTS,73373-RESIDENTIAL & NURSING CARE PLACEMENTS,Third Party Payments,Revenue
Walsall Council,http://opendatacommunities.org/id/metropolitan-district-council/walsall,WC87-251,31/12/2017,Adult Social Care,ANCHOR,06/12/2017,"1,800.00",73373-RESIDENTIAL & NURSING CARE PLACEMENTS,73373-RESIDENTIAL & NURSING CARE PLACEMENTS,Third Party Payments,Revenue
Walsall Council,http://opendatacommunities.org/id/metropolitan-district-council/walsall,WC87-252,31/12/2017,Adult Social Care,ANCHOR,06/12/2017,"1,800.00",73373-RESIDENTIAL & NURSING CARE PLACEMENTS,73373-RESIDENTIAL & NURSING CARE PLACEMENTS,Third Party Payments,Revenue
Walsall Council,http://opendatacommunities.org/id/metropolitan-district-council/walsall,WC87-253,31/12/2017,Adult Social Care,ANCHOR,06/12/2017,"1,800.00",73373-RESIDENTIAL & NURSING CARE PLACEMENTS,73373-RESIDENTIAL & NURSING CARE PLACEMENTS,Third Party Payments,Revenue
Walsall Council,http://opendatacommunities.org/id/metropolitan-district-council/walsall,WC87-254,31/12/2017,Adult Social Care,ANCHOR,06/12/2017,"1,800.00",73373-RESIDENTIAL & NURSING CARE PLACEMENTS,73373-RESIDENTIAL & NURSING CARE PLACEMENTS,Third Party Payments,Revenue
Walsall Council,http://opendatacommunities.org/id/metropolitan-district-council/walsall,WC87-255,31/12/2017,Adult Social Care,ANCHOR,06/12/2017,"1,800.00",73373-RESIDENTIAL & NURSING CARE PLACEMENTS,73373-RESIDENTIAL & NURSING CARE PLACEMENTS,Third Party Payments,Revenue
Walsall Council,http://opendatacommunities.org/id/metropolitan-district-council/walsall,WC87-256,31/12/2017,Adult Social Care,ANCHOR,06/12/2017,"1,800.00",73373-RESIDENTIAL & NURSING CARE PLACEMENTS,73373-RESIDENTIAL & NURSING CARE PLACEMENTS,Third Party Payments,Revenue
Walsall Council,http://opendatacommunities.org/id/metropolitan-district-council/walsall,WC87-257,31/12/2017,Adult Social Care,ANCHOR,06/12/2017,"1,800.00",73373-RESIDENTIAL & NURSING CARE PLACEMENTS,73373-RESIDENTIAL & NURSING CARE PLACEMENTS,Third Party Payments,Revenue
Walsall Council,http://opendatacommunities.org/id/metropolitan-district-council/walsall,WC87-258,31/12/2017,Adult Social Care,ANCHOR,06/12/2017,"1,800.00",73373-RESIDENTIAL & NURSING CARE PLACEMENTS,73373-RESIDENTIAL & NURSING CARE PLACEMENTS,Third Party Payments,Revenue
Walsall Council,http://opendatacommunities.org/id/metropolitan-district-council/walsall,WC87-259,31/12/2017,Adult Social Care,ANCHOR,06/12/2017,"1,800.00",73373-RESIDENTIAL & NURSING CARE PLACEMENTS,73373-RESIDENTIAL & NURSING CARE PLACEMENTS,Third Party Payments,Revenue
Walsall Council,http://opendatacommunities.org/id/metropolitan-district-council/walsall,WC87-260,31/12/2017,Adult Social Care,ANCHOR,06/12/2017,"1,800.00",73373-RESIDENTIAL & NURSING CARE PLACEMENTS,73373-RESIDENTIAL & NURSING CARE PLACEMENTS,Third Party Payments,Revenue
Walsall Council,http://opendatacommunities.org/id/metropolitan-district-council/walsall,WC87-261,31/12/2017,Adult Social Care,ANCHOR,06/12/2017,"1,800.00",73373-RESIDENTIAL & NURSING CARE PLACEMENTS,73373-RESIDENTIAL & NURSING CARE PLACEMENTS,Third Party Payments,Revenue
Walsall Council,http://opendatacommunities.org/id/metropolitan-district-council/walsall,WC87-262,31/12/2017,Adult Social Care,ANCHOR,06/12/2017,"1,800.00",73373-RESIDENTIAL & NURSING CARE PLACEMENTS,73373-RESIDENTIAL & NURSING CARE PLACEMENTS,Third Party Payments,Revenue
Walsall Council,http://opendatacommunities.org/id/metropolitan-district-council/walsall,WC87-263,31/12/2017,Adult Social Care,ANCHOR,06/12/2017,"1,800.00",73373-RESIDENTIAL & NURSING CARE PLACEMENTS,73373-RESIDENTIAL & NURSING CARE PLACEMENTS,Third Party Payments,Revenue
Walsall Council,http://opendatacommunities.org/id/metropolitan-district-council/walsall,WC87-264,31/12/2017,Adult Social Care,ANCHOR,06/12/2017,"1,800.00",73373-RESIDENTIAL & NURSING CARE PLACEMENTS,73373-RESIDENTIAL & NURSING CARE PLACEMENTS,Third Party Payments,Revenue
Walsall Council,http://opendatacommunities.org/id/metropolitan-district-council/walsall,WC87-265,31/12/2017,Adult Social Care,ANCHOR,06/12/2017,"1,800.00",73373-RESIDENTIAL & NURSING CARE PLACEMENTS,73373-RESIDENTIAL & NURSING CARE PLACEMENTS,Third Party Payments,Revenue
Walsall Council,http://opendatacommunities.org/id/metropolitan-district-council/walsall,WC87-266,31/12/2017,Adult Social Care,ANCHOR,06/12/2017,"1,800.00",73373-RESIDENTIAL & NURSING CARE PLACEMENTS,73373-RESIDENTIAL & NURSING CARE PLACEMENTS,Third Party Payments,Revenue
Walsall Council,http://opendatacommunities.org/id/metropolitan-district-council/walsall,WC87-267,31/12/2017,Adult Social Care,ANCHOR,06/12/2017,"1,800.00",73373-RESIDENTIAL & NURSING CARE PLACEMENTS,73373-RESIDENTIAL & NURSING CARE PLACEMENTS,Third Party Payments,Revenue
Walsall Council,http://opendatacommunities.org/id/metropolitan-district-council/walsall,WC87-268,31/12/2017,Adult Social Care,ANCHOR,06/12/2017,"1,800.00",73373-RESIDENTIAL & NURSING CARE PLACEMENTS,73373-RESIDENTIAL & NURSING CARE PLACEMENTS,Third Party Payments,Revenue
Walsall Council,http://opendatacommunities.org/id/metropolitan-district-council/walsall,WC87-269,31/12/2017,Adult Social Care,ANCHOR,06/12/2017,"1,800.00",73373-RESIDENTIAL & NURSING CARE PLACEMENTS,73373-RESIDENTIAL & NURSING CARE PLACEMENTS,Third Party Payments,Revenue
Walsall Council,http://opendatacommunities.org/id/metropolitan-district-council/walsall,WC87-270,31/12/2017,Adult Social Care,ANCHOR,06/12/2017,"1,800.00",73373-RESIDENTIAL & NURSING CARE PLACEMENTS,73373-RESIDENTIAL & NURSING CARE PLACEMENTS,Third Party Payments,Revenue
Walsall Council,http://opendatacommunities.org/id/metropolitan-district-council/walsall,WC87-271,31/12/2017,Adult Social Care,ANCHOR,06/12/2017,"1,800.00",73373-RESIDENTIAL & NURSING CARE PLACEMENTS,73373-RESIDENTIAL & NURSING CARE PLACEMENTS,Third Party Payments,Revenue
Walsall Council,http://opendatacommunities.org/id/metropolitan-district-council/walsall,WC87-272,31/12/2017,Adult Social Care,ANCHOR,06/12/2017,"1,800.00",73373-RESIDENTIAL & NURSING CARE PLACEMENTS,73373-RESIDENTIAL & NURSING CARE PLACEMENTS,Third Party Payments,Revenue
Walsall Council,http://opendatacommunities.org/id/metropolitan-district-council/walsall,WC87-273,31/12/2017,Adult Social Care,ANCHOR,06/12/2017,"1,800.00",73373-RESIDENTIAL & NURSING CARE PLACEMENTS,73373-RESIDENTIAL & NURSING CARE PLACEMENTS,Third Party Payments,Revenue
Walsall Council,http://opendatacommunities.org/id/metropolitan-district-council/walsall,WC87-274,31/12/2017,Adult Social Care,ANCHOR,06/12/2017,"1,800.00",73373-RESIDENTIAL & NURSING CARE PLACEMENTS,73373-RESIDENTIAL & NURSING CARE PLACEMENTS,Third Party Payments,Revenue
Walsall Council,http://opendatacommunities.org/id/metropolitan-district-council/walsall,WC87-275,31/12/2017,Adult Social Care,ANCHOR,06/12/2017,"1,800.00",73373-RESIDENTIAL & NURSING CARE PLACEMENTS,73373-RESIDENTIAL & NURSING CARE PLACEMENTS,Third Party Payments,Revenue
Walsall Council,http://opendatacommunities.org/id/metropolitan-district-council/walsall,WC87-276,31/12/2017,Adult Social Care,ANCHOR,06/12/2017,"1,800.00",73373-RESIDENTIAL & NURSING CARE PLACEMENTS,73373-RESIDENTIAL & NURSING CARE PLACEMENTS,Third Party Payments,Revenue
Walsall Council,http://opendatacommunities.org/id/metropolitan-district-council/walsall,WC87-277,31/12/2017,Adult Social Care,ANCHOR,06/12/2017,"1,800.00",73373-RESIDENTIAL & NURSING CARE PLACEMENTS,73373-RESIDENTIAL & NURSING CARE PLACEMENTS,Third Party Payments,Revenue
Walsall Council,http://opendatacommunities.org/id/metropolitan-district-council/walsall,WC87-278,31/12/2017,Adult Social Care,ANCHOR,06/12/2017,"1,800.00",73373-RESIDENTIAL & NURSING CARE PLACEMENTS,73373-RESIDENTIAL & NURSING CARE PLACEMENTS,Third Party Payments,Revenue
Walsall Council,http://opendatacommunities.org/id/metropolitan-district-council/walsall,WC87-279,31/12/2017,Adult Social Care,ANCHOR,06/12/2017,"1,800.00",73373-RESIDENTIAL & NURSING CARE PLACEMENTS,73373-RESIDENTIAL & NURSING CARE PLACEMENTS,Third Party Payments,Revenue
Walsall Council,http://opendatacommunities.org/id/metropolitan-district-council/walsall,WC87-280,31/12/2017,Adult Social Care,ANCHOR,06/12/2017,"1,800.00",73373-RESIDENTIAL & NURSING CARE PLACEMENTS,73373-RESIDENTIAL & NURSING CARE PLACEMENTS,Third Party Payments,Revenue
Walsall Council,http://opendatacommunities.org/id/metropolitan-district-council/walsall,WC87-281,31/12/2017,Adult Social Care,ANCHOR,06/12/2017,"1,800.00",73373-RESIDENTIAL & NURSING CARE PLACEMENTS,73373-RESIDENTIAL & NURSING CARE PLACEMENTS,Third Party Payments,Revenue
Walsall Council,http://opendatacommunities.org/id/metropolitan-district-council/walsall,WC87-282,31/12/2017,Adult Social Care,ANCHOR,06/12/2017,"1,800.00",73373-RESIDENTIAL & NURSING CARE PLACEMENTS,73373-RESIDENTIAL & NURSING CARE PLACEMENTS,Third Party Payments,Revenue
Walsall Council,http://opendatacommunities.org/id/metropolitan-district-council/walsall,WC87-283,31/12/2017,Adult Social Care,ANCHOR,06/12/2017,"1,800.00",73373-RESIDENTIAL & NURSING CARE PLACEMENTS,73373-RESIDENTIAL & NURSING CARE PLACEMENTS,Third Party Payments,Revenue
Walsall Council,http://opendatacommunities.org/id/metropolitan-district-council/walsall,WC87-284,31/12/2017,Adult Social Care,ANCHOR,06/12/2017,"1,800.00",73373-RESIDENTIAL & NURSING CARE PLACEMENTS,73373-RESIDENTIAL & NURSING CARE PLACEMENTS,Third Party Payments,Revenue
Walsall Council,http://opendatacommunities.org/id/metropolitan-district-council/walsall,WC87-285,31/12/2017,Adult Social Care,ANCHOR,06/12/2017,"1,800.00",73373-RESIDENTIAL & NURSING CARE PLACEMENTS,73373-RESIDENTIAL & NURSING CARE PLACEMENTS,Third Party Payments,Revenue
Walsall Council,http://opendatacommunities.org/id/metropolitan-district-council/walsall,WC87-286,31/12/2017,Adult Social Care,ANCHOR,06/12/2017,"1,800.00",73373-RESIDENTIAL & NURSING CARE PLACEMENTS,73373-RESIDENTIAL & NURSING CARE PLACEMENTS,Third Party Payments,Revenue
Walsall Council,http://opendatacommunities.org/id/metropolitan-district-council/walsall,WC87-287,31/12/2017,Adult Social Care,ANCHOR,06/12/2017,"1,800.00",73373-RESIDENTIAL & NURSING CARE PLACEMENTS,73373-RESIDENTIAL & NURSING CARE PLACEMENTS,Third Party Payments,Revenue
Walsall Council,http://opendatacommunities.org/id/metropolitan-district-council/walsall,WC87-288,31/12/2017,Adult Social Care,ANCHOR,06/12/2017,"1,800.00",73373-RESIDENTIAL & NURSING CARE PLACEMENTS,73373-RESIDENTIAL & NURSING CARE PLACEMENTS,Third Party Payments,Revenue
Walsall Council,http://opendatacommunities.org/id/metropolitan-district-council/walsall,WC87-289,31/12/2017,Adult Social Care,ANCHOR,06/12/2017,"1,800.00",73373-RESIDENTIAL & NURSING CARE PLACEMENTS,73373-RESIDENTIAL & NURSING CARE PLACEMENTS,Third Party Payments,Revenue
Walsall Council,http://opendatacommunities.org/id/metropolitan-district-council/walsall,WC87-290,31/12/2017,Adult Social Care,ANCHOR,06/12/2017,"1,800.00",73373-RESIDENTIAL & NURSING CARE PLACEMENTS,73373-RESIDENTIAL & NURSING CARE PLACEMENTS,Third Party Payments,Revenue
Walsall Council,http://opendatacommunities.org/id/metropolitan-district-council/walsall,WC87-291,31/12/2017,Adult Social Care,ANCHOR,06/12/2017,"1,800.00",73373-RESIDENTIAL & NURSING CARE PLACEMENTS,73373-RESIDENTIAL & NURSING CARE PLACEMENTS,Third Party Payments,Revenue
Walsall Council,http://opendatacommunities.org/id/metropolitan-district-council/walsall,WC87-292,31/12/2017,Adult Social Care,ANCHOR,06/12/2017,"1,800.00",73373-RESIDENTIAL & NURSING CARE PLACEMENTS,73373-RESIDENTIAL & NURSING CARE PLACEMENTS,Third Party Payments,Revenue
Walsall Council,http://opendatacommunities.org/id/metropolitan-district-council/walsall,WC87-293,31/12/2017,Adult Social Care,ANCHOR,06/12/2017,"1,800.00",73373-RESIDENTIAL & NURSING CARE PLACEMENTS,73373-RESIDENTIAL & NURSING CARE PLACEMENTS,Third Party Payments,Revenue
Walsall Council,http://opendatacommunities.org/id/metropolitan-district-council/walsall,WC87-294,31/12/2017,Adult Social Care,ANCHOR,06/12/2017,"1,800.00",73373-RESIDENTIAL & NURSING CARE PLACEMENTS,73373-RESIDENTIAL & NURSING CARE PLACEMENTS,Third Party Payments,Revenue
Walsall Council,http://opendatacommunities.org/id/metropolitan-district-council/walsall,WC87-295,31/12/2017,Adult Social Care,ANCHOR,06/12/2017,"1,800.00",73373-RESIDENTIAL & NURSING CARE PLACEMENTS,73373-RESIDENTIAL & NURSING CARE PLACEMENTS,Third Party Payments,Revenue
Walsall Council,http://opendatacommunities.org/id/metropolitan-district-council/walsall,WC87-296,31/12/2017,Adult Social Care,ANCHOR,06/12/2017,"1,800.00",73373-RESIDENTIAL & NURSING CARE PLACEMENTS,73373-RESIDENTIAL & NURSING CARE PLACEMENTS,Third Party Payments,Revenue
Walsall Council,http://opendatacommunities.org/id/metropolitan-district-council/walsall,WC87-297,31/12/2017,Adult Social Care,ANCHOR,06/12/2017,"1,800.00",73373-RESIDENTIAL & NURSING CARE PLACEMENTS,73373-RESIDENTIAL & NURSING CARE PLACEMENTS,Third Party Payments,Revenue
Walsall Council,http://opendatacommunities.org/id/metropolitan-district-council/walsall,WC87-298,31/12/2017,Adult Social Care,ANCHOR,06/12/2017,"1,800.00",73373-RESIDENTIAL & NURSING CARE PLACEMENTS,73373-RESIDENTIAL & NURSING CARE PLACEMENTS,Third Party Payments,Revenue
Walsall Council,http://opendatacommunities.org/id/metropolitan-district-council/walsall,WC87-299,31/12/2017,Adult Social Care,ANCHOR,06/12/2017,"1,800.00",73373-RESIDENTIAL & NURSING CARE PLACEMENTS,73373-RESIDENTIAL & NURSING CARE PLACEMENTS,Third Party Payments,Revenue
Walsall Council,http://opendatacommunities.org/id/metropolitan-district-council/walsall,WC87-300,31/12/2017,Adult Social Care,ANCHOR,06/12/2017,"1,800.00",73373-RESIDENTIAL & NURSING CARE PLACEMENTS,73373-RESIDENTIAL & NURSING CARE PLACEMENTS,Third Party Payments,Revenue
Walsall Council,http://opendatacommunities.org/id/metropolitan-district-council/walsall,WC87-301,31/12/2017,Adult Social Care,ANCHOR,06/12/2017,"1,800.00",73373-RESIDENTIAL & NURSING CARE PLACEMENTS,73373-RESIDENTIAL & NURSING CARE PLACEMENTS,Third Party Payments,Revenue
Walsall Council,http://opendatacommunities.org/id/metropolitan-district-council/walsall,WC87-302,31/12/2017,Adult Social Care,ANCHOR,18/12/2017,"1,800.00",73373-RESIDENTIAL & NURSING CARE PLACEMENTS,73373-RESIDENTIAL & NURSING CARE PLACEMENTS,Third Party Payments,Revenue
Walsall Council,http://opendatacommunities.org/id/metropolitan-district-council/walsall,WC87-303,31/12/2017,Adult Social Care,ANCHOR,18/12/2017,"1,800.00",73373-RESIDENTIAL & NURSING CARE PLACEMENTS,73373-RESIDENTIAL & NURSING CARE PLACEMENTS,Third Party Payments,Revenue
Walsall Council,http://opendatacommunities.org/id/metropolitan-district-council/walsall,WC87-304,31/12/2017,Adult Social Care,ANCHOR,18/12/2017,"1,800.00",73373-RESIDENTIAL & NURSING CARE PLACEMENTS,73373-RESIDENTIAL & NURSING CARE PLACEMENTS,Third Party Payments,Revenue
Walsall Council,http://opendatacommunities.org/id/metropolitan-district-council/walsall,WC87-305,31/12/2017,Adult Social Care,ANCHOR,18/12/2017,"1,800.00",73373-RESIDENTIAL & NURSING CARE PLACEMENTS,73373-RESIDENTIAL & NURSING CARE PLACEMENTS,Third Party Payments,Revenue
Walsall Council,http://opendatacommunities.org/id/metropolitan-district-council/walsall,WC87-306,31/12/2017,Adult Social Care,ANCHOR,22/12/2017,"1,800.00",73373-RESIDENTIAL & NURSING CARE PLACEMENTS,73373-RESIDENTIAL & NURSING CARE PLACEMENTS,Third Party Payments,Revenue
Walsall Council,http://opendatacommunities.org/id/metropolitan-district-council/walsall,WC87-307,31/12/2017,Adult Social Care,ANCHOR,22/12/2017,"1,800.00",73373-RESIDENTIAL & NURSING CARE PLACEMENTS,73373-RESIDENTIAL & NURSING CARE PLACEMENTS,Third Party Payments,Revenue
Walsall Council,http://opendatacommunities.org/id/metropolitan-district-council/walsall,WC87-308,31/12/2017,Adult Social Care,ANCHOR,22/12/2017,"1,800.00",73373-RESIDENTIAL & NURSING CARE PLACEMENTS,73373-RESIDENTIAL & NURSING CARE PLACEMENTS,Third Party Payments,Revenue
Walsall Council,http://opendatacommunities.org/id/metropolitan-district-council/walsall,WC87-309,31/12/2017,Adult Social Care,ANCHOR,22/12/2017,"1,800.00",73373-RESIDENTIAL & NURSING CARE PLACEMENTS,73373-RESIDENTIAL & NURSING CARE PLACEMENTS,Third Party Payments,Revenue
Walsall Council,http://opendatacommunities.org/id/metropolitan-district-council/walsall,WC87-310,31/12/2017,Adult Social Care,ANCHOR,22/12/2017,"1,800.00",73373-RESIDENTIAL & NURSING CARE PLACEMENTS,73373-RESIDENTIAL & NURSING CARE PLACEMENTS,Third Party Payments,Revenue
Walsall Council,http://opendatacommunities.org/id/metropolitan-district-council/walsall,WC87-311,31/12/2017,Adult Social Care,ANCHOR,22/12/2017,"1,800.00",73373-RESIDENTIAL & NURSING CARE PLACEMENTS,73373-RESIDENTIAL & NURSING CARE PLACEMENTS,Third Party Payments,Revenue
Walsall Council,http://opendatacommunities.org/id/metropolitan-district-council/walsall,WC87-312,31/12/2017,Adult Social Care,ANCHOR,06/12/2017,"1,840.00",73373-RESIDENTIAL & NURSING CARE PLACEMENTS,73373-RESIDENTIAL & NURSING CARE PLACEMENTS,Third Party Payments,Revenue
Walsall Council,http://opendatacommunities.org/id/metropolitan-district-council/walsall,WC87-313,31/12/2017,Adult Social Care,ANCHOR,06/12/2017,"1,840.00",73373-RESIDENTIAL & NURSING CARE PLACEMENTS,73373-RESIDENTIAL & NURSING CARE PLACEMENTS,Third Party Payments,Revenue
Walsall Council,http://opendatacommunities.org/id/metropolitan-district-council/walsall,WC87-314,31/12/2017,Adult Social Care,ANCHOR,06/12/2017,"1,840.00",73373-RESIDENTIAL & NURSING CARE PLACEMENTS,73373-RESIDENTIAL & NURSING CARE PLACEMENTS,Third Party Payments,Revenue
Walsall Council,http://opendatacommunities.org/id/metropolitan-district-council/walsall,WC87-315,31/12/2017,Adult Social Care,ANCHOR,06/12/2017,"1,840.00",73373-RESIDENTIAL & NURSING CARE PLACEMENTS,73373-RESIDENTIAL & NURSING CARE PLACEMENTS,Third Party Payments,Revenue
Walsall Council,http://opendatacommunities.org/id/metropolitan-district-council/walsall,WC87-316,31/12/2017,Adult Social Care,ANCHOR,06/12/2017,"1,840.00",73373-RESIDENTIAL & NURSING CARE PLACEMENTS,73373-RESIDENTIAL & NURSING CARE PLACEMENTS,Third Party Payments,Revenue
Walsall Council,http://opendatacommunities.org/id/metropolitan-district-council/walsall,WC87-317,31/12/2017,Adult Social Care,ANCHOR,18/12/2017,"1,840.00",73373-RESIDENTIAL & NURSING CARE PLACEMENTS,73373-RESIDENTIAL & NURSING CARE PLACEMENTS,Third Party Payments,Revenue
Walsall Council,http://opendatacommunities.org/id/metropolitan-district-council/walsall,WC87-318,31/12/2017,Adult Social Care,ANCHOR,18/12/2017,"1,840.00",73373-RESIDENTIAL & NURSING CARE PLACEMENTS,73373-RESIDENTIAL & NURSING CARE PLACEMENTS,Third Party Payments,Revenue
Walsall Council,http://opendatacommunities.org/id/metropolitan-district-council/walsall,WC87-319,31/12/2017,Adult Social Care,ANCHOR,18/12/2017,"1,840.00",73373-RESIDENTIAL & NURSING CARE PLACEMENTS,73373-RESIDENTIAL & NURSING CARE PLACEMENTS,Third Party Payments,Revenue
Walsall Council,http://opendatacommunities.org/id/metropolitan-district-council/walsall,WC87-320,31/12/2017,Adult Social Care,ANCHOR,18/12/2017,"1,840.00",73373-RESIDENTIAL & NURSING CARE PLACEMENTS,73373-RESIDENTIAL & NURSING CARE PLACEMENTS,Third Party Payments,Revenue
Walsall Council,http://opendatacommunities.org/id/metropolitan-district-council/walsall,WC87-321,31/12/2017,Adult Social Care,ANCHOR,06/12/2017,"2,080.00",73373-RESIDENTIAL & NURSING CARE PLACEMENTS,73373-RESIDENTIAL & NURSING CARE PLACEMENTS,Third Party Payments,Revenue
Walsall Council,http://opendatacommunities.org/id/metropolitan-district-council/walsall,WC87-322,31/12/2017,Adult Social Care,ANCHOR,18/12/2017,"2,162.86",73373-RESIDENTIAL & NURSING CARE PLACEMENTS,73373-RESIDENTIAL & NURSING CARE PLACEMENTS,Third Party Payments,Revenue
Walsall Council,http://opendatacommunities.org/id/metropolitan-district-council/walsall,WC87-323,31/12/2017,Adult Social Care,ANCHOR,06/12/2017,"2,180.00",73373-RESIDENTIAL & NURSING CARE PLACEMENTS,73373-RESIDENTIAL & NURSING CARE PLACEMENTS,Third Party Payments,Revenue
Walsall Council,http://opendatacommunities.org/id/metropolitan-district-council/walsall,WC87-324,31/12/2017,Adult Social Care,ANCHOR,06/12/2017,"2,180.00",73373-RESIDENTIAL & NURSING CARE PLACEMENTS,73373-RESIDENTIAL & NURSING CARE PLACEMENTS,Third Party Payments,Revenue
Walsall Council,http://opendatacommunities.org/id/metropolitan-district-council/walsall,WC87-325,31/12/2017,Adult Social Care,ANCHOR,12/12/2017,"2,180.00",73373-RESIDENTIAL & NURSING CARE PLACEMENTS,73373-RESIDENTIAL & NURSING CARE PLACEMENTS,Third Party Payments,Revenue
Walsall Council,http://opendatacommunities.org/id/metropolitan-district-council/walsall,WC87-326,31/12/2017,Adult Social Care,ANCHOR,12/12/2017,"2,180.00",73373-RESIDENTIAL & NURSING CARE PLACEMENTS,73373-RESIDENTIAL & NURSING CARE PLACEMENTS,Third Party Payments,Revenue
Walsall Council,http://opendatacommunities.org/id/metropolitan-district-council/walsall,WC87-327,31/12/2017,Adult Social Care,ANCHOR,06/12/2017,"2,234.28",73373-RESIDENTIAL & NURSING CARE PLACEMENTS,73373-RESIDENTIAL & NURSING CARE PLACEMENTS,Third Party Payments,Revenue
Walsall Council,http://opendatacommunities.org/id/metropolitan-district-council/walsall,WC87-328,31/12/2017,Adult Social Care,ANCHOR,12/12/2017,"2,250.00",73373-RESIDENTIAL & NURSING CARE PLACEMENTS,73373-RESIDENTIAL & NURSING CARE PLACEMENTS,Third Party Payments,Revenue
Walsall Council,http://opendatacommunities.org/id/metropolitan-district-council/walsall,WC87-329,31/12/2017,Adult Social Care,ANCHOR,12/12/2017,"2,314.29",73373-RESIDENTIAL & NURSING CARE PLACEMENTS,73373-RESIDENTIAL & NURSING CARE PLACEMENTS,Third Party Payments,Revenue
Walsall Council,http://opendatacommunities.org/id/metropolitan-district-council/walsall,WC87-330,31/12/2017,Adult Social Care,ANCHOR,12/12/2017,"4,307.14",73373-RESIDENTIAL & NURSING CARE PLACEMENTS,73373-RESIDENTIAL & NURSING CARE PLACEMENTS,Third Party Payments,Revenue
Walsall Council,http://opendatacommunities.org/id/metropolitan-district-council/walsall,WC87-331,31/12/2017,Adult Social Care,ANCHOR,06/12/2017,"7,622.86",73373-RESIDENTIAL & NURSING CARE PLACEMENTS,73373-RESIDENTIAL & NURSING CARE PLACEMENTS,Third Party Payments,Revenue
Walsall Council,http://opendatacommunities.org/id/metropolitan-district-council/walsall,WC87-332,31/12/2017,Childrens,REDACTED,18/12/2017,314.44,74509-SPECIAL GUARDIANSHIP ORDERS,74509-SPECIAL GUARDIANSHIP ORDERS,Transfer Payments,Revenue
Walsall Council,http://opendatacommunities.org/id/metropolitan-district-council/walsall,WC87-333,31/12/2017,Childrens,REDACTED,04/12/2017,9.24,60006-NEW-FURNITURE & EQUIPMENT,60006-NEW-FURNITURE & EQUIPMENT,Supplies & Services,Revenue
Walsall Council,http://opendatacommunities.org/id/metropolitan-district-council/walsall,WC87-334,31/12/2017,Childrens,REDACTED,28/12/2017,9.24,60006-NEW-FURNITURE & EQUIPMENT,60006-NEW-FURNITURE & EQUIPMENT,Supplies & Services,Revenue
Walsall Council,http://opendatacommunities.org/id/metropolitan-district-council/walsall,WC87-335,31/12/2017,Childrens,REDACTED,04/12/2017,101.29,74503-BIRTHDAY ALLOWANCE-FOSTER CARERS,74503-BIRTHDAY ALLOWANCE-FOSTER CARERS,Transfer Payments,Revenue
Walsall Council,http://opendatacommunities.org/id/metropolitan-district-council/walsall,WC87-336,31/12/2017,Childrens,REDACTED,04/12/2017,202.58,74504-HOLIDAY/CHRISTMAS ALLOWANCE-FOSTER CARERS,74504-HOLIDAY/CHRISTMAS ALLOWANCE-FOSTER CARERS,Transfer Payments,Revenue
Walsall Council,http://opendatacommunities.org/id/metropolitan-district-council/walsall,WC87-337,31/12/2017,Childrens,REDACTED,04/12/2017,810.32,74501-MAINTENANCE ALLOWANCE-FOSTER CARERS,74501-MAINTENANCE ALLOWANCE-FOSTER CARERS,Transfer Payments,Revenue
Walsall Council,http://opendatacommunities.org/id/metropolitan-district-council/walsall,WC87-338,31/12/2017,Childrens,REDACTED,28/12/2017,810.32,74501-MAINTENANCE ALLOWANCE-FOSTER CARERS,74501-MAINTENANCE ALLOWANCE-FOSTER CARERS,Transfer Payments,Revenue
Walsall Council,http://opendatacommunities.org/id/metropolitan-district-council/walsall,WC87-339,31/12/2017,Childrens,REDACTED,04/12/2017,897.52,74508-INTERNAL FOSTER CARERS-CARER FEES,74508-INTERNAL FOSTER CARERS-CARER FEES,Transfer Payments,Revenue
Walsall Council,http://opendatacommunities.org/id/metropolitan-district-council/walsall,WC87-340,31/12/2017,Childrens,REDACTED,28/12/2017,897.52,74508-INTERNAL FOSTER CARERS-CARER FEES,74508-INTERNAL FOSTER CARERS-CARER FEES,Transfer Payments,Revenue
Walsall Council,http://opendatacommunities.org/id/metropolitan-district-council/walsall,WC87-341,31/12/2017,Adult Social Care,REDACTED,11/12/2017,"1,083.25",76422-DIRECT PAYMENTS TO SOCIAL SERVICES CLIENTS,76422-DIRECT PAYMENTS TO SOCIAL SERVICES CLIENTS,Transfer Payments,Revenue
Walsall Council,http://opendatacommunities.org/id/metropolitan-district-council/walsall,WC87-342,31/12/2017,Adult Social Care,ANGEL COURT RESIDENTIAL CARE HOME,12/12/2017,405.00,73373-RESIDENTIAL & NURSING CARE PLACEMENTS,73373-RESIDENTIAL & NURSING CARE PLACEMENTS,Third Party Payments,Revenue
Walsall Council,http://opendatacommunities.org/id/metropolitan-district-council/walsall,WC87-343,31/12/2017,Adult Social Care,ANGEL COURT RESIDENTIAL CARE HOME,12/12/2017,460.00,73373-RESIDENTIAL & NURSING CARE PLACEMENTS,73373-RESIDENTIAL & NURSING CARE PLACEMENTS,Third Party Payments,Revenue
Walsall Council,http://opendatacommunities.org/id/metropolitan-district-council/walsall,WC87-344,31/12/2017,Adult Social Care,ANGEL COURT RESIDENTIAL CARE HOME,12/12/2017,"1,511.43",73373-RESIDENTIAL & NURSING CARE PLACEMENTS,73373-RESIDENTIAL & NURSING CARE PLACEMENTS,Third Party Payments,Revenue
Walsall Council,http://opendatacommunities.org/id/metropolitan-district-council/walsall,WC87-345,31/12/2017,Adult Social Care,ANGEL COURT RESIDENTIAL CARE HOME,12/12/2017,"1,971.43",73373-RESIDENTIAL & NURSING CARE PLACEMENTS,73373-RESIDENTIAL & NURSING CARE PLACEMENTS,Third Party Payments,Revenue
Walsall Council,http://opendatacommunities.org/id/metropolitan-district-council/walsall,WC87-346,31/12/2017,Adult Social Care,ANGEL COURT RESIDENTIAL CARE HOME,12/12/2017,"2,037.14",73373-RESIDENTIAL & NURSING CARE PLACEMENTS,73373-RESIDENTIAL & NURSING CARE PLACEMENTS,Third Party Payments,Revenue
Walsall Council,http://opendatacommunities.org/id/metropolitan-district-council/walsall,WC87-347,31/12/2017,Adult Social Care,ANGEL COURT RESIDENTIAL CARE HOME,12/12/2017,"3,607.69",73373-RESIDENTIAL & NURSING CARE PLACEMENTS,73373-RESIDENTIAL & NURSING CARE PLACEMENTS,Third Party Payments,Revenue
Walsall Council,http://opendatacommunities.org/id/metropolitan-district-council/walsall,WC87-348,31/12/2017,Adult Social Care,ANGEL COURT RESIDENTIAL CARE HOME,12/12/2017,"4,167.96",73373-RESIDENTIAL & NURSING CARE PLACEMENTS,73373-RESIDENTIAL & NURSING CARE PLACEMENTS,Third Party Payments,Revenue
Walsall Council,http://opendatacommunities.org/id/metropolitan-district-council/walsall,WC87-349,31/12/2017,Adult Social Care,ANGEL COURT RESIDENTIAL CARE HOME,12/12/2017,"4,230.78",73373-RESIDENTIAL & NURSING CARE PLACEMENTS,73373-RESIDENTIAL & NURSING CARE PLACEMENTS,Third Party Payments,Revenue
Walsall Council,http://opendatacommunities.org/id/metropolitan-district-council/walsall,WC87-350,31/12/2017,Adult Social Care,ANGEL COURT RESIDENTIAL CARE HOME,12/12/2017,"12,091.43",73373-RESIDENTIAL & NURSING CARE PLACEMENTS,73373-RESIDENTIAL & NURSING CARE PLACEMENTS,Third Party Payments,Revenue
Walsall Council,http://opendatacommunities.org/id/metropolitan-district-council/walsall,WC87-351,31/12/2017,Childrens,REDACTED,18/12/2017,368.76,74509-SPECIAL GUARDIANSHIP ORDERS,74509-SPECIAL GUARDIANSHIP ORDERS,Transfer Payments,Revenue
Walsall Council,http://opendatacommunities.org/id/metropolitan-district-council/walsall,WC87-352,31/12/2017,Childrens,REDACTED,18/12/2017,368.76,74509-SPECIAL GUARDIANSHIP ORDERS,74509-SPECIAL GUARDIANSHIP ORDERS,Transfer Payments,Revenue
Walsall Council,http://opendatacommunities.org/id/metropolitan-district-council/walsall,WC87-353,31/12/2017,Childrens,REDACTED,18/12/2017,500.16,74509-SPECIAL GUARDIANSHIP ORDERS,74509-SPECIAL GUARDIANSHIP ORDERS,Transfer Payments,Revenue
Walsall Council,http://opendatacommunities.org/id/metropolitan-district-council/walsall,WC87-354,31/12/2017,Childrens,REDACTED,18/12/2017,312.04,74509-SPECIAL GUARDIANSHIP ORDERS,74509-SPECIAL GUARDIANSHIP ORDERS,Transfer Payments,Revenue
Walsall Council,http://opendatacommunities.org/id/metropolitan-district-council/walsall,WC87-355,31/12/2017,Adult Social Care,REDACTED,11/12/2017,409.20,76422-DIRECT PAYMENTS TO SOCIAL SERVICES CLIENTS,76422-DIRECT PAYMENTS TO SOCIAL SERVICES CLIENTS,Transfer Payments,Revenue
Walsall Council,http://opendatacommunities.org/id/metropolitan-district-council/walsall,WC87-356,31/12/2017,Adult Social Care,REDACTED,11/12/2017,850.30,76422-DIRECT PAYMENTS TO SOCIAL SERVICES CLIENTS,76422-DIRECT PAYMENTS TO SOCIAL SERVICES CLIENTS,Transfer Payments,Revenue
Walsall Council,http://opendatacommunities.org/id/metropolitan-district-council/walsall,WC87-357,31/12/2017,Adult Social Care,REDACTED,11/12/2017,"1,409.40",76422-DIRECT PAYMENTS TO SOCIAL SERVICES CLIENTS,76422-DIRECT PAYMENTS TO SOCIAL SERVICES CLIENTS,Transfer Payments,Revenue
Walsall Council,http://opendatacommunities.org/id/metropolitan-district-council/walsall,WC87-358,31/12/2017,Adult Social Care,ANSON COURT RESIDENTIAL HOME,12/12/2017,-394.29,73373-RESIDENTIAL & NURSING CARE PLACEMENTS,73373-RESIDENTIAL & NURSING CARE PLACEMENTS,Third Party Payments,Revenue
Walsall Council,http://opendatacommunities.org/id/metropolitan-district-council/walsall,WC87-359,31/12/2017,Adult Social Care,ANSON COURT RESIDENTIAL HOME,12/12/2017,920.00,73373-RESIDENTIAL & NURSING CARE PLACEMENTS,73373-RESIDENTIAL & NURSING CARE PLACEMENTS,Third Party Payments,Revenue
Walsall Council,http://opendatacommunities.org/id/metropolitan-district-council/walsall,WC87-360,31/12/2017,Adult Social Care,ANSON COURT RESIDENTIAL HOME,12/12/2017,"1,840.00",73373-RESIDENTIAL & NURSING CARE PLACEMENTS,73373-RESIDENTIAL & NURSING CARE PLACEMENTS,Third Party Payments,Revenue
Walsall Council,http://opendatacommunities.org/id/metropolitan-district-council/walsall,WC87-361,31/12/2017,Adult Social Care,ANSON COURT RESIDENTIAL HOME,18/12/2017,"1,840.00",73373-RESIDENTIAL & NURSING CARE PLACEMENTS,73373-RESIDENTIAL & NURSING CARE PLACEMENTS,Third Party Payments,Revenue
Walsall Council,http://opendatacommunities.org/id/metropolitan-district-council/walsall,WC87-362,31/12/2017,Adult Social Care,ANSON COURT RESIDENTIAL HOME,18/12/2017,"1,840.00",73373-RESIDENTIAL & NURSING CARE PLACEMENTS,73373-RESIDENTIAL & NURSING CARE PLACEMENTS,Third Party Payments,Revenue
Walsall Council,http://opendatacommunities.org/id/metropolitan-district-council/walsall,WC87-363,31/12/2017,Adult Social Care,ANSON COURT RESIDENTIAL HOME,18/12/2017,"1,840.00",73373-RESIDENTIAL & NURSING CARE PLACEMENTS,73373-RESIDENTIAL & NURSING CARE PLACEMENTS,Third Party Payments,Revenue
Walsall Council,http://opendatacommunities.org/id/metropolitan-district-council/walsall,WC87-364,31/12/2017,Adult Social Care,ANSON COURT RESIDENTIAL HOME,18/12/2017,"1,840.00",73373-RESIDENTIAL & NURSING CARE PLACEMENTS,73373-RESIDENTIAL & NURSING CARE PLACEMENTS,Third Party Payments,Revenue
Walsall Council,http://opendatacommunities.org/id/metropolitan-district-council/walsall,WC87-365,31/12/2017,Adult Social Care,ANSON COURT RESIDENTIAL HOME,18/12/2017,"1,840.00",73373-RESIDENTIAL & NURSING CARE PLACEMENTS,73373-RESIDENTIAL & NURSING CARE PLACEMENTS,Third Party Payments,Revenue
Walsall Council,http://opendatacommunities.org/id/metropolitan-district-council/walsall,WC87-366,31/12/2017,Adult Social Care,ANSON COURT RESIDENTIAL HOME,18/12/2017,"1,840.00",73373-RESIDENTIAL & NURSING CARE PLACEMENTS,73373-RESIDENTIAL & NURSING CARE PLACEMENTS,Third Party Payments,Revenue
Walsall Council,http://opendatacommunities.org/id/metropolitan-district-council/walsall,WC87-367,31/12/2017,Adult Social Care,ANSON COURT RESIDENTIAL HOME,18/12/2017,"1,840.00",73373-RESIDENTIAL & NURSING CARE PLACEMENTS,73373-RESIDENTIAL & NURSING CARE PLACEMENTS,Third Party Payments,Revenue
Walsall Council,http://opendatacommunities.org/id/metropolitan-district-council/walsall,WC87-368,31/12/2017,Adult Social Care,ANSON COURT RESIDENTIAL HOME,18/12/2017,"1,840.00",73373-RESIDENTIAL & NURSING CARE PLACEMENTS,73373-RESIDENTIAL & NURSING CARE PLACEMENTS,Third Party Payments,Revenue
Walsall Council,http://opendatacommunities.org/id/metropolitan-district-council/walsall,WC87-369,31/12/2017,Adult Social Care,ANSON COURT RESIDENTIAL HOME,18/12/2017,"1,840.00",73373-RESIDENTIAL & NURSING CARE PLACEMENTS,73373-RESIDENTIAL & NURSING CARE PLACEMENTS,Third Party Payments,Revenue
Walsall Council,http://opendatacommunities.org/id/metropolitan-district-council/walsall,WC87-370,31/12/2017,Adult Social Care,ANSON COURT RESIDENTIAL HOME,18/12/2017,"1,840.00",73373-RESIDENTIAL & NURSING CARE PLACEMENTS,73373-RESIDENTIAL & NURSING CARE PLACEMENTS,Third Party Payments,Revenue
Walsall Council,http://opendatacommunities.org/id/metropolitan-district-council/walsall,WC87-371,31/12/2017,Adult Social Care,ANSON COURT RESIDENTIAL HOME,18/12/2017,"1,840.00",73373-RESIDENTIAL & NURSING CARE PLACEMENTS,73373-RESIDENTIAL & NURSING CARE PLACEMENTS,Third Party Payments,Revenue
Walsall Council,http://opendatacommunities.org/id/metropolitan-district-council/walsall,WC87-372,31/12/2017,Adult Social Care,ANSON COURT RESIDENTIAL HOME,18/12/2017,"1,840.00",73373-RESIDENTIAL & NURSING CARE PLACEMENTS,73373-RESIDENTIAL & NURSING CARE PLACEMENTS,Third Party Payments,Revenue
Walsall Council,http://opendatacommunities.org/id/metropolitan-district-council/walsall,WC87-373,31/12/2017,Adult Social Care,ANSON COURT RESIDENTIAL HOME,18/12/2017,"1,840.00",73373-RESIDENTIAL & NURSING CARE PLACEMENTS,73373-RESIDENTIAL & NURSING CARE PLACEMENTS,Third Party Payments,Revenue
Walsall Council,http://opendatacommunities.org/id/metropolitan-district-council/walsall,WC87-374,31/12/2017,Adult Social Care,ANSON COURT RESIDENTIAL HOME,18/12/2017,"1,840.00",73373-RESIDENTIAL & NURSING CARE PLACEMENTS,73373-RESIDENTIAL & NURSING CARE PLACEMENTS,Third Party Payments,Revenue
Walsall Council,http://opendatacommunities.org/id/metropolitan-district-council/walsall,WC87-375,31/12/2017,Adult Social Care,ANSON COURT RESIDENTIAL HOME,18/12/2017,"1,840.00",73373-RESIDENTIAL & NURSING CARE PLACEMENTS,73373-RESIDENTIAL & NURSING CARE PLACEMENTS,Third Party Payments,Revenue
Walsall Council,http://opendatacommunities.org/id/metropolitan-district-council/walsall,WC87-376,31/12/2017,Adult Social Care,ANSON COURT RESIDENTIAL HOME,18/12/2017,"1,840.00",73373-RESIDENTIAL & NURSING CARE PLACEMENTS,73373-RESIDENTIAL & NURSING CARE PLACEMENTS,Third Party Payments,Revenue
Walsall Council,http://opendatacommunities.org/id/metropolitan-district-council/walsall,WC87-377,31/12/2017,Adult Social Care,ANSON COURT RESIDENTIAL HOME,18/12/2017,"1,840.00",73373-RESIDENTIAL & NURSING CARE PLACEMENTS,73373-RESIDENTIAL & NURSING CARE PLACEMENTS,Third Party Payments,Revenue
Walsall Council,http://opendatacommunities.org/id/metropolitan-district-council/walsall,WC87-378,31/12/2017,Adult Social Care,ANSON COURT RESIDENTIAL HOME,18/12/2017,"1,920.00",73373-RESIDENTIAL & NURSING CARE PLACEMENTS,73373-RESIDENTIAL & NURSING CARE PLACEMENTS,Third Party Payments,Revenue
Walsall Council,http://opendatacommunities.org/id/metropolitan-district-council/walsall,WC87-379,31/12/2017,Adult Social Care,ANSON COURT RESIDENTIAL HOME,18/12/2017,"1,920.00",73373-RESIDENTIAL & NURSING CARE PLACEMENTS,73373-RESIDENTIAL & NURSING CARE PLACEMENTS,Third Party Payments,Revenue
Walsall Council,http://opendatacommunities.org/id/metropolitan-district-council/walsall,WC87-380,31/12/2017,Adult Social Care,ANSON COURT RESIDENTIAL HOME,18/12/2017,"1,920.00",73373-RESIDENTIAL & NURSING CARE PLACEMENTS,73373-RESIDENTIAL & NURSING CARE PLACEMENTS,Third Party Payments,Revenue
Walsall Council,http://opendatacommunities.org/id/metropolitan-district-council/walsall,WC87-381,31/12/2017,Adult Social Care,ANSON COURT RESIDENTIAL HOME,18/12/2017,"3,548.57",73373-RESIDENTIAL & NURSING CARE PLACEMENTS,73373-RESIDENTIAL & NURSING CARE PLACEMENTS,Third Party Payments,Revenue
Walsall Council,http://opendatacommunities.org/id/metropolitan-district-council/walsall,WC87-382,31/12/2017,Adult Social Care,ANSON COURT RESIDENTIAL HOME,12/12/2017,"4,920.00",73373-RESIDENTIAL & NURSING CARE PLACEMENTS,73373-RESIDENTIAL & NURSING CARE PLACEMENTS,Third Party Payments,Revenue
Walsall Council,http://opendatacommunities.org/id/metropolitan-district-council/walsall,WC87-383,31/12/2017,Adult Social Care,ANSON COURT RESIDENTIAL HOME,18/12/2017,"4,920.00",73373-RESIDENTIAL & NURSING CARE PLACEMENTS,73373-RESIDENTIAL & NURSING CARE PLACEMENTS,Third Party Payments,Revenue
Walsall Council,http://opendatacommunities.org/id/metropolitan-district-council/walsall,WC87-384,31/12/2017,Childrens,REDACTED,18/12/2017,604.00,74510-RESIDENTS ORDERS,74510-RESIDENTS ORDERS,Third Party Payments,Revenue
Walsall Council,http://opendatacommunities.org/id/metropolitan-district-council/walsall,WC87-385,31/12/2017,Childrens,REDACTED,18/12/2017,333.12,74509-SPECIAL GUARDIANSHIP ORDERS,74509-SPECIAL GUARDIANSHIP ORDERS,Transfer Payments,Revenue
Walsall Council,http://opendatacommunities.org/id/metropolitan-district-council/walsall,WC87-386,31/12/2017,Adult Social Care,ANVILLE COURT CARE LTD,12/12/2017,887.14,73373-RESIDENTIAL & NURSING CARE PLACEMENTS,73373-RESIDENTIAL & NURSING CARE PLACEMENTS,Third Party Payments,Revenue
Walsall Council,http://opendatacommunities.org/id/metropolitan-district-council/walsall,WC87-387,31/12/2017,Adult Social Care,ANVILLE COURT CARE LTD,12/12/2017,"3,214.29",73373-RESIDENTIAL & NURSING CARE PLACEMENTS,73373-RESIDENTIAL & NURSING CARE PLACEMENTS,Third Party Payments,Revenue
Walsall Council,http://opendatacommunities.org/id/metropolitan-district-council/walsall,WC87-388,31/12/2017,Adult Social Care,ANVILLE COURT CARE LTD,12/12/2017,"3,214.29",73373-RESIDENTIAL & NURSING CARE PLACEMENTS,73373-RESIDENTIAL & NURSING CARE PLACEMENTS,Third Party Payments,Revenue
Walsall Council,http://opendatacommunities.org/id/metropolitan-district-council/walsall,WC87-389,31/12/2017,Adult Social Care,ANVILLE COURT CARE LTD,12/12/2017,"3,321.43",73373-RESIDENTIAL & NURSING CARE PLACEMENTS,73373-RESIDENTIAL & NURSING CARE PLACEMENTS,Third Party Payments,Revenue
Walsall Council,http://opendatacommunities.org/id/metropolitan-district-council/walsall,WC87-390,31/12/2017,Adult Social Care,ANVILLE COURT CARE LTD,12/12/2017,"3,321.43",73373-RESIDENTIAL & NURSING CARE PLACEMENTS,73373-RESIDENTIAL & NURSING CARE PLACEMENTS,Third Party Payments,Revenue
Walsall Council,http://opendatacommunities.org/id/metropolitan-district-council/walsall,WC87-391,31/12/2017,Childrens,APEX CONSULTANCY AND TRAINING SERVICES LTD,20/12/2017,"1,500.00",63000-PROFESSIONAL FEES AND SERVICES,63000-PROFESSIONAL FEES AND SERVICES,Supplies & Services,Revenue
Walsall Council,http://opendatacommunities.org/id/metropolitan-district-council/walsall,WC87-392,31/12/2017,Economy & Environment,AQUALYMPIC,20/12/2017,317.50,34305-AGENCY STAFF-EMPLOYEES,34305-AGENCY STAFF-EMPLOYEES,Employees,Revenue
Walsall Council,http://opendatacommunities.org/id/metropolitan-district-council/walsall,WC87-393,31/12/2017,Economy & Environment,AQUALYMPIC,20/12/2017,"1,585.00",34305-AGENCY STAFF-EMPLOYEES,34305-AGENCY STAFF-EMPLOYEES,Employees,Revenue
Walsall Council,http://opendatacommunities.org/id/metropolitan-district-council/walsall,WC87-394,31/12/2017,Economy & Environment,AQUALYMPIC,14/12/2017,"2,112.50",34305-AGENCY STAFF-EMPLOYEES,34305-AGENCY STAFF-EMPLOYEES,Employees,Revenue
Walsall Council,http://opendatacommunities.org/id/metropolitan-district-council/walsall,WC87-395,31/12/2017,Economy & Environment,AQUALYMPIC,04/12/2017,"2,152.50",34305-AGENCY STAFF-EMPLOYEES,34305-AGENCY STAFF-EMPLOYEES,Employees,Revenue
Walsall Council,http://opendatacommunities.org/id/metropolitan-district-council/walsall,WC87-396,31/12/2017,Adult Social Care,ARBORETUM NURSING HOME.,12/12/2017,"2,000.00",73373-RESIDENTIAL & NURSING CARE PLACEMENTS,73373-RESIDENTIAL & NURSING CARE PLACEMENTS,Third Party Payments,Revenue
Walsall Council,http://opendatacommunities.org/id/metropolitan-district-council/walsall,WC87-397,31/12/2017,Adult Social Care,ARBORETUM NURSING HOME.,18/12/2017,"2,000.00",73373-RESIDENTIAL & NURSING CARE PLACEMENTS,73373-RESIDENTIAL & NURSING CARE PLACEMENTS,Third Party Payments,Revenue
Walsall Council,http://opendatacommunities.org/id/metropolitan-district-council/walsall,WC87-398,31/12/2017,Adult Social Care,ARBORETUM NURSING HOME.,18/12/2017,"2,000.00",73373-RESIDENTIAL & NURSING CARE PLACEMENTS,73373-RESIDENTIAL & NURSING CARE PLACEMENTS,Third Party Payments,Revenue
Walsall Council,http://opendatacommunities.org/id/metropolitan-district-council/walsall,WC87-399,31/12/2017,Adult Social Care,ARBORETUM NURSING HOME.,06/12/2017,"2,200.00",73373-RESIDENTIAL & NURSING CARE PLACEMENTS,73373-RESIDENTIAL & NURSING CARE PLACEMENTS,Third Party Payments,Revenue
Walsall Council,http://opendatacommunities.org/id/metropolitan-district-council/walsall,WC87-400,31/12/2017,Adult Social Care,ARBORETUM NURSING HOME.,12/12/2017,"2,200.00",73373-RESIDENTIAL & NURSING CARE PLACEMENTS,73373-RESIDENTIAL & NURSING CARE PLACEMENTS,Third Party Payments,Revenue
Walsall Council,http://opendatacommunities.org/id/metropolitan-district-council/walsall,WC87-401,31/12/2017,Adult Social Care,ARBORETUM NURSING HOME.,12/12/2017,"2,500.00",73373-RESIDENTIAL & NURSING CARE PLACEMENTS,73373-RESIDENTIAL & NURSING CARE PLACEMENTS,Third Party Payments,Revenue
Walsall Council,http://opendatacommunities.org/id/metropolitan-district-council/walsall,WC87-402,31/12/2017,Adult Social Care,ARBORETUM NURSING HOME.,12/12/2017,"2,500.00",73373-RESIDENTIAL & NURSING CARE PLACEMENTS,73373-RESIDENTIAL & NURSING CARE PLACEMENTS,Third Party Payments,Revenue
Walsall Council,http://opendatacommunities.org/id/metropolitan-district-council/walsall,WC87-403,31/12/2017,Adult Social Care,ARBORETUM NURSING HOME.,12/12/2017,"2,600.00",73373-RESIDENTIAL & NURSING CARE PLACEMENTS,73373-RESIDENTIAL & NURSING CARE PLACEMENTS,Third Party Payments,Revenue
Walsall Council,http://opendatacommunities.org/id/metropolitan-district-council/walsall,WC87-404,31/12/2017,Economy & Environment,ARCADIS LLP,13/12/2017,"29,005.00",63000-PROFESSIONAL FEES AND SERVICES,63000-PROFESSIONAL FEES AND SERVICES,Supplies & Services,Revenue
Walsall Council,http://opendatacommunities.org/id/metropolitan-district-council/walsall,WC87-405,31/12/2017,Childrens,ARCHWAY ACADEMY,21/12/2017,"2,684.44",66502-TOP UP FUNDING -GRANTS TO SCHOOLS,66502-TOP UP FUNDING -GRANTS TO SCHOOLS,Third Party Payments,Revenue
Walsall Council,http://opendatacommunities.org/id/metropolitan-district-council/walsall,WC87-406,31/12/2017,Economy & Environment,ARCHWAY TCS LTD,15/12/2017,429.80,73025-PROFESSIONAL SERVICES-PRIV CONTRACTOR & OTHER AGENCIES,73025-PROFESSIONAL SERVICES-PRIV CONTRACTOR & OTHER AGENCIES,Third Party Payments,Revenue
Walsall Council,http://opendatacommunities.org/id/metropolitan-district-council/walsall,WC87-407,31/12/2017,Economy & Environment,ARCHWAY TCS LTD,21/12/2017,664.12,73025-PROFESSIONAL SERVICES-PRIV CONTRACTOR & OTHER AGENCIES,73025-PROFESSIONAL SERVICES-PRIV CONTRACTOR & OTHER AGENCIES,Third Party Payments,Revenue
Walsall Council,http://opendatacommunities.org/id/metropolitan-district-council/walsall,WC87-408,31/12/2017,Adult Social Care,ARK HOME HEALTHCARE LIMITED,06/12/2017,"31,943.18",73372-DOMICILIARY CARE,73372-DOMICILIARY CARE,Third Party Payments,Revenue
Walsall Council,http://opendatacommunities.org/id/metropolitan-district-council/walsall,WC87-409,31/12/2017,Childrens,ARNFIELD CARE LIMITED,04/12/2017,"15,616.00",74036-EXTERNAL RESIDENTIAL CARE-OTH AGENCY PROVISION,74036-EXTERNAL RESIDENTIAL CARE-OTH AGENCY PROVISION,Third Party Payments,Revenue
Walsall Council,http://opendatacommunities.org/id/metropolitan-district-council/walsall,WC87-410,31/12/2017,Childrens,ARNFIELD CARE LIMITED,28/12/2017,"15,616.00",74036-EXTERNAL RESIDENTIAL CARE-OTH AGENCY PROVISION,74036-EXTERNAL RESIDENTIAL CARE-OTH AGENCY PROVISION,Third Party Payments,Revenue
Walsall Council,http://opendatacommunities.org/id/metropolitan-district-council/walsall,WC87-411,31/12/2017,Childrens,ARTHUR M GRIFFITHS & SON LTD,13/12/2017,"335,022.40",01006-SITE WORKS MAIN CONTRACTORS,01006-SITE WORKS MAIN CONTRACTORS,Capital,Capital
Walsall Council,http://opendatacommunities.org/id/metropolitan-district-council/walsall,WC87-412,31/12/2017,Childrens,ARUNDALE PRIMARY SCHOOL,06/12/2017,300.00,77300-ISB-FORMULA ALLOCATION,77300-ISB-FORMULA ALLOCATION,Transfer Payments,Revenue
Walsall Council,http://opendatacommunities.org/id/metropolitan-district-council/walsall,WC87-413,31/12/2017,Adult Social Care,ASH GRANGE CARE HOME,12/12/2017,714.28,73373-RESIDENTIAL & NURSING CARE PLACEMENTS,73373-RESIDENTIAL & NURSING CARE PLACEMENTS,Third Party Payments,Revenue
Walsall Council,http://opendatacommunities.org/id/metropolitan-district-council/walsall,WC87-414,31/12/2017,Adult Social Care,ASH GRANGE CARE HOME,12/12/2017,887.14,73373-RESIDENTIAL & NURSING CARE PLACEMENTS,73373-RESIDENTIAL & NURSING CARE PLACEMENTS,Third Party Payments,Revenue
Walsall Council,http://opendatacommunities.org/id/metropolitan-district-council/walsall,WC87-415,31/12/2017,Adult Social Care,ASH GRANGE CARE HOME,12/12/2017,928.57,73373-RESIDENTIAL & NURSING CARE PLACEMENTS,73373-RESIDENTIAL & NURSING CARE PLACEMENTS,Third Party Payments,Revenue
Walsall Council,http://opendatacommunities.org/id/metropolitan-district-council/walsall,WC87-416,31/12/2017,Adult Social Care,ASH GRANGE CARE HOME,22/12/2017,"1,064.57",73373-RESIDENTIAL & NURSING CARE PLACEMENTS,73373-RESIDENTIAL & NURSING CARE PLACEMENTS,Third Party Payments,Revenue
Walsall Council,http://opendatacommunities.org/id/metropolitan-district-council/walsall,WC87-417,31/12/2017,Adult Social Care,ASH GRANGE CARE HOME,12/12/2017,"1,071.43",73373-RESIDENTIAL & NURSING CARE PLACEMENTS,73373-RESIDENTIAL & NURSING CARE PLACEMENTS,Third Party Payments,Revenue
Walsall Council,http://opendatacommunities.org/id/metropolitan-district-council/walsall,WC87-418,31/12/2017,Adult Social Care,ASH GRANGE CARE HOME,18/12/2017,"1,135.00",73373-RESIDENTIAL & NURSING CARE PLACEMENTS,73373-RESIDENTIAL & NURSING CARE PLACEMENTS,Third Party Payments,Revenue
Walsall Council,http://opendatacommunities.org/id/metropolitan-district-council/walsall,WC87-419,31/12/2017,Adult Social Care,ASH GRANGE CARE HOME,18/12/2017,"1,142.86",73373-RESIDENTIAL & NURSING CARE PLACEMENTS,73373-RESIDENTIAL & NURSING CARE PLACEMENTS,Third Party Payments,Revenue
Walsall Council,http://opendatacommunities.org/id/metropolitan-district-council/walsall,WC87-420,31/12/2017,Adult Social Care,ASH GRANGE CARE HOME,06/12/2017,"1,656.00",73373-RESIDENTIAL & NURSING CARE PLACEMENTS,73373-RESIDENTIAL & NURSING CARE PLACEMENTS,Third Party Payments,Revenue
Walsall Council,http://opendatacommunities.org/id/metropolitan-district-council/walsall,WC87-421,31/12/2017,Adult Social Care,ASH GRANGE CARE HOME,06/12/2017,"1,656.00",73373-RESIDENTIAL & NURSING CARE PLACEMENTS,73373-RESIDENTIAL & NURSING CARE PLACEMENTS,Third Party Payments,Revenue
Walsall Council,http://opendatacommunities.org/id/metropolitan-district-council/walsall,WC87-422,31/12/2017,Adult Social Care,ASH GRANGE CARE HOME,06/12/2017,"2,000.00",73373-RESIDENTIAL & NURSING CARE PLACEMENTS,73373-RESIDENTIAL & NURSING CARE PLACEMENTS,Third Party Payments,Revenue
Walsall Council,http://opendatacommunities.org/id/metropolitan-district-council/walsall,WC87-423,31/12/2017,Adult Social Care,ASH GRANGE CARE HOME,06/12/2017,"2,000.00",73373-RESIDENTIAL & NURSING CARE PLACEMENTS,73373-RESIDENTIAL & NURSING CARE PLACEMENTS,Third Party Payments,Revenue
Walsall Council,http://opendatacommunities.org/id/metropolitan-district-council/walsall,WC87-424,31/12/2017,Adult Social Care,ASH GRANGE CARE HOME,06/12/2017,"2,000.00",73373-RESIDENTIAL & NURSING CARE PLACEMENTS,73373-RESIDENTIAL & NURSING CARE PLACEMENTS,Third Party Payments,Revenue
Walsall Council,http://opendatacommunities.org/id/metropolitan-district-council/walsall,WC87-425,31/12/2017,Adult Social Care,ASH GRANGE CARE HOME,06/12/2017,"2,000.00",73373-RESIDENTIAL & NURSING CARE PLACEMENTS,73373-RESIDENTIAL & NURSING CARE PLACEMENTS,Third Party Payments,Revenue
Walsall Council,http://opendatacommunities.org/id/metropolitan-district-council/walsall,WC87-426,31/12/2017,Adult Social Care,ASH GRANGE CARE HOME,06/12/2017,"2,000.00",73373-RESIDENTIAL & NURSING CARE PLACEMENTS,73373-RESIDENTIAL & NURSING CARE PLACEMENTS,Third Party Payments,Revenue
Walsall Council,http://opendatacommunities.org/id/metropolitan-district-council/walsall,WC87-427,31/12/2017,Adult Social Care,ASH GRANGE CARE HOME,06/12/2017,"2,000.00",73373-RESIDENTIAL & NURSING CARE PLACEMENTS,73373-RESIDENTIAL & NURSING CARE PLACEMENTS,Third Party Payments,Revenue
Walsall Council,http://opendatacommunities.org/id/metropolitan-district-council/walsall,WC87-428,31/12/2017,Adult Social Care,ASH GRANGE CARE HOME,06/12/2017,"2,000.00",73373-RESIDENTIAL & NURSING CARE PLACEMENTS,73373-RESIDENTIAL & NURSING CARE PLACEMENTS,Third Party Payments,Revenue
Walsall Council,http://opendatacommunities.org/id/metropolitan-district-council/walsall,WC87-429,31/12/2017,Adult Social Care,ASH GRANGE CARE HOME,06/12/2017,"2,000.00",73373-RESIDENTIAL & NURSING CARE PLACEMENTS,73373-RESIDENTIAL & NURSING CARE PLACEMENTS,Third Party Payments,Revenue
Walsall Council,http://opendatacommunities.org/id/metropolitan-district-council/walsall,WC87-430,31/12/2017,Adult Social Care,ASH GRANGE CARE HOME,06/12/2017,"2,000.00",73373-RESIDENTIAL & NURSING CARE PLACEMENTS,73373-RESIDENTIAL & NURSING CARE PLACEMENTS,Third Party Payments,Revenue
Walsall Council,http://opendatacommunities.org/id/metropolitan-district-council/walsall,WC87-431,31/12/2017,Adult Social Care,ASH GRANGE CARE HOME,06/12/2017,"2,000.00",73373-RESIDENTIAL & NURSING CARE PLACEMENTS,73373-RESIDENTIAL & NURSING CARE PLACEMENTS,Third Party Payments,Revenue
Walsall Council,http://opendatacommunities.org/id/metropolitan-district-council/walsall,WC87-432,31/12/2017,Adult Social Care,ASH GRANGE CARE HOME,12/12/2017,"2,000.00",73373-RESIDENTIAL & NURSING CARE PLACEMENTS,73373-RESIDENTIAL & NURSING CARE PLACEMENTS,Third Party Payments,Revenue
Walsall Council,http://opendatacommunities.org/id/metropolitan-district-council/walsall,WC87-433,31/12/2017,Adult Social Care,ASH GRANGE CARE HOME,12/12/2017,"2,000.00",73373-RESIDENTIAL & NURSING CARE PLACEMENTS,73373-RESIDENTIAL & NURSING CARE PLACEMENTS,Third Party Payments,Revenue
Walsall Council,http://opendatacommunities.org/id/metropolitan-district-council/walsall,WC87-434,31/12/2017,Adult Social Care,ASH GRANGE CARE HOME,12/12/2017,"2,000.00",73373-RESIDENTIAL & NURSING CARE PLACEMENTS,73373-RESIDENTIAL & NURSING CARE PLACEMENTS,Third Party Payments,Revenue
Walsall Council,http://opendatacommunities.org/id/metropolitan-district-council/walsall,WC87-435,31/12/2017,Adult Social Care,ASH GRANGE CARE HOME,12/12/2017,"2,000.00",73373-RESIDENTIAL & NURSING CARE PLACEMENTS,73373-RESIDENTIAL & NURSING CARE PLACEMENTS,Third Party Payments,Revenue
Walsall Council,http://opendatacommunities.org/id/metropolitan-district-council/walsall,WC87-436,31/12/2017,Adult Social Care,ASH GRANGE CARE HOME,06/12/2017,"2,200.00",73373-RESIDENTIAL & NURSING CARE PLACEMENTS,73373-RESIDENTIAL & NURSING CARE PLACEMENTS,Third Party Payments,Revenue
Walsall Council,http://opendatacommunities.org/id/metropolitan-district-council/walsall,WC87-437,31/12/2017,Adult Social Care,ASH GRANGE CARE HOME,06/12/2017,"2,200.00",73373-RESIDENTIAL & NURSING CARE PLACEMENTS,73373-RESIDENTIAL & NURSING CARE PLACEMENTS,Third Party Payments,Revenue
Walsall Council,http://opendatacommunities.org/id/metropolitan-district-council/walsall,WC87-438,31/12/2017,Adult Social Care,ASH GRANGE CARE HOME,06/12/2017,"2,280.00",73373-RESIDENTIAL & NURSING CARE PLACEMENTS,73373-RESIDENTIAL & NURSING CARE PLACEMENTS,Third Party Payments,Revenue
Walsall Council,http://opendatacommunities.org/id/metropolitan-district-council/walsall,WC87-439,31/12/2017,Adult Social Care,ASH GRANGE CARE HOME,12/12/2017,"2,495.72",73373-RESIDENTIAL & NURSING CARE PLACEMENTS,73373-RESIDENTIAL & NURSING CARE PLACEMENTS,Third Party Payments,Revenue
Walsall Council,http://opendatacommunities.org/id/metropolitan-district-council/walsall,WC87-440,31/12/2017,Adult Social Care,ASH GRANGE CARE HOME,12/12/2017,"2,657.14",73373-RESIDENTIAL & NURSING CARE PLACEMENTS,73373-RESIDENTIAL & NURSING CARE PLACEMENTS,Third Party Payments,Revenue
Walsall Council,http://opendatacommunities.org/id/metropolitan-district-council/walsall,WC87-441,31/12/2017,Adult Social Care,ASHBOURNE LODGE,12/12/2017,"2,173.99",73373-RESIDENTIAL & NURSING CARE PLACEMENTS,73373-RESIDENTIAL & NURSING CARE PLACEMENTS,Third Party Payments,Revenue
Walsall Council,http://opendatacommunities.org/id/metropolitan-district-council/walsall,WC87-442,31/12/2017,Adult Social Care,REDACTED,11/12/2017,527.50,76422-DIRECT PAYMENTS TO SOCIAL SERVICES CLIENTS,76422-DIRECT PAYMENTS TO SOCIAL SERVICES CLIENTS,Transfer Payments,Revenue
Walsall Council,http://opendatacommunities.org/id/metropolitan-district-council/walsall,WC87-443,31/12/2017,Adult Social Care,REDACTED,11/12/2017,945.00,76422-DIRECT PAYMENTS TO SOCIAL SERVICES CLIENTS,76422-DIRECT PAYMENTS TO SOCIAL SERVICES CLIENTS,Transfer Payments,Revenue
Walsall Council,http://opendatacommunities.org/id/metropolitan-district-council/walsall,WC87-444,31/12/2017,Resources and Transformation,ASTECH CONSULTANTS LTD,20/12/2017,950.00,63800-COMPUTER EQUIPMENT AND SUPPLIES,63800-COMPUTER EQUIPMENT AND SUPPLIES,Supplies & Services,Revenue
Walsall Council,http://opendatacommunities.org/id/metropolitan-district-council/walsall,WC87-445,31/12/2017,Childrens,ATG CONTRACT SERVICES LIMITED,08/12/2017,"5,701.08",52000-WITH DRIVER-HIRE OF VEHICLES,52000-WITH DRIVER-HIRE OF VEHICLES,Transport,Revenue
Walsall Council,http://opendatacommunities.org/id/metropolitan-district-council/walsall,WC87-446,31/12/2017,Childrens,ATG CONTRACT SERVICES LIMITED,14/12/2017,"14,061.30",52000-WITH DRIVER-HIRE OF VEHICLES,52000-WITH DRIVER-HIRE OF VEHICLES,Transport,Revenue
Walsall Council,http://opendatacommunities.org/id/metropolitan-district-council/walsall,WC87-447,31/12/2017,Economy & Environment,ATKINS LIMITED,20/12/2017,500.00,01001-OTHER CONSULTANTS FEES,01001-OTHER CONSULTANTS FEES,Capital,Capital
Walsall Council,http://opendatacommunities.org/id/metropolitan-district-council/walsall,WC87-448,31/12/2017,Childrens,ATTACHMENT WORKS LTD,08/12/2017,"7,349.00",63000-PROFESSIONAL FEES AND SERVICES,63000-PROFESSIONAL FEES AND SERVICES,Supplies & Services,Revenue
Walsall Council,http://opendatacommunities.org/id/metropolitan-district-council/walsall,WC87-449,31/12/2017,Resources and Transformation,AURORA GRAPHICS & DISPLAYS LTD,06/12/2017,435.67,62008-OUTWORK-PRINT ROOM,62008-OUTWORK-PRINT ROOM,Supplies & Services,Revenue
Walsall Council,http://opendatacommunities.org/id/metropolitan-district-council/walsall,WC87-450,31/12/2017,Resources and Transformation,AURORA GRAPHICS & DISPLAYS LTD,21/12/2017,"1,484.44",62008-OUTWORK-PRINT ROOM,62008-OUTWORK-PRINT ROOM,Supplies & Services,Revenue
Walsall Council,http://opendatacommunities.org/id/metropolitan-district-council/walsall,WC87-451,31/12/2017,Adult Social Care,AUTISM WEST MIDLANDS,12/12/2017,"7,237.76",73373-RESIDENTIAL & NURSING CARE PLACEMENTS,73373-RESIDENTIAL & NURSING CARE PLACEMENTS,Third Party Payments,Revenue
Walsall Council,http://opendatacommunities.org/id/metropolitan-district-council/walsall,WC87-452,31/12/2017,Adult Social Care,AUTISM WEST MIDLANDS 001,12/12/2017,"4,838.06",73373-RESIDENTIAL & NURSING CARE PLACEMENTS,73373-RESIDENTIAL & NURSING CARE PLACEMENTS,Third Party Payments,Revenue
Walsall Council,http://opendatacommunities.org/id/metropolitan-district-council/walsall,WC87-453,31/12/2017,Adult Social Care,AVE MARIA CARE SERVICES,11/12/2017,584.80,73372-DOMICILIARY CARE,73372-DOMICILIARY CARE,Third Party Payments,Revenue
Walsall Council,http://opendatacommunities.org/id/metropolitan-district-council/walsall,WC87-454,31/12/2017,Adult Social Care,REDACTED,11/12/2017,"1,236.30",76422-DIRECT PAYMENTS TO SOCIAL SERVICES CLIENTS,76422-DIRECT PAYMENTS TO SOCIAL SERVICES CLIENTS,Transfer Payments,Revenue
Walsall Council,http://opendatacommunities.org/id/metropolitan-district-council/walsall,WC87-455,31/12/2017,Economy & Environment,AXIELL LIMITED,08/12/2017,362.81,63000-PROFESSIONAL FEES AND SERVICES,63000-PROFESSIONAL FEES AND SERVICES,Supplies & Services,Revenue
Walsall Council,http://opendatacommunities.org/id/metropolitan-district-council/walsall,WC87-456,31/12/2017,Economy & Environment,AXIELL LIMITED,15/12/2017,460.79,63000-PROFESSIONAL FEES AND SERVICES,63000-PROFESSIONAL FEES AND SERVICES,Supplies & Services,Revenue
Walsall Council,http://opendatacommunities.org/id/metropolitan-district-council/walsall,WC87-457,31/12/2017,Economy & Environment,AXIELL LIMITED,15/12/2017,487.77,63000-PROFESSIONAL FEES AND SERVICES,63000-PROFESSIONAL FEES AND SERVICES,Supplies & Services,Revenue
Walsall Council,http://opendatacommunities.org/id/metropolitan-district-council/walsall,WC87-458,31/12/2017,Childrens,REDACTED,11/12/2017,"1,605.00",76422-DIRECT PAYMENTS TO SOCIAL SERVICES CLIENTS,76422-DIRECT PAYMENTS TO SOCIAL SERVICES CLIENTS,Transfer Payments,Revenue
Walsall Council,http://opendatacommunities.org/id/metropolitan-district-council/walsall,WC87-459,31/12/2017,Adult Social Care,REDACTED,11/12/2017,"3,510.00",76422-DIRECT PAYMENTS TO SOCIAL SERVICES CLIENTS,76422-DIRECT PAYMENTS TO SOCIAL SERVICES CLIENTS,Transfer Payments,Revenue
Walsall Council,http://opendatacommunities.org/id/metropolitan-district-council/walsall,WC87-460,31/12/2017,Childrens,REDACTED,18/12/2017,9.24,60006-NEW-FURNITURE & EQUIPMENT,60006-NEW-FURNITURE & EQUIPMENT,Supplies & Services,Revenue
Walsall Council,http://opendatacommunities.org/id/metropolitan-district-council/walsall,WC87-461,31/12/2017,Childrens,REDACTED,18/12/2017,345.24,74508-INTERNAL FOSTER CARERS-CARER FEES,74508-INTERNAL FOSTER CARERS-CARER FEES,Transfer Payments,Revenue
Walsall Council,http://opendatacommunities.org/id/metropolitan-district-council/walsall,WC87-462,31/12/2017,Childrens,REDACTED,18/12/2017,985.76,74501-MAINTENANCE ALLOWANCE-FOSTER CARERS,74501-MAINTENANCE ALLOWANCE-FOSTER CARERS,Transfer Payments,Revenue
Walsall Council,http://opendatacommunities.org/id/metropolitan-district-council/walsall,WC87-463,31/12/2017,Childrens,REDACTED,06/12/2017,464.00,76000-TRANSFER PAYMENTS - SOCIAL SERVICES CLIENTS,76000-TRANSFER PAYMENTS - SOCIAL SERVICES CLIENTS,Transfer Payments,Revenue
Walsall Council,http://opendatacommunities.org/id/metropolitan-district-council/walsall,WC87-464,31/12/2017,Childrens,REDACTED,06/12/2017,464.00,76000-TRANSFER PAYMENTS - SOCIAL SERVICES CLIENTS,76000-TRANSFER PAYMENTS - SOCIAL SERVICES CLIENTS,Transfer Payments,Revenue
Walsall Council,http://opendatacommunities.org/id/metropolitan-district-council/walsall,WC87-465,31/12/2017,Childrens,REDACTED,15/12/2017,464.00,76000-TRANSFER PAYMENTS - SOCIAL SERVICES CLIENTS,76000-TRANSFER PAYMENTS - SOCIAL SERVICES CLIENTS,Transfer Payments,Revenue
Walsall Council,http://opendatacommunities.org/id/metropolitan-district-council/walsall,WC87-466,31/12/2017,Childrens,REDACTED,15/12/2017,464.00,76000-TRANSFER PAYMENTS - SOCIAL SERVICES CLIENTS,76000-TRANSFER PAYMENTS - SOCIAL SERVICES CLIENTS,Transfer Payments,Revenue
Walsall Council,http://opendatacommunities.org/id/metropolitan-district-council/walsall,WC87-467,31/12/2017,Resources and Transformation,BADENOCH & CLARK 002,13/12/2017,935.65,34305-AGENCY STAFF-EMPLOYEES,34305-AGENCY STAFF-EMPLOYEES,Employees,Revenue
Walsall Council,http://opendatacommunities.org/id/metropolitan-district-council/walsall,WC87-468,31/12/2017,Economy & Environment,BAKER HALL PARTNERSHIP,08/12/2017,730.25,63000-PROFESSIONAL FEES AND SERVICES,63000-PROFESSIONAL FEES AND SERVICES,Supplies & Services,Revenue
Walsall Council,http://opendatacommunities.org/id/metropolitan-district-council/walsall,WC87-469,31/12/2017,Adult Social Care,REDACTED,11/12/2017,600.00,76422-DIRECT PAYMENTS TO SOCIAL SERVICES CLIENTS,76422-DIRECT PAYMENTS TO SOCIAL SERVICES CLIENTS,Transfer Payments,Revenue
Walsall Council,http://opendatacommunities.org/id/metropolitan-district-council/walsall,WC87-470,31/12/2017,Adult Social Care,REDACTED,11/12/2017,"4,073.70",76422-DIRECT PAYMENTS TO SOCIAL SERVICES CLIENTS,76422-DIRECT PAYMENTS TO SOCIAL SERVICES CLIENTS,Transfer Payments,Revenue
Walsall Council,http://opendatacommunities.org/id/metropolitan-district-council/walsall,WC87-471,31/12/2017,Adult Social Care,REDACTED,11/12/2017,"1,000.00",76422-DIRECT PAYMENTS TO SOCIAL SERVICES CLIENTS,76422-DIRECT PAYMENTS TO SOCIAL SERVICES CLIENTS,Transfer Payments,Revenue
Walsall Council,http://opendatacommunities.org/id/metropolitan-district-council/walsall,WC87-472,31/12/2017,Adult Social Care,REDACTED,11/12/2017,"1,978.58",76422-DIRECT PAYMENTS TO SOCIAL SERVICES CLIENTS,76422-DIRECT PAYMENTS TO SOCIAL SERVICES CLIENTS,Transfer Payments,Revenue
Walsall Council,http://opendatacommunities.org/id/metropolitan-district-council/walsall,WC87-473,31/12/2017,Childrens,REDACTED,18/12/2017,9.24,60006-NEW-FURNITURE & EQUIPMENT,60006-NEW-FURNITURE & EQUIPMENT,Supplies & Services,Revenue
Walsall Council,http://opendatacommunities.org/id/metropolitan-district-council/walsall,WC87-474,31/12/2017,Childrens,REDACTED,18/12/2017,345.24,74508-INTERNAL FOSTER CARERS-CARER FEES,74508-INTERNAL FOSTER CARERS-CARER FEES,Transfer Payments,Revenue
Walsall Council,http://opendatacommunities.org/id/metropolitan-district-council/walsall,WC87-475,31/12/2017,Childrens,REDACTED,18/12/2017,571.44,74501-MAINTENANCE ALLOWANCE-FOSTER CARERS,74501-MAINTENANCE ALLOWANCE-FOSTER CARERS,Transfer Payments,Revenue
Walsall Council,http://opendatacommunities.org/id/metropolitan-district-council/walsall,WC87-476,31/12/2017,Adult Social Care,REDACTED,11/12/2017,"1,062.05",76422-DIRECT PAYMENTS TO SOCIAL SERVICES CLIENTS,76422-DIRECT PAYMENTS TO SOCIAL SERVICES CLIENTS,Transfer Payments,Revenue
Walsall Council,http://opendatacommunities.org/id/metropolitan-district-council/walsall,WC87-477,31/12/2017,Adult Social Care,REDACTED,11/12/2017,997.50,76422-DIRECT PAYMENTS TO SOCIAL SERVICES CLIENTS,76422-DIRECT PAYMENTS TO SOCIAL SERVICES CLIENTS,Transfer Payments,Revenue
Walsall Council,http://opendatacommunities.org/id/metropolitan-district-council/walsall,WC87-478,31/12/2017,Economy & Environment,BARCHAM TREES PLC,08/12/2017,249.90,60500-GENERAL MATERIALS,60500-GENERAL MATERIALS,Supplies & Services,Revenue
Walsall Council,http://opendatacommunities.org/id/metropolitan-district-council/walsall,WC87-479,31/12/2017,Childrens,BARNARDOS SERVICES LTD,04/12/2017,"3,116.40",74037-INDEPENDENT FOSTER CARE-OTH AGENCY PROVISION,74037-INDEPENDENT FOSTER CARE-OTH AGENCY PROVISION,Third Party Payments,Revenue
Walsall Council,http://opendatacommunities.org/id/metropolitan-district-council/walsall,WC87-480,31/12/2017,Childrens,BARNARDOS SERVICES LTD,28/12/2017,"3,116.40",74037-INDEPENDENT FOSTER CARE-OTH AGENCY PROVISION,74037-INDEPENDENT FOSTER CARE-OTH AGENCY PROVISION,Third Party Payments,Revenue
Walsall Council,http://opendatacommunities.org/id/metropolitan-district-council/walsall,WC87-481,31/12/2017,Childrens,BARNARDOS SERVICES LTD,11/12/2017,"4,042.99",63000-PROFESSIONAL FEES AND SERVICES,63000-PROFESSIONAL FEES AND SERVICES,Supplies & Services,Revenue
Walsall Council,http://opendatacommunities.org/id/metropolitan-district-council/walsall,WC87-482,31/12/2017,Childrens,BARNARDOS SERVICES LTD,05/12/2017,"4,884.00",63000-PROFESSIONAL FEES AND SERVICES,63000-PROFESSIONAL FEES AND SERVICES,Supplies & Services,Revenue
Walsall Council,http://opendatacommunities.org/id/metropolitan-district-council/walsall,WC87-483,31/12/2017,Resources and Transformation,BARNSLEY M B C,08/12/2017,"3,000.00",64500-PUBLICATIONS/ORGANISATIONS-SUBSCRIPTIONS,64500-PUBLICATIONS/ORGANISATIONS-SUBSCRIPTIONS,Supplies & Services,Revenue
Walsall Council,http://opendatacommunities.org/id/metropolitan-district-council/walsall,WC87-484,31/12/2017,Childrens,BARR BEACON SCHOOL TRUST,14/12/2017,"1,464.23",66502-TOP UP FUNDING -GRANTS TO SCHOOLS,66502-TOP UP FUNDING -GRANTS TO SCHOOLS,Third Party Payments,Revenue
Walsall Council,http://opendatacommunities.org/id/metropolitan-district-council/walsall,WC87-485,31/12/2017,Childrens,BARR BEACON SCHOOL TRUST,06/12/2017,"2,700.00",77300-ISB-FORMULA ALLOCATION,77300-ISB-FORMULA ALLOCATION,Transfer Payments,Revenue
Walsall Council,http://opendatacommunities.org/id/metropolitan-district-council/walsall,WC87-486,31/12/2017,Childrens,BARR BEACON SCHOOL TRUST,14/12/2017,"18,740.75",66502-TOP UP FUNDING -GRANTS TO SCHOOLS,66502-TOP UP FUNDING -GRANTS TO SCHOOLS,Third Party Payments,Revenue
Walsall Council,http://opendatacommunities.org/id/metropolitan-district-council/walsall,WC87-487,31/12/2017,Economy & Environment,BASEMAP LTD,20/12/2017,780.00,63809-LICENCES-COMPUTER,63809-LICENCES-COMPUTER,Supplies & Services,Revenue
Walsall Council,http://opendatacommunities.org/id/metropolitan-district-council/walsall,WC87-488,31/12/2017,Economy & Environment,BASEMAP LTD,11/12/2017,"1,522.50",63000-PROFESSIONAL FEES AND SERVICES,63000-PROFESSIONAL FEES AND SERVICES,Supplies & Services,Revenue
Walsall Council,http://opendatacommunities.org/id/metropolitan-district-council/walsall,WC87-489,31/12/2017,Adult Social Care,REDACTED,11/12/2017,613.00,76422-DIRECT PAYMENTS TO SOCIAL SERVICES CLIENTS,76422-DIRECT PAYMENTS TO SOCIAL SERVICES CLIENTS,Transfer Payments,Revenue
Walsall Council,http://opendatacommunities.org/id/metropolitan-district-council/walsall,WC87-490,31/12/2017,Economy & Environment,BAT FABRICATIONS LTD,14/12/2017,485.00,73025-PROFESSIONAL SERVICES-PRIV CONTRACTOR & OTHER AGENCIES,73025-PROFESSIONAL SERVICES-PRIV CONTRACTOR & OTHER AGENCIES,Third Party Payments,Revenue
Walsall Council,http://opendatacommunities.org/id/metropolitan-district-council/walsall,WC87-491,31/12/2017,Economy & Environment,BAT FABRICATIONS LTD,20/12/2017,700.00,60006-NEW-FURNITURE & EQUIPMENT,60006-NEW-FURNITURE & EQUIPMENT,Supplies & Services,Revenue
Walsall Council,http://opendatacommunities.org/id/metropolitan-district-council/walsall,WC87-492,31/12/2017,Economy & Environment,BAT FABRICATIONS LTD,14/12/2017,900.00,60006-NEW-FURNITURE & EQUIPMENT,60006-NEW-FURNITURE & EQUIPMENT,Supplies & Services,Revenue
Walsall Council,http://opendatacommunities.org/id/metropolitan-district-council/walsall,WC87-493,31/12/2017,Economy & Environment,BAT FABRICATIONS LTD,15/12/2017,"3,600.00",60008-MAINTENANCE-FURNITURE & EQUIPMENT,60008-MAINTENANCE-FURNITURE & EQUIPMENT,Supplies & Services,Revenue
Walsall Council,http://opendatacommunities.org/id/metropolitan-district-council/walsall,WC87-494,31/12/2017,Economy & Environment,BAUER CORPORATE SERVICES - BAUER RADIO LTD,20/12/2017,"10,047.00",62523-EVENTS,62523-EVENTS,Supplies & Services,Revenue
Walsall Council,http://opendatacommunities.org/id/metropolitan-district-council/walsall,WC87-495,31/12/2017,Economy & Environment,BEADEN POWERLEC LIMITED,13/12/2017,230.00,60500-GENERAL MATERIALS,60500-GENERAL MATERIALS,Supplies & Services,Revenue
Walsall Council,http://opendatacommunities.org/id/metropolitan-district-council/walsall,WC87-496,31/12/2017,Economy & Environment,BEADEN POWERLEC LIMITED,13/12/2017,230.00,60500-GENERAL MATERIALS,60500-GENERAL MATERIALS,Supplies & Services,Revenue
Walsall Council,http://opendatacommunities.org/id/metropolitan-district-council/walsall,WC87-497,31/12/2017,Childrens,REDACTED,04/12/2017,9.24,60006-NEW-FURNITURE & EQUIPMENT,60006-NEW-FURNITURE & EQUIPMENT,Supplies & Services,Revenue
Walsall Council,http://opendatacommunities.org/id/metropolitan-district-council/walsall,WC87-498,31/12/2017,Childrens,REDACTED,28/12/2017,9.24,60006-NEW-FURNITURE & EQUIPMENT,60006-NEW-FURNITURE & EQUIPMENT,Supplies & Services,Revenue
Walsall Council,http://opendatacommunities.org/id/metropolitan-district-council/walsall,WC87-499,31/12/2017,Childrens,REDACTED,04/12/2017,162.73,74504-HOLIDAY/CHRISTMAS ALLOWANCE-FOSTER CARERS,74504-HOLIDAY/CHRISTMAS ALLOWANCE-FOSTER CARERS,Transfer Payments,Revenue
Walsall Council,http://opendatacommunities.org/id/metropolitan-district-council/walsall,WC87-500,31/12/2017,Childrens,REDACTED,04/12/2017,425.09,74506-TRAVEL-FOSTER CARERS,74506-TRAVEL-FOSTER CARERS,Transfer Payments,Revenue
Walsall Council,http://opendatacommunities.org/id/metropolitan-district-council/walsall,WC87-501,31/12/2017,Childrens,REDACTED,04/12/2017,530.96,74508-INTERNAL FOSTER CARERS-CARER FEES,74508-INTERNAL FOSTER CARERS-CARER FEES,Transfer Payments,Revenue
Walsall Council,http://opendatacommunities.org/id/metropolitan-district-council/walsall,WC87-502,31/12/2017,Childrens,REDACTED,28/12/2017,530.96,74508-INTERNAL FOSTER CARERS-CARER FEES,74508-INTERNAL FOSTER CARERS-CARER FEES,Transfer Payments,Revenue
Walsall Council,http://opendatacommunities.org/id/metropolitan-district-council/walsall,WC87-503,31/12/2017,Childrens,REDACTED,04/12/2017,650.92,74501-MAINTENANCE ALLOWANCE-FOSTER CARERS,74501-MAINTENANCE ALLOWANCE-FOSTER CARERS,Transfer Payments,Revenue
Walsall Council,http://opendatacommunities.org/id/metropolitan-district-council/walsall,WC87-504,31/12/2017,Childrens,REDACTED,28/12/2017,650.92,74501-MAINTENANCE ALLOWANCE-FOSTER CARERS,74501-MAINTENANCE ALLOWANCE-FOSTER CARERS,Transfer Payments,Revenue
Walsall Council,http://opendatacommunities.org/id/metropolitan-district-council/walsall,WC87-505,31/12/2017,Childrens,BECKYS CHILDMINDING SERVICE,01/12/2017,220.08,66505-OTHER-GRANTS TO OTHER ORGS,66505-OTHER-GRANTS TO OTHER ORGS,Third Party Payments,Revenue
Walsall Council,http://opendatacommunities.org/id/metropolitan-district-council/walsall,WC87-506,31/12/2017,Childrens,BECKYS CHILDMINDING SERVICE,01/12/2017,336.00,66505-OTHER-GRANTS TO OTHER ORGS,66505-OTHER-GRANTS TO OTHER ORGS,Third Party Payments,Revenue
Walsall Council,http://opendatacommunities.org/id/metropolitan-district-council/walsall,WC87-507,31/12/2017,Adult Social Care,BELVIDERE COURT,12/12/2017,"2,214.29",73373-RESIDENTIAL & NURSING CARE PLACEMENTS,73373-RESIDENTIAL & NURSING CARE PLACEMENTS,Third Party Payments,Revenue
Walsall Council,http://opendatacommunities.org/id/metropolitan-district-council/walsall,WC87-508,31/12/2017,Adult Social Care,BELVIDERE COURT,12/12/2017,"2,435.71",73373-RESIDENTIAL & NURSING CARE PLACEMENTS,73373-RESIDENTIAL & NURSING CARE PLACEMENTS,Third Party Payments,Revenue
Walsall Council,http://opendatacommunities.org/id/metropolitan-district-council/walsall,WC87-509,31/12/2017,Adult Social Care,BELVIDERE COURT,12/12/2017,"3,764.29",73373-RESIDENTIAL & NURSING CARE PLACEMENTS,73373-RESIDENTIAL & NURSING CARE PLACEMENTS,Third Party Payments,Revenue
Walsall Council,http://opendatacommunities.org/id/metropolitan-district-council/walsall,WC87-510,31/12/2017,Adult Social Care,REDACTED,11/12/2017,"2,887.50",76422-DIRECT PAYMENTS TO SOCIAL SERVICES CLIENTS,76422-DIRECT PAYMENTS TO SOCIAL SERVICES CLIENTS,Transfer Payments,Revenue
Walsall Council,http://opendatacommunities.org/id/metropolitan-district-council/walsall,WC87-511,31/12/2017,Childrens,BENJAMIN UK LTD,04/12/2017,"2,502.86",74036-EXTERNAL RESIDENTIAL CARE-OTH AGENCY PROVISION,74036-EXTERNAL RESIDENTIAL CARE-OTH AGENCY PROVISION,Third Party Payments,Revenue
Walsall Council,http://opendatacommunities.org/id/metropolitan-district-council/walsall,WC87-512,31/12/2017,Adult Social Care,BENTLEY COURT PRIORY,06/12/2017,654.44,73373-RESIDENTIAL & NURSING CARE PLACEMENTS,73373-RESIDENTIAL & NURSING CARE PLACEMENTS,Third Party Payments,Revenue
Walsall Council,http://opendatacommunities.org/id/metropolitan-district-council/walsall,WC87-513,31/12/2017,Adult Social Care,BENTLEY COURT PRIORY,22/12/2017,"2,109.24",73373-RESIDENTIAL & NURSING CARE PLACEMENTS,73373-RESIDENTIAL & NURSING CARE PLACEMENTS,Third Party Payments,Revenue
Walsall Council,http://opendatacommunities.org/id/metropolitan-district-council/walsall,WC87-514,31/12/2017,Adult Social Care,BENTLEY COURT PRIORY,06/12/2017,"2,357.14",73373-RESIDENTIAL & NURSING CARE PLACEMENTS,73373-RESIDENTIAL & NURSING CARE PLACEMENTS,Third Party Payments,Revenue
Walsall Council,http://opendatacommunities.org/id/metropolitan-district-council/walsall,WC87-515,31/12/2017,Adult Social Care,BENTLEY COURT PRIORY,06/12/2017,"2,357.14",73373-RESIDENTIAL & NURSING CARE PLACEMENTS,73373-RESIDENTIAL & NURSING CARE PLACEMENTS,Third Party Payments,Revenue
Walsall Council,http://opendatacommunities.org/id/metropolitan-district-council/walsall,WC87-516,31/12/2017,Adult Social Care,BENTLEY COURT PRIORY,22/12/2017,"2,435.71",73373-RESIDENTIAL & NURSING CARE PLACEMENTS,73373-RESIDENTIAL & NURSING CARE PLACEMENTS,Third Party Payments,Revenue
Walsall Council,http://opendatacommunities.org/id/metropolitan-district-council/walsall,WC87-517,31/12/2017,Adult Social Care,BENTLEY COURT PRIORY,06/12/2017,"2,435.72",73373-RESIDENTIAL & NURSING CARE PLACEMENTS,73373-RESIDENTIAL & NURSING CARE PLACEMENTS,Third Party Payments,Revenue
Walsall Council,http://opendatacommunities.org/id/metropolitan-district-council/walsall,WC87-518,31/12/2017,Adult Social Care,BENTLEY COURT PRIORY,06/12/2017,"2,435.72",73373-RESIDENTIAL & NURSING CARE PLACEMENTS,73373-RESIDENTIAL & NURSING CARE PLACEMENTS,Third Party Payments,Revenue
Walsall Council,http://opendatacommunities.org/id/metropolitan-district-council/walsall,WC87-519,31/12/2017,Adult Social Care,BENTLEY COURT PRIORY,22/12/2017,"2,435.72",73373-RESIDENTIAL & NURSING CARE PLACEMENTS,73373-RESIDENTIAL & NURSING CARE PLACEMENTS,Third Party Payments,Revenue
Walsall Council,http://opendatacommunities.org/id/metropolitan-district-council/walsall,WC87-520,31/12/2017,Adult Social Care,BENTLEY COURT PRIORY,22/12/2017,"2,435.72",73373-RESIDENTIAL & NURSING CARE PLACEMENTS,73373-RESIDENTIAL & NURSING CARE PLACEMENTS,Third Party Payments,Revenue
Walsall Council,http://opendatacommunities.org/id/metropolitan-district-council/walsall,WC87-521,31/12/2017,Adult Social Care,BENTLEY COURT PRIORY,22/12/2017,"2,435.72",73373-RESIDENTIAL & NURSING CARE PLACEMENTS,73373-RESIDENTIAL & NURSING CARE PLACEMENTS,Third Party Payments,Revenue
Walsall Council,http://opendatacommunities.org/id/metropolitan-district-council/walsall,WC87-522,31/12/2017,Childrens,BERRY GIFFORD LTD,13/12/2017,"8,164.20",76010-ACCOMMODATION AND RELATED COSTS-ASSISTANCE TO S/S CLIENTS,76010-ACCOMMODATION AND RELATED COSTS-ASSISTANCE TO S/S CLIENTS,Transfer Payments,Revenue
Walsall Council,http://opendatacommunities.org/id/metropolitan-district-council/walsall,WC87-523,31/12/2017,Adult Social Care,REDACTED,11/12/2017,"1,259.80",76422-DIRECT PAYMENTS TO SOCIAL SERVICES CLIENTS,76422-DIRECT PAYMENTS TO SOCIAL SERVICES CLIENTS,Transfer Payments,Revenue
Walsall Council,http://opendatacommunities.org/id/metropolitan-district-council/walsall,WC87-524,31/12/2017,Adult Social Care,REDACTED,11/12/2017,"2,132.50",76422-DIRECT PAYMENTS TO SOCIAL SERVICES CLIENTS,76422-DIRECT PAYMENTS TO SOCIAL SERVICES CLIENTS,Transfer Payments,Revenue
Walsall Council,http://opendatacommunities.org/id/metropolitan-district-council/walsall,WC87-525,31/12/2017,Childrens,REDACTED,04/12/2017,9.24,60006-NEW-FURNITURE & EQUIPMENT,60006-NEW-FURNITURE & EQUIPMENT,Supplies & Services,Revenue
Walsall Council,http://opendatacommunities.org/id/metropolitan-district-council/walsall,WC87-526,31/12/2017,Childrens,REDACTED,28/12/2017,9.24,60006-NEW-FURNITURE & EQUIPMENT,60006-NEW-FURNITURE & EQUIPMENT,Supplies & Services,Revenue
Walsall Council,http://opendatacommunities.org/id/metropolitan-district-council/walsall,WC87-527,31/12/2017,Childrens,REDACTED,04/12/2017,"1,436.08",74508-INTERNAL FOSTER CARERS-CARER FEES,74508-INTERNAL FOSTER CARERS-CARER FEES,Transfer Payments,Revenue
Walsall Council,http://opendatacommunities.org/id/metropolitan-district-council/walsall,WC87-528,31/12/2017,Childrens,REDACTED,28/12/2017,"1,436.08",74508-INTERNAL FOSTER CARERS-CARER FEES,74508-INTERNAL FOSTER CARERS-CARER FEES,Transfer Payments,Revenue
Walsall Council,http://opendatacommunities.org/id/metropolitan-district-council/walsall,WC87-529,31/12/2017,Adult Social Care,REDACTED,11/12/2017,"1,210.00",76422-DIRECT PAYMENTS TO SOCIAL SERVICES CLIENTS,76422-DIRECT PAYMENTS TO SOCIAL SERVICES CLIENTS,Transfer Payments,Revenue
Walsall Council,http://opendatacommunities.org/id/metropolitan-district-council/walsall,WC87-530,31/12/2017,Adult Social Care,BESCOT LODGE RESIDENTIAL CARE HOME,12/12/2017,"1,833.43",73373-RESIDENTIAL & NURSING CARE PLACEMENTS,73373-RESIDENTIAL & NURSING CARE PLACEMENTS,Third Party Payments,Revenue
Walsall Council,http://opendatacommunities.org/id/metropolitan-district-council/walsall,WC87-531,31/12/2017,Adult Social Care,BESCOT LODGE RESIDENTIAL CARE HOME,12/12/2017,"1,833.43",73373-RESIDENTIAL & NURSING CARE PLACEMENTS,73373-RESIDENTIAL & NURSING CARE PLACEMENTS,Third Party Payments,Revenue
Walsall Council,http://opendatacommunities.org/id/metropolitan-district-council/walsall,WC87-532,31/12/2017,Adult Social Care,BESCOT LODGE RESIDENTIAL CARE HOME,12/12/2017,"1,833.43",73373-RESIDENTIAL & NURSING CARE PLACEMENTS,73373-RESIDENTIAL & NURSING CARE PLACEMENTS,Third Party Payments,Revenue
Walsall Council,http://opendatacommunities.org/id/metropolitan-district-council/walsall,WC87-533,31/12/2017,Adult Social Care,BESCOT LODGE RESIDENTIAL CARE HOME,12/12/2017,"2,037.14",73373-RESIDENTIAL & NURSING CARE PLACEMENTS,73373-RESIDENTIAL & NURSING CARE PLACEMENTS,Third Party Payments,Revenue
Walsall Council,http://opendatacommunities.org/id/metropolitan-district-council/walsall,WC87-534,31/12/2017,Adult Social Care,BESCOT LODGE RESIDENTIAL CARE HOME,12/12/2017,"2,037.14",73373-RESIDENTIAL & NURSING CARE PLACEMENTS,73373-RESIDENTIAL & NURSING CARE PLACEMENTS,Third Party Payments,Revenue
Walsall Council,http://opendatacommunities.org/id/metropolitan-district-council/walsall,WC87-535,31/12/2017,Adult Social Care,BESCOT LODGE RESIDENTIAL CARE HOME,12/12/2017,"2,037.14",73373-RESIDENTIAL & NURSING CARE PLACEMENTS,73373-RESIDENTIAL & NURSING CARE PLACEMENTS,Third Party Payments,Revenue
Walsall Council,http://opendatacommunities.org/id/metropolitan-district-council/walsall,WC87-536,31/12/2017,Adult Social Care,BESCOT LODGE RESIDENTIAL CARE HOME,12/12/2017,"2,037.14",73373-RESIDENTIAL & NURSING CARE PLACEMENTS,73373-RESIDENTIAL & NURSING CARE PLACEMENTS,Third Party Payments,Revenue
Walsall Council,http://opendatacommunities.org/id/metropolitan-district-council/walsall,WC87-537,31/12/2017,Economy & Environment,BESCOT STADIUM SUNDAY MARKET LTD,04/12/2017,"2,800.00",73025-PROFESSIONAL SERVICES-PRIV CONTRACTOR & OTHER AGENCIES,73025-PROFESSIONAL SERVICES-PRIV CONTRACTOR & OTHER AGENCIES,Third Party Payments,Revenue
Walsall Council,http://opendatacommunities.org/id/metropolitan-district-council/walsall,WC87-538,31/12/2017,Economy & Environment,BESCOT STADIUM SUNDAY MARKET LTD,01/12/2017,"3,500.00",73025-PROFESSIONAL SERVICES-PRIV CONTRACTOR & OTHER AGENCIES,73025-PROFESSIONAL SERVICES-PRIV CONTRACTOR & OTHER AGENCIES,Third Party Payments,Revenue
Walsall Council,http://opendatacommunities.org/id/metropolitan-district-council/walsall,WC87-539,31/12/2017,Childrens,REDACTED,21/12/2017,285.00,52000-WITH DRIVER-HIRE OF VEHICLES,52000-WITH DRIVER-HIRE OF VEHICLES,Transport,Revenue
Walsall Council,http://opendatacommunities.org/id/metropolitan-district-council/walsall,WC87-540,31/12/2017,Adult Social Care,BETHPHAGE.,11/12/2017,325.53,73374-SUPPORTED & OTHER ACCOMMODATION,73374-SUPPORTED & OTHER ACCOMMODATION,Third Party Payments,Revenue
Walsall Council,http://opendatacommunities.org/id/metropolitan-district-council/walsall,WC87-541,31/12/2017,Adult Social Care,BETHPHAGE.,11/12/2017,390.63,73374-SUPPORTED & OTHER ACCOMMODATION,73374-SUPPORTED & OTHER ACCOMMODATION,Third Party Payments,Revenue
Walsall Council,http://opendatacommunities.org/id/metropolitan-district-council/walsall,WC87-542,31/12/2017,Adult Social Care,BETHPHAGE.,11/12/2017,532.28,73374-SUPPORTED & OTHER ACCOMMODATION,73374-SUPPORTED & OTHER ACCOMMODATION,Third Party Payments,Revenue
Walsall Council,http://opendatacommunities.org/id/metropolitan-district-council/walsall,WC87-543,31/12/2017,Adult Social Care,BETHPHAGE.,11/12/2017,532.28,73374-SUPPORTED & OTHER ACCOMMODATION,73374-SUPPORTED & OTHER ACCOMMODATION,Third Party Payments,Revenue
Walsall Council,http://opendatacommunities.org/id/metropolitan-district-council/walsall,WC87-544,31/12/2017,Adult Social Care,BETHPHAGE.,11/12/2017,665.35,73374-SUPPORTED & OTHER ACCOMMODATION,73374-SUPPORTED & OTHER ACCOMMODATION,Third Party Payments,Revenue
Walsall Council,http://opendatacommunities.org/id/metropolitan-district-council/walsall,WC87-545,31/12/2017,Adult Social Care,BETHPHAGE.,11/12/2017,712.52,73374-SUPPORTED & OTHER ACCOMMODATION,73374-SUPPORTED & OTHER ACCOMMODATION,Third Party Payments,Revenue
Walsall Council,http://opendatacommunities.org/id/metropolitan-district-council/walsall,WC87-546,31/12/2017,Adult Social Care,BETHPHAGE.,11/12/2017,890.65,73374-SUPPORTED & OTHER ACCOMMODATION,73374-SUPPORTED & OTHER ACCOMMODATION,Third Party Payments,Revenue
Walsall Council,http://opendatacommunities.org/id/metropolitan-district-council/walsall,WC87-547,31/12/2017,Adult Social Care,BETHPHAGE.,11/12/2017,"1,011.96",73374-SUPPORTED & OTHER ACCOMMODATION,73374-SUPPORTED & OTHER ACCOMMODATION,Third Party Payments,Revenue
Walsall Council,http://opendatacommunities.org/id/metropolitan-district-council/walsall,WC87-548,31/12/2017,Adult Social Care,BETHPHAGE.,11/12/2017,"1,026.00",73374-SUPPORTED & OTHER ACCOMMODATION,73374-SUPPORTED & OTHER ACCOMMODATION,Third Party Payments,Revenue
Walsall Council,http://opendatacommunities.org/id/metropolitan-district-council/walsall,WC87-549,31/12/2017,Adult Social Care,BETHPHAGE.,11/12/2017,"1,098.43",73374-SUPPORTED & OTHER ACCOMMODATION,73374-SUPPORTED & OTHER ACCOMMODATION,Third Party Payments,Revenue
Walsall Council,http://opendatacommunities.org/id/metropolitan-district-council/walsall,WC87-550,31/12/2017,Adult Social Care,BETHPHAGE.,11/12/2017,"1,269.90",73374-SUPPORTED & OTHER ACCOMMODATION,73374-SUPPORTED & OTHER ACCOMMODATION,Third Party Payments,Revenue
Walsall Council,http://opendatacommunities.org/id/metropolitan-district-council/walsall,WC87-551,31/12/2017,Adult Social Care,BETHPHAGE.,11/12/2017,"1,282.50",73374-SUPPORTED & OTHER ACCOMMODATION,73374-SUPPORTED & OTHER ACCOMMODATION,Third Party Payments,Revenue
Walsall Council,http://opendatacommunities.org/id/metropolitan-district-council/walsall,WC87-552,31/12/2017,Adult Social Care,BETHPHAGE.,11/12/2017,"1,339.52",73374-SUPPORTED & OTHER ACCOMMODATION,73374-SUPPORTED & OTHER ACCOMMODATION,Third Party Payments,Revenue
Walsall Council,http://opendatacommunities.org/id/metropolitan-district-council/walsall,WC87-553,31/12/2017,Adult Social Care,BETHPHAGE.,11/12/2017,"1,453.52",73374-SUPPORTED & OTHER ACCOMMODATION,73374-SUPPORTED & OTHER ACCOMMODATION,Third Party Payments,Revenue
Walsall Council,http://opendatacommunities.org/id/metropolitan-district-council/walsall,WC87-554,31/12/2017,Adult Social Care,BETHPHAGE.,11/12/2017,"1,657.95",73374-SUPPORTED & OTHER ACCOMMODATION,73374-SUPPORTED & OTHER ACCOMMODATION,Third Party Payments,Revenue
Walsall Council,http://opendatacommunities.org/id/metropolitan-district-council/walsall,WC87-555,31/12/2017,Adult Social Care,BETHPHAGE.,11/12/2017,"1,674.40",73374-SUPPORTED & OTHER ACCOMMODATION,73374-SUPPORTED & OTHER ACCOMMODATION,Third Party Payments,Revenue
Walsall Council,http://opendatacommunities.org/id/metropolitan-district-council/walsall,WC87-556,31/12/2017,Adult Social Care,BETHPHAGE.,11/12/2017,"1,799.05",73374-SUPPORTED & OTHER ACCOMMODATION,73374-SUPPORTED & OTHER ACCOMMODATION,Third Party Payments,Revenue
Walsall Council,http://opendatacommunities.org/id/metropolitan-district-council/walsall,WC87-557,31/12/2017,Adult Social Care,BETHPHAGE.,11/12/2017,"1,816.90",73374-SUPPORTED & OTHER ACCOMMODATION,73374-SUPPORTED & OTHER ACCOMMODATION,Third Party Payments,Revenue
Walsall Council,http://opendatacommunities.org/id/metropolitan-district-council/walsall,WC87-558,31/12/2017,Adult Social Care,BETHPHAGE.,11/12/2017,"2,666.80",73374-SUPPORTED & OTHER ACCOMMODATION,73374-SUPPORTED & OTHER ACCOMMODATION,Third Party Payments,Revenue
Walsall Council,http://opendatacommunities.org/id/metropolitan-district-council/walsall,WC87-559,31/12/2017,Adult Social Care,BETHPHAGE.,11/12/2017,"2,666.80",73374-SUPPORTED & OTHER ACCOMMODATION,73374-SUPPORTED & OTHER ACCOMMODATION,Third Party Payments,Revenue
Walsall Council,http://opendatacommunities.org/id/metropolitan-district-council/walsall,WC87-560,31/12/2017,Adult Social Care,BETHPHAGE.,11/12/2017,"2,693.24",73374-SUPPORTED & OTHER ACCOMMODATION,73374-SUPPORTED & OTHER ACCOMMODATION,Third Party Payments,Revenue
Walsall Council,http://opendatacommunities.org/id/metropolitan-district-council/walsall,WC87-561,31/12/2017,Adult Social Care,BETHPHAGE.,11/12/2017,"3,333.50",73374-SUPPORTED & OTHER ACCOMMODATION,73374-SUPPORTED & OTHER ACCOMMODATION,Third Party Payments,Revenue
Walsall Council,http://opendatacommunities.org/id/metropolitan-district-council/walsall,WC87-562,31/12/2017,Adult Social Care,BETHPHAGE.,11/12/2017,"3,366.55",73374-SUPPORTED & OTHER ACCOMMODATION,73374-SUPPORTED & OTHER ACCOMMODATION,Third Party Payments,Revenue
Walsall Council,http://opendatacommunities.org/id/metropolitan-district-council/walsall,WC87-563,31/12/2017,Adult Social Care,BETHPHAGE.,11/12/2017,"4,789.90",73374-SUPPORTED & OTHER ACCOMMODATION,73374-SUPPORTED & OTHER ACCOMMODATION,Third Party Payments,Revenue
Walsall Council,http://opendatacommunities.org/id/metropolitan-district-council/walsall,WC87-564,31/12/2017,Adult Social Care,BETHPHAGE.,11/12/2017,"5,189.73",73374-SUPPORTED & OTHER ACCOMMODATION,73374-SUPPORTED & OTHER ACCOMMODATION,Third Party Payments,Revenue
Walsall Council,http://opendatacommunities.org/id/metropolitan-district-council/walsall,WC87-565,31/12/2017,Adult Social Care,BETHPHAGE.,11/12/2017,"5,744.04",73374-SUPPORTED & OTHER ACCOMMODATION,73374-SUPPORTED & OTHER ACCOMMODATION,Third Party Payments,Revenue
Walsall Council,http://opendatacommunities.org/id/metropolitan-district-council/walsall,WC87-566,31/12/2017,Adult Social Care,BETHPHAGE.,11/12/2017,"7,180.05",73374-SUPPORTED & OTHER ACCOMMODATION,73374-SUPPORTED & OTHER ACCOMMODATION,Third Party Payments,Revenue
Walsall Council,http://opendatacommunities.org/id/metropolitan-district-council/walsall,WC87-567,31/12/2017,Adult Social Care,BETHPHAGE.,11/12/2017,"10,542.28",73374-SUPPORTED & OTHER ACCOMMODATION,73374-SUPPORTED & OTHER ACCOMMODATION,Third Party Payments,Revenue
Walsall Council,http://opendatacommunities.org/id/metropolitan-district-council/walsall,WC87-568,31/12/2017,Adult Social Care,REDACTED,11/12/2017,"1,186.90",76422-DIRECT PAYMENTS TO SOCIAL SERVICES CLIENTS,76422-DIRECT PAYMENTS TO SOCIAL SERVICES CLIENTS,Transfer Payments,Revenue
Walsall Council,http://opendatacommunities.org/id/metropolitan-district-council/walsall,WC87-569,31/12/2017,Adult Social Care,REDACTED,11/12/2017,"3,459.80",76422-DIRECT PAYMENTS TO SOCIAL SERVICES CLIENTS,76422-DIRECT PAYMENTS TO SOCIAL SERVICES CLIENTS,Transfer Payments,Revenue
Walsall Council,http://opendatacommunities.org/id/metropolitan-district-council/walsall,WC87-570,31/12/2017,Resources and Transformation,BFA SAFETY TRAINING,01/12/2017,495.00,30030-EXTERNAL TRAINING,30030-EXTERNAL TRAINING,Employees,Revenue
Walsall Council,http://opendatacommunities.org/id/metropolitan-district-council/walsall,WC87-571,31/12/2017,Childrens,REDACTED,21/12/2017,456.00,52000-WITH DRIVER-HIRE OF VEHICLES,52000-WITH DRIVER-HIRE OF VEHICLES,Transport,Revenue
Walsall Council,http://opendatacommunities.org/id/metropolitan-district-council/walsall,WC87-572,31/12/2017,Economy & Environment,BIFFA WASTE SERVICES LTD,19/12/2017,"-25,579.36",73006-LANDFILL SITES PEEL ADV QTR PYTS-PRIV CONTRACTOR FEES,73006-LANDFILL SITES PEEL ADV QTR PYTS-PRIV CONTRACTOR FEES,Third Party Payments,Revenue
Walsall Council,http://opendatacommunities.org/id/metropolitan-district-council/walsall,WC87-573,31/12/2017,Economy & Environment,BIFFA WASTE SERVICES LTD,11/12/2017,167.00,73029-HAZARDOUS WASTE REMOVAL/DISPOSAL-PRIV CONTRACTOR FEES,73029-HAZARDOUS WASTE REMOVAL/DISPOSAL-PRIV CONTRACTOR FEES,Third Party Payments,Revenue
Walsall Council,http://opendatacommunities.org/id/metropolitan-district-council/walsall,WC87-574,31/12/2017,Economy & Environment,BIFFA WASTE SERVICES LTD,11/12/2017,244.52,73039-LANDFILL TAX-PRIV CONTRACTOR FEES,73039-LANDFILL TAX-PRIV CONTRACTOR FEES,Third Party Payments,Revenue
Walsall Council,http://opendatacommunities.org/id/metropolitan-district-council/walsall,WC87-575,31/12/2017,Economy & Environment,BIFFA WASTE SERVICES LTD,18/12/2017,"6,518.31",73006-LANDFILL SITES PEEL ADV QTR PYTS-PRIV CONTRACTOR FEES,73006-LANDFILL SITES PEEL ADV QTR PYTS-PRIV CONTRACTOR FEES,Third Party Payments,Revenue
Walsall Council,http://opendatacommunities.org/id/metropolitan-district-council/walsall,WC87-576,31/12/2017,Economy & Environment,BIFFA WASTE SERVICES LTD,18/12/2017,"6,668.30",73006-LANDFILL SITES PEEL ADV QTR PYTS-PRIV CONTRACTOR FEES,73006-LANDFILL SITES PEEL ADV QTR PYTS-PRIV CONTRACTOR FEES,Third Party Payments,Revenue
Walsall Council,http://opendatacommunities.org/id/metropolitan-district-council/walsall,WC87-577,31/12/2017,Economy & Environment,BIFFA WASTE SERVICES LTD,19/12/2017,"24,168.67",73006-LANDFILL SITES PEEL ADV QTR PYTS-PRIV CONTRACTOR FEES,73006-LANDFILL SITES PEEL ADV QTR PYTS-PRIV CONTRACTOR FEES,Third Party Payments,Revenue
Walsall Council,http://opendatacommunities.org/id/metropolitan-district-council/walsall,WC87-578,31/12/2017,Childrens,REDACTED,11/12/2017,715.00,76422-DIRECT PAYMENTS TO SOCIAL SERVICES CLIENTS,76422-DIRECT PAYMENTS TO SOCIAL SERVICES CLIENTS,Transfer Payments,Revenue
Walsall Council,http://opendatacommunities.org/id/metropolitan-district-council/walsall,WC87-579,31/12/2017,Economy & Environment,BIOGAS TECHNOLOGY LIMITED,04/12/2017,347.00,60008-MAINTENANCE-FURNITURE & EQUIPMENT,60008-MAINTENANCE-FURNITURE & EQUIPMENT,Supplies & Services,Revenue
Walsall Council,http://opendatacommunities.org/id/metropolitan-district-council/walsall,WC87-580,31/12/2017,Economy & Environment,BIOGAS TECHNOLOGY LIMITED,20/12/2017,347.00,60008-MAINTENANCE-FURNITURE & EQUIPMENT,60008-MAINTENANCE-FURNITURE & EQUIPMENT,Supplies & Services,Revenue
Walsall Council,http://opendatacommunities.org/id/metropolitan-district-council/walsall,WC87-581,31/12/2017,Childrens,BIRCHILLS C OF E COMMUNITY ACADEMY,06/12/2017,"2,100.00",77300-ISB-FORMULA ALLOCATION,77300-ISB-FORMULA ALLOCATION,Transfer Payments,Revenue
Walsall Council,http://opendatacommunities.org/id/metropolitan-district-council/walsall,WC87-582,31/12/2017,Childrens,BIRMINGHAM CITY COUNCIL,04/12/2017,"1,956.16",74037-INDEPENDENT FOSTER CARE-OTH AGENCY PROVISION,74037-INDEPENDENT FOSTER CARE-OTH AGENCY PROVISION,Third Party Payments,Revenue
Walsall Council,http://opendatacommunities.org/id/metropolitan-district-council/walsall,WC87-583,31/12/2017,Childrens,BIRMINGHAM CITY COUNCIL,28/12/2017,"1,956.16",74037-INDEPENDENT FOSTER CARE-OTH AGENCY PROVISION,74037-INDEPENDENT FOSTER CARE-OTH AGENCY PROVISION,Third Party Payments,Revenue
Walsall Council,http://opendatacommunities.org/id/metropolitan-district-council/walsall,WC87-584,31/12/2017,Childrens,BIRMINGHAM CITY COUNCIL,11/12/2017,"2,900.23",66502-TOP UP FUNDING -GRANTS TO SCHOOLS,66502-TOP UP FUNDING -GRANTS TO SCHOOLS,Third Party Payments,Revenue
Walsall Council,http://opendatacommunities.org/id/metropolitan-district-council/walsall,WC87-585,31/12/2017,Childrens,BIRMINGHAM CITY COUNCIL,11/12/2017,"8,235.61",66502-TOP UP FUNDING -GRANTS TO SCHOOLS,66502-TOP UP FUNDING -GRANTS TO SCHOOLS,Third Party Payments,Revenue
Walsall Council,http://opendatacommunities.org/id/metropolitan-district-council/walsall,WC87-586,31/12/2017,Resources and Transformation,BIRMINGHAM CITY UNIVERSITY,11/12/2017,580.00,30030-EXTERNAL TRAINING,30030-EXTERNAL TRAINING,Employees,Revenue
Walsall Council,http://opendatacommunities.org/id/metropolitan-district-council/walsall,WC87-587,31/12/2017,Economy & Environment,BLACK COUNTRY TRAINING LTD T/A BRITISH HGV TRAINING GROUP,14/12/2017,280.00,30030-EXTERNAL TRAINING,30030-EXTERNAL TRAINING,Employees,Revenue
Walsall Council,http://opendatacommunities.org/id/metropolitan-district-council/walsall,WC87-588,31/12/2017,Economy & Environment,BLACK COUNTRY TRAINING LTD T/A BRITISH HGV TRAINING GROUP,14/12/2017,610.00,30030-EXTERNAL TRAINING,30030-EXTERNAL TRAINING,Employees,Revenue
Walsall Council,http://opendatacommunities.org/id/metropolitan-district-council/walsall,WC87-589,31/12/2017,Economy & Environment,BLACK COUNTRY TRAINING LTD T/A BRITISH HGV TRAINING GROUP,14/12/2017,886.00,30030-EXTERNAL TRAINING,30030-EXTERNAL TRAINING,Employees,Revenue
Walsall Council,http://opendatacommunities.org/id/metropolitan-district-council/walsall,WC87-590,31/12/2017,Childrens,BLACK COUNTRY WOMENS AID,08/12/2017,"16,654.25",63000-PROFESSIONAL FEES AND SERVICES,63000-PROFESSIONAL FEES AND SERVICES,Supplies & Services,Revenue
Walsall Council,http://opendatacommunities.org/id/metropolitan-district-council/walsall,WC87-591,31/12/2017,Childrens,BLAKENALL HEATH JMI SCHOOL,06/12/2017,300.00,77300-ISB-FORMULA ALLOCATION,77300-ISB-FORMULA ALLOCATION,Transfer Payments,Revenue
Walsall Council,http://opendatacommunities.org/id/metropolitan-district-council/walsall,WC87-592,31/12/2017,Childrens,BLAKENALL HEATH JMI SCHOOL,07/12/2017,"10,693.00",77200-TRANSFER PAYMENTS-OTHER SCHOOLCHILDREN/STUDENT RELATED ITEMS,77200-TRANSFER PAYMENTS-OTHER SCHOOLCHILDREN/STUDENT RELATED ITEMS,Transfer Payments,Revenue
Walsall Council,http://opendatacommunities.org/id/metropolitan-district-council/walsall,WC87-593,31/12/2017,Adult Social Care,REDACTED,11/12/2017,"1,902.00",76422-DIRECT PAYMENTS TO SOCIAL SERVICES CLIENTS,76422-DIRECT PAYMENTS TO SOCIAL SERVICES CLIENTS,Transfer Payments,Revenue
Walsall Council,http://opendatacommunities.org/id/metropolitan-district-council/walsall,WC87-594,31/12/2017,Childrens,BLOXWICH ACADEMY,05/12/2017,600.00,77300-ISB-FORMULA ALLOCATION,77300-ISB-FORMULA ALLOCATION,Transfer Payments,Revenue
Walsall Council,http://opendatacommunities.org/id/metropolitan-district-council/walsall,WC87-595,31/12/2017,Childrens,BLOXWICH ACADEMY,06/12/2017,"1,500.00",77300-ISB-FORMULA ALLOCATION,77300-ISB-FORMULA ALLOCATION,Transfer Payments,Revenue
Walsall Council,http://opendatacommunities.org/id/metropolitan-district-council/walsall,WC87-596,31/12/2017,Childrens,BLOXWICH ACADEMY,15/12/2017,"2,824.63",66502-TOP UP FUNDING -GRANTS TO SCHOOLS,66502-TOP UP FUNDING -GRANTS TO SCHOOLS,Third Party Payments,Revenue
Walsall Council,http://opendatacommunities.org/id/metropolitan-district-council/walsall,WC87-597,31/12/2017,Childrens,BLOXWICH COMMUNITY PARTNERSHIP.,07/12/2017,"8,353.60",60500-GENERAL MATERIALS,60500-GENERAL MATERIALS,Supplies & Services,Revenue
Walsall Council,http://opendatacommunities.org/id/metropolitan-district-council/walsall,WC87-598,31/12/2017,Childrens,BLUE COAT CHURCH OF ENGLAND ACADEMY,05/12/2017,"1,200.00",77300-ISB-FORMULA ALLOCATION,77300-ISB-FORMULA ALLOCATION,Transfer Payments,Revenue
Walsall Council,http://opendatacommunities.org/id/metropolitan-district-council/walsall,WC87-599,31/12/2017,Childrens,BLUE COAT CHURCH OF ENGLAND ACADEMY,14/12/2017,"9,214.65",66502-TOP UP FUNDING -GRANTS TO SCHOOLS,66502-TOP UP FUNDING -GRANTS TO SCHOOLS,Third Party Payments,Revenue
Walsall Council,http://opendatacommunities.org/id/metropolitan-district-council/walsall,WC87-600,31/12/2017,Childrens,BLUE GIRAFFE CHILDCARE,07/12/2017,880.32,66505-OTHER-GRANTS TO OTHER ORGS,66505-OTHER-GRANTS TO OTHER ORGS,Third Party Payments,Revenue
Walsall Council,http://opendatacommunities.org/id/metropolitan-district-council/walsall,WC87-601,31/12/2017,Childrens,BLUE GIRAFFE CHILDCARE,01/12/2017,"3,024.00",66505-OTHER-GRANTS TO OTHER ORGS,66505-OTHER-GRANTS TO OTHER ORGS,Third Party Payments,Revenue
Walsall Council,http://opendatacommunities.org/id/metropolitan-district-council/walsall,WC87-602,31/12/2017,Childrens,BLUE GIRAFFE CHILDCARE,01/12/2017,"7,702.48",66505-OTHER-GRANTS TO OTHER ORGS,66505-OTHER-GRANTS TO OTHER ORGS,Third Party Payments,Revenue
Walsall Council,http://opendatacommunities.org/id/metropolitan-district-council/walsall,WC87-603,31/12/2017,Economy & Environment,BOC LTD,14/12/2017,345.15,60500-GENERAL MATERIALS,60500-GENERAL MATERIALS,Supplies & Services,Revenue
Walsall Council,http://opendatacommunities.org/id/metropolitan-district-council/walsall,WC87-604,31/12/2017,Childrens,BODRIGGY ACADEMY,05/12/2017,600.00,77300-ISB-FORMULA ALLOCATION,77300-ISB-FORMULA ALLOCATION,Transfer Payments,Revenue
Walsall Council,http://opendatacommunities.org/id/metropolitan-district-council/walsall,WC87-605,31/12/2017,Adult Social Care,BOLDMERE COURT CARE HOME,22/12/2017,"2,214.33",73373-RESIDENTIAL & NURSING CARE PLACEMENTS,73373-RESIDENTIAL & NURSING CARE PLACEMENTS,Third Party Payments,Revenue
Walsall Council,http://opendatacommunities.org/id/metropolitan-district-council/walsall,WC87-606,31/12/2017,Adult Social Care,BOLDMERE COURT CARE HOME,06/12/2017,"4,357.14",73373-RESIDENTIAL & NURSING CARE PLACEMENTS,73373-RESIDENTIAL & NURSING CARE PLACEMENTS,Third Party Payments,Revenue
Walsall Council,http://opendatacommunities.org/id/metropolitan-district-council/walsall,WC87-607,31/12/2017,Economy & Environment,BOS BUSINESS OFFICE SOLUTIONS CIC,04/12/2017,"4,999.92",66500-GRANTS TO OTHER ORGS,66500-GRANTS TO OTHER ORGS,Third Party Payments,Revenue
Walsall Council,http://opendatacommunities.org/id/metropolitan-district-council/walsall,WC87-608,31/12/2017,Childrens,BOULTON TRAVEL LIMITED,08/12/2017,"2,266.00",52000-WITH DRIVER-HIRE OF VEHICLES,52000-WITH DRIVER-HIRE OF VEHICLES,Transport,Revenue
Walsall Council,http://opendatacommunities.org/id/metropolitan-district-council/walsall,WC87-609,31/12/2017,Childrens,BOULTON TRAVEL LIMITED,08/12/2017,"2,376.00",52000-WITH DRIVER-HIRE OF VEHICLES,52000-WITH DRIVER-HIRE OF VEHICLES,Transport,Revenue
Walsall Council,http://opendatacommunities.org/id/metropolitan-district-council/walsall,WC87-610,31/12/2017,Childrens,BOULTON TRAVEL LIMITED,08/12/2017,"2,684.00",52000-WITH DRIVER-HIRE OF VEHICLES,52000-WITH DRIVER-HIRE OF VEHICLES,Transport,Revenue
Walsall Council,http://opendatacommunities.org/id/metropolitan-district-council/walsall,WC87-611,31/12/2017,Adult Social Care,BOWDEN DERRA PARK,18/12/2017,332.48,73373-RESIDENTIAL & NURSING CARE PLACEMENTS,73373-RESIDENTIAL & NURSING CARE PLACEMENTS,Third Party Payments,Revenue
Walsall Council,http://opendatacommunities.org/id/metropolitan-district-council/walsall,WC87-612,31/12/2017,Adult Social Care,BOWDEN DERRA PARK,18/12/2017,"1,266.36",73373-RESIDENTIAL & NURSING CARE PLACEMENTS,73373-RESIDENTIAL & NURSING CARE PLACEMENTS,Third Party Payments,Revenue
Walsall Council,http://opendatacommunities.org/id/metropolitan-district-council/walsall,WC87-613,31/12/2017,Adult Social Care,BOWDEN DERRA PARK,18/12/2017,"1,959.14",73373-RESIDENTIAL & NURSING CARE PLACEMENTS,73373-RESIDENTIAL & NURSING CARE PLACEMENTS,Third Party Payments,Revenue
Walsall Council,http://opendatacommunities.org/id/metropolitan-district-council/walsall,WC87-614,31/12/2017,Adult Social Care,BOWDEN DERRA PARK,18/12/2017,"10,502.76",73373-RESIDENTIAL & NURSING CARE PLACEMENTS,73373-RESIDENTIAL & NURSING CARE PLACEMENTS,Third Party Payments,Revenue
Walsall Council,http://opendatacommunities.org/id/metropolitan-district-council/walsall,WC87-615,31/12/2017,Adult Social Care,BOWDEN DERRA PARK,18/12/2017,"10,835.24",73373-RESIDENTIAL & NURSING CARE PLACEMENTS,73373-RESIDENTIAL & NURSING CARE PLACEMENTS,Third Party Payments,Revenue
Walsall Council,http://opendatacommunities.org/id/metropolitan-district-council/walsall,WC87-616,31/12/2017,Adult Social Care,BOWDEN DERRA PARK,18/12/2017,"21,670.48",73373-RESIDENTIAL & NURSING CARE PLACEMENTS,73373-RESIDENTIAL & NURSING CARE PLACEMENTS,Third Party Payments,Revenue
Walsall Council,http://opendatacommunities.org/id/metropolitan-district-council/walsall,WC87-617,31/12/2017,Adult Social Care,BRAMBLES RESIDENTIAL CARE HOME,12/12/2017,"2,134.58",73373-RESIDENTIAL & NURSING CARE PLACEMENTS,73373-RESIDENTIAL & NURSING CARE PLACEMENTS,Third Party Payments,Revenue
Walsall Council,http://opendatacommunities.org/id/metropolitan-district-council/walsall,WC87-618,31/12/2017,Childrens,BRANAS ISAF PERSONAL DEVELOPMENT CENTRE LTD,28/12/2017,"3,214.28",74036-EXTERNAL RESIDENTIAL CARE-OTH AGENCY PROVISION,74036-EXTERNAL RESIDENTIAL CARE-OTH AGENCY PROVISION,Third Party Payments,Revenue
Walsall Council,http://opendatacommunities.org/id/metropolitan-district-council/walsall,WC87-619,31/12/2017,Childrens,BRANAS ISAF PERSONAL DEVELOPMENT CENTRE LTD,04/12/2017,"18,000.00",74036-EXTERNAL RESIDENTIAL CARE-OTH AGENCY PROVISION,74036-EXTERNAL RESIDENTIAL CARE-OTH AGENCY PROVISION,Third Party Payments,Revenue
Walsall Council,http://opendatacommunities.org/id/metropolitan-district-council/walsall,WC87-620,31/12/2017,Adult Social Care,REDACTED,11/12/2017,550.00,76422-DIRECT PAYMENTS TO SOCIAL SERVICES CLIENTS,76422-DIRECT PAYMENTS TO SOCIAL SERVICES CLIENTS,Transfer Payments,Revenue
Walsall Council,http://opendatacommunities.org/id/metropolitan-district-council/walsall,WC87-621,31/12/2017,Childrens,REDACTED,04/12/2017,9.24,60006-NEW-FURNITURE & EQUIPMENT,60006-NEW-FURNITURE & EQUIPMENT,Supplies & Services,Revenue
Walsall Council,http://opendatacommunities.org/id/metropolitan-district-council/walsall,WC87-622,31/12/2017,Childrens,REDACTED,28/12/2017,9.24,60006-NEW-FURNITURE & EQUIPMENT,60006-NEW-FURNITURE & EQUIPMENT,Supplies & Services,Revenue
Walsall Council,http://opendatacommunities.org/id/metropolitan-district-council/walsall,WC87-623,31/12/2017,Childrens,REDACTED,04/12/2017,202.58,74504-HOLIDAY/CHRISTMAS ALLOWANCE-FOSTER CARERS,74504-HOLIDAY/CHRISTMAS ALLOWANCE-FOSTER CARERS,Transfer Payments,Revenue
Walsall Council,http://opendatacommunities.org/id/metropolitan-district-council/walsall,WC87-624,31/12/2017,Childrens,REDACTED,04/12/2017,202.58,74504-HOLIDAY/CHRISTMAS ALLOWANCE-FOSTER CARERS,74504-HOLIDAY/CHRISTMAS ALLOWANCE-FOSTER CARERS,Transfer Payments,Revenue
Walsall Council,http://opendatacommunities.org/id/metropolitan-district-council/walsall,WC87-625,31/12/2017,Childrens,REDACTED,04/12/2017,810.32,74501-MAINTENANCE ALLOWANCE-FOSTER CARERS,74501-MAINTENANCE ALLOWANCE-FOSTER CARERS,Transfer Payments,Revenue
Walsall Council,http://opendatacommunities.org/id/metropolitan-district-council/walsall,WC87-626,31/12/2017,Childrens,REDACTED,04/12/2017,810.32,74501-MAINTENANCE ALLOWANCE-FOSTER CARERS,74501-MAINTENANCE ALLOWANCE-FOSTER CARERS,Transfer Payments,Revenue
Walsall Council,http://opendatacommunities.org/id/metropolitan-district-council/walsall,WC87-627,31/12/2017,Childrens,REDACTED,28/12/2017,810.32,74501-MAINTENANCE ALLOWANCE-FOSTER CARERS,74501-MAINTENANCE ALLOWANCE-FOSTER CARERS,Transfer Payments,Revenue
Walsall Council,http://opendatacommunities.org/id/metropolitan-district-council/walsall,WC87-628,31/12/2017,Childrens,REDACTED,28/12/2017,810.32,74501-MAINTENANCE ALLOWANCE-FOSTER CARERS,74501-MAINTENANCE ALLOWANCE-FOSTER CARERS,Transfer Payments,Revenue
Walsall Council,http://opendatacommunities.org/id/metropolitan-district-council/walsall,WC87-629,31/12/2017,Childrens,REDACTED,28/12/2017,954.23,64002-OTHER EXPENSES-EXPENSES,64002-OTHER EXPENSES-EXPENSES,Supplies & Services,Revenue
Walsall Council,http://opendatacommunities.org/id/metropolitan-district-council/walsall,WC87-630,31/12/2017,Childrens,REDACTED,04/12/2017,"1,436.08",74508-INTERNAL FOSTER CARERS-CARER FEES,74508-INTERNAL FOSTER CARERS-CARER FEES,Transfer Payments,Revenue
Walsall Council,http://opendatacommunities.org/id/metropolitan-district-council/walsall,WC87-631,31/12/2017,Childrens,REDACTED,28/12/2017,"1,436.08",74508-INTERNAL FOSTER CARERS-CARER FEES,74508-INTERNAL FOSTER CARERS-CARER FEES,Transfer Payments,Revenue
Walsall Council,http://opendatacommunities.org/id/metropolitan-district-council/walsall,WC87-632,31/12/2017,Economy & Environment,BRENNTAG UK LIMITED,06/12/2017,387.50,60503-CHEMICALS & SCIENTIFIC MATS-MATERIALS,60503-CHEMICALS & SCIENTIFIC MATS-MATERIALS,Supplies & Services,Revenue
Walsall Council,http://opendatacommunities.org/id/metropolitan-district-council/walsall,WC87-633,31/12/2017,Economy & Environment,BRENNTAG UK LIMITED,15/12/2017,387.50,60500-GENERAL MATERIALS,60500-GENERAL MATERIALS,Supplies & Services,Revenue
Walsall Council,http://opendatacommunities.org/id/metropolitan-district-council/walsall,WC87-634,31/12/2017,Adult Social Care,REDACTED,13/12/2017,"1,337.64",73374-SUPPORTED & OTHER ACCOMMODATION,73374-SUPPORTED & OTHER ACCOMMODATION,Third Party Payments,Revenue
Walsall Council,http://opendatacommunities.org/id/metropolitan-district-council/walsall,WC87-635,31/12/2017,Adult Social Care,REDACTED,13/12/2017,"1,597.60",73374-SUPPORTED & OTHER ACCOMMODATION,73374-SUPPORTED & OTHER ACCOMMODATION,Third Party Payments,Revenue
Walsall Council,http://opendatacommunities.org/id/metropolitan-district-council/walsall,WC87-636,31/12/2017,Adult Social Care,REDACTED,11/12/2017,"2,158.00",76422-DIRECT PAYMENTS TO SOCIAL SERVICES CLIENTS,76422-DIRECT PAYMENTS TO SOCIAL SERVICES CLIENTS,Transfer Payments,Revenue
Walsall Council,http://opendatacommunities.org/id/metropolitan-district-council/walsall,WC87-637,31/12/2017,Adult Social Care,REDACTED,11/12/2017,922.50,76422-DIRECT PAYMENTS TO SOCIAL SERVICES CLIENTS,76422-DIRECT PAYMENTS TO SOCIAL SERVICES CLIENTS,Transfer Payments,Revenue
Walsall Council,http://opendatacommunities.org/id/metropolitan-district-council/walsall,WC87-638,31/12/2017,Adult Social Care,BRIDGEWOOD HEALTH CARE LTD,22/12/2017,"5,688.24",73373-RESIDENTIAL & NURSING CARE PLACEMENTS,73373-RESIDENTIAL & NURSING CARE PLACEMENTS,Third Party Payments,Revenue
Walsall Council,http://opendatacommunities.org/id/metropolitan-district-council/walsall,WC87-639,31/12/2017,Childrens,BRIGHT HORIZONS (WISHING WILLOW),18/12/2017,957.62,63120-CRECHE FACILITIES-SERVICES-FEES,63120-CRECHE FACILITIES-SERVICES-FEES,Supplies & Services,Revenue
Walsall Council,http://opendatacommunities.org/id/metropolitan-district-council/walsall,WC87-640,31/12/2017,Resources and Transformation,BRISTOW & SUTOR,15/12/2017,241.47,73014-LEGAL FEES-PRIV CONTRACTOR FEES,73014-LEGAL FEES-PRIV CONTRACTOR FEES,Third Party Payments,Revenue
Walsall Council,http://opendatacommunities.org/id/metropolitan-district-council/walsall,WC87-641,31/12/2017,Resources and Transformation,BRISTOW & SUTOR,15/12/2017,464.00,73014-LEGAL FEES-PRIV CONTRACTOR FEES,73014-LEGAL FEES-PRIV CONTRACTOR FEES,Third Party Payments,Revenue
Walsall Council,http://opendatacommunities.org/id/metropolitan-district-council/walsall,WC87-642,31/12/2017,Resources and Transformation,BRISTOW & SUTOR,15/12/2017,777.76,73014-LEGAL FEES-PRIV CONTRACTOR FEES,73014-LEGAL FEES-PRIV CONTRACTOR FEES,Third Party Payments,Revenue
Walsall Council,http://opendatacommunities.org/id/metropolitan-district-council/walsall,WC87-643,31/12/2017,Economy & Environment,BRITISH TELECOMMUNICATIONS LTD,18/12/2017,"10,816.50",01006-SITE WORKS MAIN CONTRACTORS,01006-SITE WORKS MAIN CONTRACTORS,Capital,Capital
Walsall Council,http://opendatacommunities.org/id/metropolitan-district-council/walsall,WC87-644,31/12/2017,Adult Social Care,BROADREACH HOUSE,18/12/2017,"3,407.14",73373-RESIDENTIAL & NURSING CARE PLACEMENTS,73373-RESIDENTIAL & NURSING CARE PLACEMENTS,Third Party Payments,Revenue
Walsall Council,http://opendatacommunities.org/id/metropolitan-district-council/walsall,WC87-645,31/12/2017,Adult Social Care,BROADWAY HALLS CARE HOME,12/12/2017,288.56,73373-RESIDENTIAL & NURSING CARE PLACEMENTS,73373-RESIDENTIAL & NURSING CARE PLACEMENTS,Third Party Payments,Revenue
Walsall Council,http://opendatacommunities.org/id/metropolitan-district-council/walsall,WC87-646,31/12/2017,Adult Social Care,BROADWAY HALLS CARE HOME,12/12/2017,"1,928.57",73373-RESIDENTIAL & NURSING CARE PLACEMENTS,73373-RESIDENTIAL & NURSING CARE PLACEMENTS,Third Party Payments,Revenue
Walsall Council,http://opendatacommunities.org/id/metropolitan-district-council/walsall,WC87-647,31/12/2017,Adult Social Care,BROADWAY HALLS CARE HOME,12/12/2017,"1,971.43",73373-RESIDENTIAL & NURSING CARE PLACEMENTS,73373-RESIDENTIAL & NURSING CARE PLACEMENTS,Third Party Payments,Revenue
Walsall Council,http://opendatacommunities.org/id/metropolitan-district-council/walsall,WC87-648,31/12/2017,Adult Social Care,BROADWAY HALLS CARE HOME,12/12/2017,"1,992.86",73373-RESIDENTIAL & NURSING CARE PLACEMENTS,73373-RESIDENTIAL & NURSING CARE PLACEMENTS,Third Party Payments,Revenue
Walsall Council,http://opendatacommunities.org/id/metropolitan-district-council/walsall,WC87-649,31/12/2017,Resources and Transformation,BROWNHILLS ASPHALT & TARMAC LIMITED,22/12/2017,395.00,01006-SITE WORKS MAIN CONTRACTORS,01006-SITE WORKS MAIN CONTRACTORS,Capital,Capital
Walsall Council,http://opendatacommunities.org/id/metropolitan-district-council/walsall,WC87-650,31/12/2017,Economy & Environment,BROWNHILLS ASPHALT & TARMAC LIMITED,14/12/2017,480.00,60008-MAINTENANCE-FURNITURE & EQUIPMENT,60008-MAINTENANCE-FURNITURE & EQUIPMENT,Supplies & Services,Revenue
Walsall Council,http://opendatacommunities.org/id/metropolitan-district-council/walsall,WC87-651,31/12/2017,Resources and Transformation,BROWNHILLS ASPHALT & TARMAC LIMITED,01/12/2017,700.00,"40000-REPAIRS,ALTERATIONS & MAINTENANCE-PREM","40000-REPAIRS,ALTERATIONS & MAINTENANCE-PREM",Premises,Revenue
Walsall Council,http://opendatacommunities.org/id/metropolitan-district-council/walsall,WC87-652,31/12/2017,Economy & Environment,BROWNHILLS ASPHALT & TARMAC LIMITED,08/12/2017,940.00,60500-GENERAL MATERIALS,60500-GENERAL MATERIALS,Supplies & Services,Revenue
Walsall Council,http://opendatacommunities.org/id/metropolitan-district-council/walsall,WC87-653,31/12/2017,Economy & Environment,BROWNHILLS ASPHALT & TARMAC LIMITED,08/12/2017,"1,830.00","40000-REPAIRS,ALTERATIONS & MAINTENANCE-PREM","40000-REPAIRS,ALTERATIONS & MAINTENANCE-PREM",Premises,Revenue
Walsall Council,http://opendatacommunities.org/id/metropolitan-district-council/walsall,WC87-654,31/12/2017,Economy & Environment,BROWNHILLS ASPHALT & TARMAC LIMITED,05/12/2017,"3,430.00",01006-SITE WORKS MAIN CONTRACTORS,01006-SITE WORKS MAIN CONTRACTORS,Capital,Capital
Walsall Council,http://opendatacommunities.org/id/metropolitan-district-council/walsall,WC87-655,31/12/2017,Childrens,BROWNHILLS ASPHALT & TARMAC LIMITED,18/12/2017,"8,496.00",01006-SITE WORKS MAIN CONTRACTORS,01006-SITE WORKS MAIN CONTRACTORS,Capital,Capital
Walsall Council,http://opendatacommunities.org/id/metropolitan-district-council/walsall,WC87-656,31/12/2017,Childrens,BROWNHILLS ASPHALT & TARMAC LIMITED,08/12/2017,"15,752.00",01006-SITE WORKS MAIN CONTRACTORS,01006-SITE WORKS MAIN CONTRACTORS,Capital,Capital
Walsall Council,http://opendatacommunities.org/id/metropolitan-district-council/walsall,WC87-657,31/12/2017,Childrens,BROWNHILLS COMMUNITY ASSOCIATION,01/12/2017,"2,184.00",66505-OTHER-GRANTS TO OTHER ORGS,66505-OTHER-GRANTS TO OTHER ORGS,Third Party Payments,Revenue
Walsall Council,http://opendatacommunities.org/id/metropolitan-district-council/walsall,WC87-658,31/12/2017,Resources and Transformation,BROWNHILLS COMMUNITY ASSOCIATION,01/12/2017,"10,000.00",63102-CONSULTANTS FEES - CORPORATE,63102-CONSULTANTS FEES - CORPORATE,Supplies & Services,Revenue
Walsall Council,http://opendatacommunities.org/id/metropolitan-district-council/walsall,WC87-659,31/12/2017,Adult Social Care,REDACTED,11/12/2017,"1,912.50",76422-DIRECT PAYMENTS TO SOCIAL SERVICES CLIENTS,76422-DIRECT PAYMENTS TO SOCIAL SERVICES CLIENTS,Transfer Payments,Revenue
Walsall Council,http://opendatacommunities.org/id/metropolitan-district-council/walsall,WC87-660,31/12/2017,Childrens,REDACTED,04/12/2017,"18,760.00",74036-EXTERNAL RESIDENTIAL CARE-OTH AGENCY PROVISION,74036-EXTERNAL RESIDENTIAL CARE-OTH AGENCY PROVISION,Third Party Payments,Revenue
Walsall Council,http://opendatacommunities.org/id/metropolitan-district-council/walsall,WC87-661,31/12/2017,Economy & Environment,BSMART TRAINING LTD,21/12/2017,"1,550.00",63000-PROFESSIONAL FEES AND SERVICES,63000-PROFESSIONAL FEES AND SERVICES,Supplies & Services,Revenue
Walsall Council,http://opendatacommunities.org/id/metropolitan-district-council/walsall,WC87-662,31/12/2017,Economy & Environment,BSMART TRAINING LTD,21/12/2017,"1,550.00",63000-PROFESSIONAL FEES AND SERVICES,63000-PROFESSIONAL FEES AND SERVICES,Supplies & Services,Revenue
Walsall Council,http://opendatacommunities.org/id/metropolitan-district-council/walsall,WC87-663,31/12/2017,Resources and Transformation,BT,05/12/2017,712.00,63603-COST OF CALLS-TELEPHONES,63603-COST OF CALLS-TELEPHONES,Supplies & Services,Revenue
Walsall Council,http://opendatacommunities.org/id/metropolitan-district-council/walsall,WC87-664,31/12/2017,Resources and Transformation,BT PLC,11/12/2017,"4,775.52",63601-COSTS (NOT INTERNAL RECHARGES)-TELEPHONES,63601-COSTS (NOT INTERNAL RECHARGES)-TELEPHONES,Supplies & Services,Revenue
Walsall Council,http://opendatacommunities.org/id/metropolitan-district-council/walsall,WC87-665,31/12/2017,Economy & Environment,BUFFET EXPRESS LTD,07/12/2017,364.00,61305-CATERING,61305-CATERING,Supplies & Services,Revenue
Walsall Council,http://opendatacommunities.org/id/metropolitan-district-council/walsall,WC87-666,31/12/2017,Adult Social Care,BUNZIL HEALTHCARE T/A CARESHOP,01/12/2017,294.35,60539-CLEANING MATERIALS,60539-CLEANING MATERIALS,Supplies & Services,Revenue
Walsall Council,http://opendatacommunities.org/id/metropolitan-district-council/walsall,WC87-667,31/12/2017,Adult Social Care,BUNZIL HEALTHCARE T/A CARESHOP,15/12/2017,877.12,60000-FURNITURE & EQUIPMENT,60000-FURNITURE & EQUIPMENT,Supplies & Services,Revenue
Walsall Council,http://opendatacommunities.org/id/metropolitan-district-council/walsall,WC87-668,31/12/2017,Adult Social Care,BUPA CARE HOMES (CFHCARE) LTD,22/12/2017,255.45,73373-RESIDENTIAL & NURSING CARE PLACEMENTS,73373-RESIDENTIAL & NURSING CARE PLACEMENTS,Third Party Payments,Revenue
Walsall Council,http://opendatacommunities.org/id/metropolitan-district-council/walsall,WC87-669,31/12/2017,Adult Social Care,BUPA CARE HOMES (CFHCARE) LTD,22/12/2017,550.79,73373-RESIDENTIAL & NURSING CARE PLACEMENTS,73373-RESIDENTIAL & NURSING CARE PLACEMENTS,Third Party Payments,Revenue
Walsall Council,http://opendatacommunities.org/id/metropolitan-district-council/walsall,WC87-670,31/12/2017,Adult Social Care,BUPA CARE HOMES (CFHCARE) LTD,22/12/2017,550.79,73373-RESIDENTIAL & NURSING CARE PLACEMENTS,73373-RESIDENTIAL & NURSING CARE PLACEMENTS,Third Party Payments,Revenue
Walsall Council,http://opendatacommunities.org/id/metropolitan-district-council/walsall,WC87-671,31/12/2017,Adult Social Care,BUPA CARE HOMES (CFHCARE) LTD,22/12/2017,550.79,73373-RESIDENTIAL & NURSING CARE PLACEMENTS,73373-RESIDENTIAL & NURSING CARE PLACEMENTS,Third Party Payments,Revenue
Walsall Council,http://opendatacommunities.org/id/metropolitan-district-council/walsall,WC87-672,31/12/2017,Adult Social Care,BUPA CARE HOMES (CFHCARE) LTD,22/12/2017,550.79,73373-RESIDENTIAL & NURSING CARE PLACEMENTS,73373-RESIDENTIAL & NURSING CARE PLACEMENTS,Third Party Payments,Revenue
Walsall Council,http://opendatacommunities.org/id/metropolitan-district-council/walsall,WC87-673,31/12/2017,Adult Social Care,BUPA CARE HOMES (CFHCARE) LTD,22/12/2017,550.79,73373-RESIDENTIAL & NURSING CARE PLACEMENTS,73373-RESIDENTIAL & NURSING CARE PLACEMENTS,Third Party Payments,Revenue
Walsall Council,http://opendatacommunities.org/id/metropolitan-district-council/walsall,WC87-674,31/12/2017,Adult Social Care,BUPA CARE HOMES (CFHCARE) LTD,22/12/2017,"2,200.00",73373-RESIDENTIAL & NURSING CARE PLACEMENTS,73373-RESIDENTIAL & NURSING CARE PLACEMENTS,Third Party Payments,Revenue
Walsall Council,http://opendatacommunities.org/id/metropolitan-district-council/walsall,WC87-675,31/12/2017,Adult Social Care,BUPA CARE HOMES (CFHCARE) LTD,22/12/2017,"2,200.00",73373-RESIDENTIAL & NURSING CARE PLACEMENTS,73373-RESIDENTIAL & NURSING CARE PLACEMENTS,Third Party Payments,Revenue
Walsall Council,http://opendatacommunities.org/id/metropolitan-district-council/walsall,WC87-676,31/12/2017,Adult Social Care,BUPA CARE HOMES (CFHCARE) LTD,22/12/2017,"2,200.00",73373-RESIDENTIAL & NURSING CARE PLACEMENTS,73373-RESIDENTIAL & NURSING CARE PLACEMENTS,Third Party Payments,Revenue
Walsall Council,http://opendatacommunities.org/id/metropolitan-district-council/walsall,WC87-677,31/12/2017,Adult Social Care,BUPA CARE HOMES (CFHCARE) LTD,22/12/2017,"2,200.00",73373-RESIDENTIAL & NURSING CARE PLACEMENTS,73373-RESIDENTIAL & NURSING CARE PLACEMENTS,Third Party Payments,Revenue
Walsall Council,http://opendatacommunities.org/id/metropolitan-district-council/walsall,WC87-678,31/12/2017,Adult Social Care,BUPA CARE HOMES (CFHCARE) LTD,22/12/2017,"2,400.59",73373-RESIDENTIAL & NURSING CARE PLACEMENTS,73373-RESIDENTIAL & NURSING CARE PLACEMENTS,Third Party Payments,Revenue
Walsall Council,http://opendatacommunities.org/id/metropolitan-district-council/walsall,WC87-679,31/12/2017,Adult Social Care,BUPA CARE HOMES (CFHCARE) LTD,22/12/2017,"2,400.59",73373-RESIDENTIAL & NURSING CARE PLACEMENTS,73373-RESIDENTIAL & NURSING CARE PLACEMENTS,Third Party Payments,Revenue
Walsall Council,http://opendatacommunities.org/id/metropolitan-district-council/walsall,WC87-680,31/12/2017,Adult Social Care,BUPA CARE HOMES (CFHCARE) LTD,22/12/2017,"3,380.20",73373-RESIDENTIAL & NURSING CARE PLACEMENTS,73373-RESIDENTIAL & NURSING CARE PLACEMENTS,Third Party Payments,Revenue
Walsall Council,http://opendatacommunities.org/id/metropolitan-district-council/walsall,WC87-681,31/12/2017,Adult Social Care,BUPA CARE HOMES (CFHCARE) LTD,22/12/2017,"3,380.20",73373-RESIDENTIAL & NURSING CARE PLACEMENTS,73373-RESIDENTIAL & NURSING CARE PLACEMENTS,Third Party Payments,Revenue
Walsall Council,http://opendatacommunities.org/id/metropolitan-district-council/walsall,WC87-682,31/12/2017,Adult Social Care,BUPA CARE HOMES (CFHCARE) LTD,22/12/2017,"3,380.20",73373-RESIDENTIAL & NURSING CARE PLACEMENTS,73373-RESIDENTIAL & NURSING CARE PLACEMENTS,Third Party Payments,Revenue
Walsall Council,http://opendatacommunities.org/id/metropolitan-district-council/walsall,WC87-683,31/12/2017,Adult Social Care,BUPA CARE HOMES (CFHCARE) LTD,22/12/2017,"3,380.20",73373-RESIDENTIAL & NURSING CARE PLACEMENTS,73373-RESIDENTIAL & NURSING CARE PLACEMENTS,Third Party Payments,Revenue
Walsall Council,http://opendatacommunities.org/id/metropolitan-district-council/walsall,WC87-684,31/12/2017,Childrens,BURNT TREE PRIMARY SCHOOL,06/12/2017,600.00,77300-ISB-FORMULA ALLOCATION,77300-ISB-FORMULA ALLOCATION,Transfer Payments,Revenue
Walsall Council,http://opendatacommunities.org/id/metropolitan-district-council/walsall,WC87-685,31/12/2017,Adult Social Care,BUSH HOME LTD,22/12/2017,887.14,73373-RESIDENTIAL & NURSING CARE PLACEMENTS,73373-RESIDENTIAL & NURSING CARE PLACEMENTS,Third Party Payments,Revenue
Walsall Council,http://opendatacommunities.org/id/metropolitan-district-council/walsall,WC87-686,31/12/2017,Adult Social Care,BUSH HOME LTD,22/12/2017,"1,656.00",73373-RESIDENTIAL & NURSING CARE PLACEMENTS,73373-RESIDENTIAL & NURSING CARE PLACEMENTS,Third Party Payments,Revenue
Walsall Council,http://opendatacommunities.org/id/metropolitan-district-council/walsall,WC87-687,31/12/2017,Adult Social Care,BUSH HOME LTD,22/12/2017,"1,656.00",73373-RESIDENTIAL & NURSING CARE PLACEMENTS,73373-RESIDENTIAL & NURSING CARE PLACEMENTS,Third Party Payments,Revenue
Walsall Council,http://opendatacommunities.org/id/metropolitan-district-council/walsall,WC87-688,31/12/2017,Adult Social Care,BUSH HOME LTD,22/12/2017,"1,656.00",73373-RESIDENTIAL & NURSING CARE PLACEMENTS,73373-RESIDENTIAL & NURSING CARE PLACEMENTS,Third Party Payments,Revenue
Walsall Council,http://opendatacommunities.org/id/metropolitan-district-council/walsall,WC87-689,31/12/2017,Adult Social Care,BUSH HOME LTD,22/12/2017,"1,656.00",73373-RESIDENTIAL & NURSING CARE PLACEMENTS,73373-RESIDENTIAL & NURSING CARE PLACEMENTS,Third Party Payments,Revenue
Walsall Council,http://opendatacommunities.org/id/metropolitan-district-council/walsall,WC87-690,31/12/2017,Adult Social Care,BUSH HOME LTD,22/12/2017,"1,656.00",73373-RESIDENTIAL & NURSING CARE PLACEMENTS,73373-RESIDENTIAL & NURSING CARE PLACEMENTS,Third Party Payments,Revenue
Walsall Council,http://opendatacommunities.org/id/metropolitan-district-council/walsall,WC87-691,31/12/2017,Adult Social Care,BUSH HOME LTD,22/12/2017,"1,656.00",73373-RESIDENTIAL & NURSING CARE PLACEMENTS,73373-RESIDENTIAL & NURSING CARE PLACEMENTS,Third Party Payments,Revenue
Walsall Council,http://opendatacommunities.org/id/metropolitan-district-council/walsall,WC87-692,31/12/2017,Adult Social Care,BUSH HOME LTD,22/12/2017,"1,656.00",73373-RESIDENTIAL & NURSING CARE PLACEMENTS,73373-RESIDENTIAL & NURSING CARE PLACEMENTS,Third Party Payments,Revenue
Walsall Council,http://opendatacommunities.org/id/metropolitan-district-council/walsall,WC87-693,31/12/2017,Adult Social Care,BUSH HOME LTD,22/12/2017,"1,656.00",73373-RESIDENTIAL & NURSING CARE PLACEMENTS,73373-RESIDENTIAL & NURSING CARE PLACEMENTS,Third Party Payments,Revenue
Walsall Council,http://opendatacommunities.org/id/metropolitan-district-council/walsall,WC87-694,31/12/2017,Adult Social Care,BUSH HOME LTD,22/12/2017,"1,656.00",73373-RESIDENTIAL & NURSING CARE PLACEMENTS,73373-RESIDENTIAL & NURSING CARE PLACEMENTS,Third Party Payments,Revenue
Walsall Council,http://opendatacommunities.org/id/metropolitan-district-council/walsall,WC87-695,31/12/2017,Adult Social Care,BUSH HOME LTD,22/12/2017,"1,656.00",73373-RESIDENTIAL & NURSING CARE PLACEMENTS,73373-RESIDENTIAL & NURSING CARE PLACEMENTS,Third Party Payments,Revenue
Walsall Council,http://opendatacommunities.org/id/metropolitan-district-council/walsall,WC87-696,31/12/2017,Adult Social Care,BUSH HOME LTD,22/12/2017,"1,656.00",73373-RESIDENTIAL & NURSING CARE PLACEMENTS,73373-RESIDENTIAL & NURSING CARE PLACEMENTS,Third Party Payments,Revenue
Walsall Council,http://opendatacommunities.org/id/metropolitan-district-council/walsall,WC87-697,31/12/2017,Adult Social Care,BUSH HOME LTD,22/12/2017,"1,656.00",73373-RESIDENTIAL & NURSING CARE PLACEMENTS,73373-RESIDENTIAL & NURSING CARE PLACEMENTS,Third Party Payments,Revenue
Walsall Council,http://opendatacommunities.org/id/metropolitan-district-council/walsall,WC87-698,31/12/2017,Adult Social Care,BUSH HOME LTD,22/12/2017,"1,839.94",73373-RESIDENTIAL & NURSING CARE PLACEMENTS,73373-RESIDENTIAL & NURSING CARE PLACEMENTS,Third Party Payments,Revenue
Walsall Council,http://opendatacommunities.org/id/metropolitan-district-council/walsall,WC87-699,31/12/2017,Adult Social Care,BUSH HOME LTD,22/12/2017,"1,840.00",73373-RESIDENTIAL & NURSING CARE PLACEMENTS,73373-RESIDENTIAL & NURSING CARE PLACEMENTS,Third Party Payments,Revenue
Walsall Council,http://opendatacommunities.org/id/metropolitan-district-council/walsall,WC87-700,31/12/2017,Adult Social Care,BUSH HOME LTD,22/12/2017,"1,840.00",73373-RESIDENTIAL & NURSING CARE PLACEMENTS,73373-RESIDENTIAL & NURSING CARE PLACEMENTS,Third Party Payments,Revenue
Walsall Council,http://opendatacommunities.org/id/metropolitan-district-council/walsall,WC87-701,31/12/2017,Adult Social Care,BUSH HOME LTD,22/12/2017,"1,840.00",73373-RESIDENTIAL & NURSING CARE PLACEMENTS,73373-RESIDENTIAL & NURSING CARE PLACEMENTS,Third Party Payments,Revenue
Walsall Council,http://opendatacommunities.org/id/metropolitan-district-council/walsall,WC87-702,31/12/2017,Adult Social Care,BUSH HOME LTD,22/12/2017,"1,840.00",73373-RESIDENTIAL & NURSING CARE PLACEMENTS,73373-RESIDENTIAL & NURSING CARE PLACEMENTS,Third Party Payments,Revenue
Walsall Council,http://opendatacommunities.org/id/metropolitan-district-council/walsall,WC87-703,31/12/2017,Adult Social Care,BUSH HOME LTD,22/12/2017,"1,840.00",73373-RESIDENTIAL & NURSING CARE PLACEMENTS,73373-RESIDENTIAL & NURSING CARE PLACEMENTS,Third Party Payments,Revenue
Walsall Council,http://opendatacommunities.org/id/metropolitan-district-council/walsall,WC87-704,31/12/2017,Adult Social Care,BUSH HOME LTD,22/12/2017,"2,188.29",73373-RESIDENTIAL & NURSING CARE PLACEMENTS,73373-RESIDENTIAL & NURSING CARE PLACEMENTS,Third Party Payments,Revenue
Walsall Council,http://opendatacommunities.org/id/metropolitan-district-council/walsall,WC87-705,31/12/2017,Adult Social Care,BUSH HOME LTD,22/12/2017,"4,402.86",73373-RESIDENTIAL & NURSING CARE PLACEMENTS,73373-RESIDENTIAL & NURSING CARE PLACEMENTS,Third Party Payments,Revenue
Walsall Council,http://opendatacommunities.org/id/metropolitan-district-council/walsall,WC87-706,31/12/2017,Childrens,BUSY BEES CHILDCARE LTD,01/12/2017,"3,136.00",66505-OTHER-GRANTS TO OTHER ORGS,66505-OTHER-GRANTS TO OTHER ORGS,Third Party Payments,Revenue
Walsall Council,http://opendatacommunities.org/id/metropolitan-district-council/walsall,WC87-707,31/12/2017,Economy & Environment,BUXTONS LTD,21/12/2017,580.50,61500-CLOTHING & LAUNDRY,61500-CLOTHING & LAUNDRY,Supplies & Services,Revenue
Walsall Council,http://opendatacommunities.org/id/metropolitan-district-council/walsall,WC87-708,31/12/2017,Adult Social Care,C & V ORCHARD MANOR LTD,12/12/2017,262.86,73373-RESIDENTIAL & NURSING CARE PLACEMENTS,73373-RESIDENTIAL & NURSING CARE PLACEMENTS,Third Party Payments,Revenue
Walsall Council,http://opendatacommunities.org/id/metropolitan-district-council/walsall,WC87-709,31/12/2017,Adult Social Care,C & V ORCHARD MANOR LTD,06/12/2017,459.50,73373-RESIDENTIAL & NURSING CARE PLACEMENTS,73373-RESIDENTIAL & NURSING CARE PLACEMENTS,Third Party Payments,Revenue
Walsall Council,http://opendatacommunities.org/id/metropolitan-district-council/walsall,WC87-710,31/12/2017,Adult Social Care,C & V ORCHARD MANOR LTD,06/12/2017,525.21,73373-RESIDENTIAL & NURSING CARE PLACEMENTS,73373-RESIDENTIAL & NURSING CARE PLACEMENTS,Third Party Payments,Revenue
Walsall Council,http://opendatacommunities.org/id/metropolitan-district-council/walsall,WC87-711,31/12/2017,Adult Social Care,C & V ORCHARD MANOR LTD,06/12/2017,722.86,73373-RESIDENTIAL & NURSING CARE PLACEMENTS,73373-RESIDENTIAL & NURSING CARE PLACEMENTS,Third Party Payments,Revenue
Walsall Council,http://opendatacommunities.org/id/metropolitan-district-council/walsall,WC87-712,31/12/2017,Adult Social Care,C & V ORCHARD MANOR LTD,06/12/2017,776.84,73373-RESIDENTIAL & NURSING CARE PLACEMENTS,73373-RESIDENTIAL & NURSING CARE PLACEMENTS,Third Party Payments,Revenue
Walsall Council,http://opendatacommunities.org/id/metropolitan-district-council/walsall,WC87-713,31/12/2017,Adult Social Care,C & V ORCHARD MANOR LTD,12/12/2017,887.15,73373-RESIDENTIAL & NURSING CARE PLACEMENTS,73373-RESIDENTIAL & NURSING CARE PLACEMENTS,Third Party Payments,Revenue
Walsall Council,http://opendatacommunities.org/id/metropolitan-district-council/walsall,WC87-714,31/12/2017,Adult Social Care,C & V ORCHARD MANOR LTD,12/12/2017,985.71,73373-RESIDENTIAL & NURSING CARE PLACEMENTS,73373-RESIDENTIAL & NURSING CARE PLACEMENTS,Third Party Payments,Revenue
Walsall Council,http://opendatacommunities.org/id/metropolitan-district-council/walsall,WC87-715,31/12/2017,Adult Social Care,C & V ORCHARD MANOR LTD,06/12/2017,"1,051.43",73373-RESIDENTIAL & NURSING CARE PLACEMENTS,73373-RESIDENTIAL & NURSING CARE PLACEMENTS,Third Party Payments,Revenue
Walsall Council,http://opendatacommunities.org/id/metropolitan-district-council/walsall,WC87-716,31/12/2017,Adult Social Care,C & V ORCHARD MANOR LTD,12/12/2017,"1,064.58",73373-RESIDENTIAL & NURSING CARE PLACEMENTS,73373-RESIDENTIAL & NURSING CARE PLACEMENTS,Third Party Payments,Revenue
Walsall Council,http://opendatacommunities.org/id/metropolitan-district-council/walsall,WC87-717,31/12/2017,Adult Social Care,C & V ORCHARD MANOR LTD,12/12/2017,"1,380.00",73373-RESIDENTIAL & NURSING CARE PLACEMENTS,73373-RESIDENTIAL & NURSING CARE PLACEMENTS,Third Party Payments,Revenue
Walsall Council,http://opendatacommunities.org/id/metropolitan-district-council/walsall,WC87-718,31/12/2017,Adult Social Care,C & V ORCHARD MANOR LTD,12/12/2017,"1,493.24",73373-RESIDENTIAL & NURSING CARE PLACEMENTS,73373-RESIDENTIAL & NURSING CARE PLACEMENTS,Third Party Payments,Revenue
Walsall Council,http://opendatacommunities.org/id/metropolitan-district-council/walsall,WC87-719,31/12/2017,Adult Social Care,C & V ORCHARD MANOR LTD,06/12/2017,"1,619.01",73373-RESIDENTIAL & NURSING CARE PLACEMENTS,73373-RESIDENTIAL & NURSING CARE PLACEMENTS,Third Party Payments,Revenue
Walsall Council,http://opendatacommunities.org/id/metropolitan-district-council/walsall,WC87-720,31/12/2017,Adult Social Care,C & V ORCHARD MANOR LTD,12/12/2017,"1,620.00",73373-RESIDENTIAL & NURSING CARE PLACEMENTS,73373-RESIDENTIAL & NURSING CARE PLACEMENTS,Third Party Payments,Revenue
Walsall Council,http://opendatacommunities.org/id/metropolitan-district-council/walsall,WC87-721,31/12/2017,Adult Social Care,C & V ORCHARD MANOR LTD,12/12/2017,"1,656.00",73373-RESIDENTIAL & NURSING CARE PLACEMENTS,73373-RESIDENTIAL & NURSING CARE PLACEMENTS,Third Party Payments,Revenue
Walsall Council,http://opendatacommunities.org/id/metropolitan-district-council/walsall,WC87-722,31/12/2017,Adult Social Care,C & V ORCHARD MANOR LTD,06/12/2017,"1,840.00",73373-RESIDENTIAL & NURSING CARE PLACEMENTS,73373-RESIDENTIAL & NURSING CARE PLACEMENTS,Third Party Payments,Revenue
Walsall Council,http://opendatacommunities.org/id/metropolitan-district-council/walsall,WC87-723,31/12/2017,Adult Social Care,C & V ORCHARD MANOR LTD,12/12/2017,"1,840.00",73373-RESIDENTIAL & NURSING CARE PLACEMENTS,73373-RESIDENTIAL & NURSING CARE PLACEMENTS,Third Party Payments,Revenue
Walsall Council,http://opendatacommunities.org/id/metropolitan-district-council/walsall,WC87-724,31/12/2017,Adult Social Care,C & V ORCHARD MANOR LTD,12/12/2017,"1,905.71",73373-RESIDENTIAL & NURSING CARE PLACEMENTS,73373-RESIDENTIAL & NURSING CARE PLACEMENTS,Third Party Payments,Revenue
Walsall Council,http://opendatacommunities.org/id/metropolitan-district-council/walsall,WC87-725,31/12/2017,Adult Social Care,C & V ORCHARD MANOR LTD,12/12/2017,"2,184.89",73373-RESIDENTIAL & NURSING CARE PLACEMENTS,73373-RESIDENTIAL & NURSING CARE PLACEMENTS,Third Party Payments,Revenue
Walsall Council,http://opendatacommunities.org/id/metropolitan-district-council/walsall,WC87-726,31/12/2017,Adult Social Care,C & V ORCHARD MANOR LTD,12/12/2017,"2,234.29",73373-RESIDENTIAL & NURSING CARE PLACEMENTS,73373-RESIDENTIAL & NURSING CARE PLACEMENTS,Third Party Payments,Revenue
Walsall Council,http://opendatacommunities.org/id/metropolitan-district-council/walsall,WC87-727,31/12/2017,Adult Social Care,C & V ORCHARD MANOR LTD,06/12/2017,"4,402.86",73373-RESIDENTIAL & NURSING CARE PLACEMENTS,73373-RESIDENTIAL & NURSING CARE PLACEMENTS,Third Party Payments,Revenue
